Department Family,Entity,Date of Payment,Expense Type,Expense Area,Supplier,Voluntary & Community Sector,SME Class,Sole Trader,D-U-N-S Number,Transaction number,PSPES Level 2,Narrative,Postal Code,Amount in Sterling,Grant?
"Housing, Communities & Local Government",DLUHC,01/12/2021,Cap Grants to Private Sector Companies,Safer and Greener Buildings,Kingston Property Services Ltd,,,,,3700125990,,Grant payable by the Exchequer,NE3 2ER,"74,999.00",Yes
"Housing, Communities & Local Government",DLUHC,01/12/2021,Current (non AEF) Grants to Local Authorities,CFO and Corporate,CO DURHAM & DARLINGTON FIRE RESCUE,,Public Bodies,,211684266,2100311686,,County Durham & Darlington Fire & rescue Authority - RCC Grant payment,DH1 1TW,"1,029,000.00",Yes
"Housing, Communities & Local Government",DLUHC,01/12/2021,Current (non AEF) Grants to Local Authorities,CFO and Corporate,GREATER LONDON AUTHORITY,,Large,,225353416,2100311685,,Greater London Authority -  RCC Grant payment,SE10 1AP,"2,182,000.00",Yes
"Housing, Communities & Local Government",DLUHC,01/12/2021,Current (non AEF) Grants to Local Authorities,CFO and Corporate,GREATER MANCHESTER COMB AUT,,Public Bodies,,424873172,2100311684,,Greater Manchester Fire & Rescue Authority  -  RCC Grant payment,M27 8US,"1,012,000.00",Yes
"Housing, Communities & Local Government",DLUHC,01/12/2021,Current (non AEF) Grants to Local Authorities,Housing & Planning,HERTFORDSHIRE COUNTY CNCL,,,,210659897,3700041795,,Surplus on account payable to the Exchequer,SG13 8DQ,"-83,350.00",Yes
"Housing, Communities & Local Government",DLUHC,01/12/2021,IT - Service Contracts,Housing & Planning,TPXimpact Limited,,Medium,,,5106277501,IT Managed / Outsourced Services,Local Plans Template Aplha - Extension,SE1 9RG,"20,580.00",
"Housing, Communities & Local Government",DLUHC,01/12/2021,IT - Software Maintenance,CFO and Corporate,SOFTWIRE TECHNOLOGY LTD,,Medium,,,5106277476,IT Managed / Outsourced Services,Additional Support/Dev 2021/22,NW5 1TL,"3,800.00",
"Housing, Communities & Local Government",DLUHC,01/12/2021,IT - Software Maintenance,CFO and Corporate,SOFTWIRE TECHNOLOGY LTD,,Medium,,,5106277477,IT Managed / Outsourced Services,Additional Support/Dev 2021/22,NW5 1TL,"4,520.00",
"Housing, Communities & Local Government",DLUHC,01/12/2021,IT - Software Maintenance,CFO and Corporate,SOFTWIRE TECHNOLOGY LTD,,Medium,,,5106277478,IT Managed / Outsourced Services,Additional Support/Dev 2021/22,NW5 1TL,"2,600.00",
"Housing, Communities & Local Government",DLUHC,01/12/2021,Management Consultancy,Safer and Greener Buildings,CABINET OFFICE,,Large,,232159186,5106277499,Consultancy,Extension to DM CTT Contract - FMI Prog Work,FY5 3TA,"49,623.00",
"Housing, Communities & Local Government",DLUHC,01/12/2021,Management Consultancy,Safer and Greener Buildings,VERACITY OSI UK LTD,,Medium,,,5106277500,Consultancy,Business Case Specialist Services,EC3R 8LJ,"26,004.00",
"Housing, Communities & Local Government",DLUHC,01/12/2021,Professional services,Safer and Greener Buildings,Bb7 Fire Limited,,Medium,,216300471,5106277483,Technical Services,Supply of Technical Assurance Consultanc,ME1 1XF,"7,656.00",
"Housing, Communities & Local Government",DLUHC,01/12/2021,Repayments of Private Sect Grant (Cap),Stronger Places,Alpek Polyester UK Limited,,,,,2300003336,,RGF Grant Recovery 1241C December 2021 instalment,TS10 4XN,"-89,361.47",
"Housing, Communities & Local Government",DLUHC,01/12/2021,Repayments of Private Sect Grant (Cap),Stronger Places,ERLSON PRECISION COMPONENTS LTD,,Medium,,,2300003327,,RGF Grant Recovery ref 1707C November 2021 instalm,WN8 9QB,"-2,618.42",
"Housing, Communities & Local Government",DLUHC,01/12/2021,Software Licences,CFO and Corporate,Delib Limited,,Small,,233717581,5106277488,Software,Citizen Space 12 mth subscription 21/22,BS1 4JZ,"17,994.00",
"Housing, Communities & Local Government",DLUHC,01/12/2021,Software Licences,Local Government Strategy and Analysis,Freshworks Inc,,,,,5106277495,Software,Freshworks subscription renewal 2021/22,94403-2199,"84,131.59",
"Housing, Communities & Local Government",DLUHC,01/12/2021,Steady State Service Provision,CFO and Corporate,DURADIAMOND HEALTHCARE LTD,,Large,,,5106277475,Clinical and Medical Support Services,Occupational Health 21/22 costs,TN22 1QL,522.00,
"Housing, Communities & Local Government",DLUHC,01/12/2021,Training,CFO and Corporate,K Wallace Ltd,Yes,Micro,,,5106277467,Development and Training,Strengths based workshop,EC1V 2NX,"1,103.25",
"Housing, Communities & Local Government",DLUHC,01/12/2021,Training,CFO and Corporate,Wiltshire Council,,Large,,,5106277482,Development and Training,Sponsorship contribution towards a partn,BA14 8JN,"2,000.00",
"Housing, Communities & Local Government",DLUHC,01/12/2021,Web Services,CFO and Corporate,DEXTROUS WEB LTD,,Micro,,211267270,5106277470,ICT Services,Website hosting and maintenance for 3 mo,N1 7NG,"1,260.00",
"Housing, Communities & Local Government",DLUHC,02/12/2021,Agency Staff,Housing & Planning,ALEXANDER MANN SOLUTIONS LTD,,Large,,,5106277526,Contingent Labour,Agency Staff,EC2N 3AQ,"1,231.86",
"Housing, Communities & Local Government",DLUHC,02/12/2021,Agency Staff,Housing & Planning,ALEXANDER MANN SOLUTIONS LTD,,Large,,,5106277526,Contingent Labour,Agency Staff,EC2N 3AQ,"1,231.86",
"Housing, Communities & Local Government",DLUHC,02/12/2021,Cap Grants to Private Sector Companies,Housing & Planning,CM Monitor (Britain Thinks) Limited,,Medium,,,5106277534,Research,Incentive research,PL13 1PN,"16,010.00",Yes
"Housing, Communities & Local Government",DLUHC,02/12/2021,Current (non AEF) Grants to Local Authorities,Stronger Places,SOUTH GLOUCESTERSHIRE COUNCIL,,Large,,424291482,2100311854,,Western Gateway core funding - second tranche,BS15 0DS,"400,000.00",Yes
"Housing, Communities & Local Government",DLUHC,02/12/2021,ERDF Work in Progress � Capital,Stronger Places,NEWCASTLE CITY COUNCIL,,,,,7700010090,,ERDF grant payment,NE1 8QH,"81,941.01",Yes
"Housing, Communities & Local Government",DLUHC,02/12/2021,ERDF Work in Progress � Capital,Stronger Places,UNIVERSITY OF YORK,,,,,7700010088,,ERDF grant payment,YO10 5DD,"124,368.54",Yes
"Housing, Communities & Local Government",DLUHC,02/12/2021,ERDF Work in Progress � Capital,Stronger Places,UNIVERSITY SHEFFIELD,,Large,,,7700010083,,ERDF grant payment,S10 2TN,"4,289.20",Yes
"Housing, Communities & Local Government",DLUHC,02/12/2021,ERDF Work in Progress � Capital,Stronger Places,UNIVERSITY SHEFFIELD,,Large,,,7700010087,,ERDF grant payment,S10 2TN,"429,150.01",Yes
"Housing, Communities & Local Government",DLUHC,02/12/2021,ERDF Work in Progress � Capital,Stronger Places,UNIVERSITY SHEFFIELD,,Large,,,7700010094,,ERDF grant payment,S10 2TN,"149,296.60",Yes
"Housing, Communities & Local Government",DLUHC,02/12/2021,ERDF Work in Progress � Resource,Stronger Places,CREATIVE KERNOW LTD,,,,,7700010086,,ERDF grant payment,TR15 3AJ,"243,543.16",Yes
"Housing, Communities & Local Government",DLUHC,02/12/2021,ERDF Work in Progress � Resource,Stronger Places,Department For International Trade,,,,,7700010085,,ERDF grant payment,NP10 8QQ,"16,895.70",Yes
"Housing, Communities & Local Government",DLUHC,02/12/2021,ERDF Work in Progress � Resource,Stronger Places,Department For International Trade,,,,,7700010092,,ERDF grant payment,NP10 8QQ,"18,538.25",Yes
"Housing, Communities & Local Government",DLUHC,02/12/2021,ERDF Work in Progress � Resource,Stronger Places,NEWCASTLE CITY COUNCIL,,,,,7700010090,,ERDF grant payment,NE1 8QH,"21,188.20",Yes
"Housing, Communities & Local Government",DLUHC,02/12/2021,ERDF Work in Progress � Resource,Stronger Places,SELNET LTD,,Small,,348729422,7700010082,,ERDF grant payment,PR2 8PS,"22,657.55",Yes
"Housing, Communities & Local Government",DLUHC,02/12/2021,ERDF Work in Progress � Resource,Stronger Places,UNI OF NORTHUMBRIA NEWCASTLE,,Large,,,7700010091,,ERDF grant payment,NE 8ST,"39,519.87",Yes
"Housing, Communities & Local Government",DLUHC,02/12/2021,ERDF Work in Progress � Resource,Stronger Places,UNIVERSITY OF HULL,,Large,,,7700010084,,ERDF grant payment,HU6 7RX,"343,479.99",Yes
"Housing, Communities & Local Government",DLUHC,02/12/2021,ERDF Work in Progress � Resource,Stronger Places,UNIVERSITY OF HULL,,Large,,,7700010093,,ERDF grant payment,HU6 7RX,"69,410.82",Yes
"Housing, Communities & Local Government",DLUHC,02/12/2021,ERDF Work in Progress � Resource,Stronger Places,UNIVERSITY OF YORK,,,,,7700010088,,ERDF grant payment,YO10 5DD,"73,576.47",Yes
"Housing, Communities & Local Government",DLUHC,02/12/2021,ERDF Work in Progress � Resource,Stronger Places,UNIVERSITY SHEFFIELD,,Large,,,7700010083,,ERDF grant payment,S10 2TN,"34,551.05",Yes
"Housing, Communities & Local Government",DLUHC,02/12/2021,ERDF Work in Progress � Resource,Stronger Places,UNIVERSITY SHEFFIELD,,Large,,,7700010087,,ERDF grant payment,S10 2TN,"10,762.27",Yes
"Housing, Communities & Local Government",DLUHC,02/12/2021,ERDF Work in Progress � Resource,Stronger Places,UNIVERSITY SHEFFIELD,,Large,,,7700010089,,ERDF grant payment,S10 2TN,"35,032.24",Yes
"Housing, Communities & Local Government",DLUHC,02/12/2021,ERDF Work in Progress � Resource,Stronger Places,UNIVERSITY SHEFFIELD,,Large,,,7700010094,,ERDF grant payment,S10 2TN,"42,105.72",Yes
"Housing, Communities & Local Government",DLUHC,02/12/2021,EXP � PURCHASE OF GOODS /SERVICES R & D,Safer and Greener Buildings,ThoughtWorks Limited,,Large,,220901784,5106277530,Software,Extension of work to develop digital pla,W1F 0UR,"36,925.00",
"Housing, Communities & Local Government",DLUHC,02/12/2021,Grant in Aid to NDPBs (non budget),Housing & Planning,REGULATOR OF SOCIAL HOUSING,,Medium,,,2100311847,,GiA to RSH,M1 4BT,"469,000.00",Yes
"Housing, Communities & Local Government",DLUHC,02/12/2021,IT - Service Contracts,Housing & Planning,ALEXANDER MANN SOLUTIONS LTD,,Large,,,5106277523,Contingent Labour,Agency Staff,EC2N 3AQ,"3,972.72",
"Housing, Communities & Local Government",DLUHC,02/12/2021,IT - Service Contracts,Housing & Planning,ALEXANDER MANN SOLUTIONS LTD,,Large,,,5106277538,Contingent Labour,Agency Staff,EC2N 3AQ,"3,972.72",
"Housing, Communities & Local Government",DLUHC,02/12/2021,Management Consultancy,Local Government Strategy and Analysis,Greenway Associates Limited,,Small,,210023449,5106277511,Consultancy,UKHMF Content Cost Consultancy,CR2 1PQ,"7,200.00",
"Housing, Communities & Local Government",DLUHC,02/12/2021,Printing,Local Government Strategy and Analysis,STATIONERY OFFICE LTD,,Large,,779375633,5106277490,Printing Services,Statutory Instru NON VAT(21-22),W1F 8PR,305.00,
"Housing, Communities & Local Government",DLUHC,02/12/2021,Printing,Local Government Strategy and Analysis,STATIONERY OFFICE LTD,,Large,,779375633,5106277490,Printing Services,Statutory Instruments Print - VAT(21-22),W1F 8PR,174.00,
"Housing, Communities & Local Government",DLUHC,02/12/2021,Professional services,Local Government Strategy and Analysis,ADJAYE ASSOCIATES LTD,,Large,,,5106277522,Financial,Employment Instructions,NW1 5QT,"16,044.00",
"Housing, Communities & Local Government",DLUHC,02/12/2021,Professional services,Safer and Greener Buildings,ThoughtWorks Limited,,Large,,220901784,5106277530,Software,"The supplier, Thoughtworks, Building Funds Registration",W1F 0UR,"42,585.00",
"Housing, Communities & Local Government",DLUHC,02/12/2021,Professional services,Stronger Places,MANNING GOTTLIEB OMD,,,,,5106277321,Advertising,Oxford Cambridge Arc Advertising Expenditure,SE1 0SW,"27,140.99",
"Housing, Communities & Local Government",DLUHC,02/12/2021,Recruitment,Local Government Strategy and Analysis,CABINET OFFICE,,Large,,232159186,5106277527,Business Process Outsourcing Services,Recruitment,FY5 3TA,"3,000.00",
"Housing, Communities & Local Government",DLUHC,02/12/2021,Removals and Porterage,CFO and Corporate,21st CENTURY OFFICE CONCEPTS LTD,,Small,,,5106277542,Transport,Hemel Crate hire,SG12 0SS,270.00,
"Housing, Communities & Local Government",DLUHC,02/12/2021,Removals and Porterage,CFO and Corporate,21st CENTURY OFFICE CONCEPTS LTD,,Small,,,5106277543,Transport,Hemel Crate hire,SG12 0SS,270.00,
"Housing, Communities & Local Government",DLUHC,02/12/2021,Services provided by other Govt Orgs,Housing & Planning,LOCAL GOVERNMENT ASSOCIATION,,Public Bodies,,232563929,5106277535,Not Addressable,Local Government Association (Secondment) November 2021 ,SW1P 3HZ,"9,663.65",Yes
"Housing, Communities & Local Government",DLUHC,02/12/2021,Software Licences,CFO and Corporate,ALLPAY LIMITED,,Medium,,738359918,5106277517,Business Process Outsourcing Services,"Bacs Bureau renewal 21/22, for the perio",HR1 3SE,"1,211.76",
"Housing, Communities & Local Government",DLUHC,02/12/2021,Steady State Service Provision,CFO and Corporate,CGI IT UK LIMITED,,Large,,239881618,5106277519,Business Process Outsourcing Services,Payroll Services and Licences 2021/22,EC3M 3BY,"17,331.83",
"Housing, Communities & Local Government",DLUHC,02/12/2021,Steady State Service Provision,CFO and Corporate,CGI IT UK LIMITED,,Large,,239881618,5106277533,Business Process Outsourcing Services,Payroll Services and Licences 2021/22,EC3M 3BY,"2,737.82",
"Housing, Communities & Local Government",DLUHC,02/12/2021,Steady State Service Provision,Housing & Planning,R H ENVIROMENTAL LTD T/A RHE GLOBAL,,Small,,,5106277528,Business Process Outsourcing Services,Phase 2 of Housing Health and Safety Rating System,SA44 5WX,"44,406.00",
"Housing, Communities & Local Government",DLUHC,02/12/2021,Training,CFO and Corporate,Don't Tone Alone Cic,,Micro,,216678499,5106277513,Development and Training,Civil Service Training,W1W 7LT,"4,810.00",
"Housing, Communities & Local Government",DLUHC,02/12/2021,Training,CFO and Corporate,ERNST & YOUNG LLP,,Large,,221768935,5106277541,Development and Training,Civil Service Training,SE1 7EU,"1,225.50",
"Housing, Communities & Local Government",DLUHC,02/12/2021,Training,CFO and Corporate,KPMG LLP (CSL),,Large,,,5106277451,Development and Training,Civil Service Training,E14 5GL,"1,634.00",
"Housing, Communities & Local Government",DLUHC,02/12/2021,Training,CFO and Corporate,KPMG LLP (CSL),,Large,,,5106277471,Development and Training,Civil Service Training,E14 5GL,"2,257.00",
"Housing, Communities & Local Government",DLUHC,02/12/2021,Training,CFO and Corporate,KPMG LLP (CSL),,Large,,,5106277473,Development and Training,Civil Service Training,E14 5GL,"12,192.00",
"Housing, Communities & Local Government",DLUHC,02/12/2021,Training,CFO and Corporate,MYCSP LIMITED,,Large,,217279092,5106277503,Development and Training,Civil Service Training,SK3 0XN,850.00,
"Housing, Communities & Local Government",DLUHC,02/12/2021,Training,Housing & Planning,DODS GROUP LTD,,Large,,290673748,5106277236,Development and Training,Training course,SE1 9SG,"5,500.00",
"Housing, Communities & Local Government",DLUHC,02/12/2021,Training,Local Government Strategy and Analysis,LSR TRAINING AND DEVELOPMENT LTD,,Micro,,,5106277532,Development and Training,Civil Service Training,YO42 4RE,720.00,
"Housing, Communities & Local Government",DLUHC,02/12/2021,Utilisation of Unfunded Pension Scheme,CFO and Corporate,LONDON PENSIONS FUND AUTHORITY,,Public Bodies,,236915880,5106277520,Financial,Pension fund management,SE1 0LL,405.91,
"Housing, Communities & Local Government",DLUHC,03/12/2021,Agency Staff,CFO and Corporate,ALEXANDER MANN SOLUTIONS LTD,,Large,,,5106277592,Contingent Labour,Agency Staff,EC2N 3AQ,"4,619.52",
"Housing, Communities & Local Government",DLUHC,03/12/2021,Agency Staff,CFO and Corporate,ALEXANDER MANN SOLUTIONS LTD,,Large,,,5106277593,Contingent Labour,Agency Staff,EC2N 3AQ,"15,706.26",
"Housing, Communities & Local Government",DLUHC,03/12/2021,Agency Staff,CFO and Corporate,ALEXANDER MANN SOLUTIONS LTD,,Large,,,5106277594,Contingent Labour,Agency Staff,EC2N 3AQ,"4,619.52",
"Housing, Communities & Local Government",DLUHC,03/12/2021,Agency Staff,CFO and Corporate,ALEXANDER MANN SOLUTIONS LTD,,Large,,,5106277595,Contingent Labour,Agency Staff,EC2N 3AQ,"4,619.52",
"Housing, Communities & Local Government",DLUHC,03/12/2021,Agency Staff,CFO and Corporate,ALEXANDER MANN SOLUTIONS LTD,,Large,,,5106277597,Contingent Labour,Agency Staff,EC2N 3AQ,"2,529.00",
"Housing, Communities & Local Government",DLUHC,03/12/2021,Agency Staff,CFO and Corporate,ALEXANDER MANN SOLUTIONS LTD,,Large,,,5106277600,Contingent Labour,Agency Staff,EC2N 3AQ,"4,681.10",
"Housing, Communities & Local Government",DLUHC,03/12/2021,Agency Staff,CFO and Corporate,ALEXANDER MANN SOLUTIONS LTD,,Large,,,5106277602,Contingent Labour,Agency Staff,EC2N 3AQ,"3,695.58",
"Housing, Communities & Local Government",DLUHC,03/12/2021,Agency Staff,CFO and Corporate,ALEXANDER MANN SOLUTIONS LTD,,Large,,,5106277603,Contingent Labour,Agency Staff,EC2N 3AQ,"2,465.82",
"Housing, Communities & Local Government",DLUHC,03/12/2021,Agency Staff,CFO and Corporate,ALEXANDER MANN SOLUTIONS LTD,,Large,,,5106277609,Contingent Labour,Agency Staff,EC2N 3AQ,"4,311.48",
"Housing, Communities & Local Government",DLUHC,03/12/2021,Agency Staff,CFO and Corporate,ALEXANDER MANN SOLUTIONS LTD,,Large,,,5106277613,Contingent Labour,Agency Staff,EC2N 3AQ,"2,560.68",
"Housing, Communities & Local Government",DLUHC,03/12/2021,Agency Staff,CFO and Corporate,ALEXANDER MANN SOLUTIONS LTD,,Large,,,5106277615,Contingent Labour,Agency Staff,EC2N 3AQ,"4,311.48",
"Housing, Communities & Local Government",DLUHC,03/12/2021,Agency Staff,CFO and Corporate,ALEXANDER MANN SOLUTIONS LTD,,Large,,,5106277620,Contingent Labour,Agency Staff,EC2N 3AQ,"4,431.36",
"Housing, Communities & Local Government",DLUHC,03/12/2021,Agency Staff,CFO and Corporate,ALEXANDER MANN SOLUTIONS LTD,,Large,,,5106277622,Contingent Labour,Agency Staff,EC2N 3AQ,"4,003.56",
"Housing, Communities & Local Government",DLUHC,03/12/2021,Agency Staff,Housing & Planning,ALEXANDER MANN SOLUTIONS LTD,,Large,,,5106277591,Contingent Labour,Agency Staff,EC2N 3AQ,"4,545.30",
"Housing, Communities & Local Government",DLUHC,03/12/2021,Agency Staff,Housing & Planning,ALEXANDER MANN SOLUTIONS LTD,,Large,,,5106277624,Contingent Labour,Agency Staff,EC2N 3AQ,"4,003.61",
"Housing, Communities & Local Government",DLUHC,03/12/2021,Agency Staff,Housing & Planning,ALEXANDER MANN SOLUTIONS LTD,,Large,,,5106277624,Contingent Labour,Agency Staff,EC2N 3AQ,"8,807.78",
"Housing, Communities & Local Government",DLUHC,03/12/2021,Agency Staff,Local Government Strategy and Analysis,ALEXANDER MANN SOLUTIONS LTD,,Large,,,5106277612,Contingent Labour,Agency Staff,EC2N 3AQ,"5,460.04",
"Housing, Communities & Local Government",DLUHC,03/12/2021,Agency Staff,Local Government Strategy and Analysis,ALEXANDER MANN SOLUTIONS LTD,,Large,,,5106277630,Contingent Labour,Agency Staff,EC2N 3AQ,"2,001.76",
"Housing, Communities & Local Government",DLUHC,03/12/2021,Agency Staff,Safer and Greener Buildings,ALEXANDER MANN SOLUTIONS LTD,,Large,,,5106277598,Contingent Labour,Agency Staff,EC2N 3AQ,"4,743.90",
"Housing, Communities & Local Government",DLUHC,03/12/2021,Agency Staff,Safer and Greener Buildings,ALEXANDER MANN SOLUTIONS LTD,,Large,,,5106277601,Contingent Labour,Agency Staff,EC2N 3AQ,"1,940.20",
"Housing, Communities & Local Government",DLUHC,03/12/2021,Agency Staff,Safer and Greener Buildings,ALEXANDER MANN SOLUTIONS LTD,,Large,,,5106277605,Contingent Labour,Agency Staff,EC2N 3AQ,"3,780.36",
"Housing, Communities & Local Government",DLUHC,03/12/2021,Agency Staff,Safer and Greener Buildings,ALEXANDER MANN SOLUTIONS LTD,,Large,,,5106277618,Contingent Labour,Agency Staff,EC2N 3AQ,"4,644.36",
"Housing, Communities & Local Government",DLUHC,03/12/2021,Agency Staff,Safer and Greener Buildings,ALEXANDER MANN SOLUTIONS LTD,,Large,,,5106277619,Contingent Labour,Agency Staff,EC2N 3AQ,"2,078.75",
"Housing, Communities & Local Government",DLUHC,03/12/2021,Agency Staff,Safer and Greener Buildings,ALEXANDER MANN SOLUTIONS LTD,,Large,,,5106277626,Contingent Labour,Agency Staff,EC2N 3AQ,"3,465.30",
"Housing, Communities & Local Government",DLUHC,03/12/2021,Agency Staff,Stronger Places,ALEXANDER MANN SOLUTIONS LTD,,Large,,,5106277596,Contingent Labour,Agency Staff,EC2N 3AQ,"2,772.24",
"Housing, Communities & Local Government",DLUHC,03/12/2021,Agency Staff,Stronger Places,ALEXANDER MANN SOLUTIONS LTD,,Large,,,5106277629,Contingent Labour,Agency Staff,EC2N 3AQ,654.90,
"Housing, Communities & Local Government",DLUHC,03/12/2021,Current (non AEF) Grants to Local Authorities,Housing & Planning,CENTRAL BEDFORDSHIRE COUNCIL,,,,232624882,3700125742,,Surplus on account payable to the Exchequer,SG17 5TQ,"-12,000.00",Yes
"Housing, Communities & Local Government",DLUHC,03/12/2021,ERDF Work in Progress � Capital,Stronger Places,CAMBRIDGESHIRE COUNTY COUNCIL,,,,,7700010104,,ERDF grant payment,CB3 0AP,"204,327.73",Yes
"Housing, Communities & Local Government",DLUHC,03/12/2021,ERDF Work in Progress � Capital,Stronger Places,CHELTENHAM BOROUGH COUNCIL,,,,,7700010100,,ERDF grant payment,GL50 9SA,"51,902.96",Yes
"Housing, Communities & Local Government",DLUHC,03/12/2021,ERDF Work in Progress � Capital,Stronger Places,CORNWALL COUNCIL,,Large,,,7700010099,,ERDF grant payment,TR1 3AY,"78,903.32",Yes
"Housing, Communities & Local Government",DLUHC,03/12/2021,ERDF Work in Progress � Capital,Stronger Places,Energy Systems Catapult Limited,,Medium,,,7700010095,,ERDF grant payment,B4 6BS,"18,462.95",Yes
"Housing, Communities & Local Government",DLUHC,03/12/2021,ERDF Work in Progress � Resource,Stronger Places,CAMBRIDGESHIRE COUNTY COUNCIL,,,,,7700010104,,ERDF grant payment,CB3 0AP,"10,104.75",Yes
"Housing, Communities & Local Government",DLUHC,03/12/2021,ERDF Work in Progress � Resource,Stronger Places,CHELTENHAM BOROUGH COUNCIL,,,,,7700010100,,ERDF grant payment,GL50 9SA,"28,230.74",Yes
"Housing, Communities & Local Government",DLUHC,03/12/2021,ERDF Work in Progress � Resource,Stronger Places,CORNWALL COUNCIL,,Large,,,7700010099,,ERDF grant payment,TR1 3AY,"43,300.37",Yes
"Housing, Communities & Local Government",DLUHC,03/12/2021,ERDF Work in Progress � Resource,Stronger Places,Energy Systems Catapult Limited,,Medium,,,7700010095,,ERDF grant payment,B4 6BS,"65,915.67",Yes
"Housing, Communities & Local Government",DLUHC,03/12/2021,ERDF Work in Progress � Resource,Stronger Places,FOOD AND DRINK FORUM LIMITED,,Small,,,7700010106,,ERDF grant payment,NG5 9RG,"123,192.33",Yes
"Housing, Communities & Local Government",DLUHC,03/12/2021,ERDF Work in Progress � Resource,Stronger Places,GREATER B'HAM&SOLIHULL LEP LTD,,,,,7700010107,,ERDF grant payment,B1 2ND,"138,948.50",Yes
"Housing, Communities & Local Government",DLUHC,03/12/2021,ERDF Work in Progress � Resource,Stronger Places,GREATER LONDON AUTHORITY,,Large,,,7700010101,,ERDF grant payment,SE1 2AA,"541,508.60",Yes
"Housing, Communities & Local Government",DLUHC,03/12/2021,ERDF Work in Progress � Resource,Stronger Places,KINGSTON UPON HULL CITY COUNCIL,,Large,,,7700010097,,ERDF grant payment,HU1 2AA,"278,485.96",Yes
"Housing, Communities & Local Government",DLUHC,03/12/2021,ERDF Work in Progress � Resource,Stronger Places,LANCASTER UNIVERISTY,,,,,7700010096,,ERDF grant payment,LA1 4YW,"104,238.59",Yes
"Housing, Communities & Local Government",DLUHC,03/12/2021,ERDF Work in Progress � Resource,Stronger Places,LANCASTER UNIVERISTY,,,,,7700010105,,ERDF grant payment,LA1 4YW,"81,320.16",Yes
"Housing, Communities & Local Government",DLUHC,03/12/2021,ERDF Work in Progress � Resource,Stronger Places,LEEDS CITY COUNCIL,,Large,,,7700010102,,ERDF grant payment,LS2 8HD,"513,685.21",Yes
"Housing, Communities & Local Government",DLUHC,03/12/2021,ERDF Work in Progress � Resource,Stronger Places,UNIVERSITY OF CENTRAL LANCASHIRE,,Large,,,7700010098,,ERDF grant payment,PR7 7DL,"62,723.94",Yes
"Housing, Communities & Local Government",DLUHC,03/12/2021,ERDF Work in Progress � Resource,Stronger Places,UNIVERSITY OF PLYMOUTH,,,,,7700010103,,ERDF grant payment,PL4 8AA,"205,016.95",Yes
"Housing, Communities & Local Government",DLUHC,03/12/2021,"Furniture, Fittings and carpets",CFO and Corporate,21st CENTURY OFFICE CONCEPTS LTD,,Small,,,5106277551,"Furniture, Fixtures and Fittings",Wolverhampton 2nd HQ � mobilisation costs�,SG12 0SS,862.22,
"Housing, Communities & Local Government",DLUHC,03/12/2021,"Furniture, Fittings and carpets",CFO and Corporate,21st CENTURY OFFICE CONCEPTS LTD,,Small,,,5106277553,"Furniture, Fixtures and Fittings",Hire furniture 4th floor i9,SG12 0SS,"7,750.80",
"Housing, Communities & Local Government",DLUHC,03/12/2021,"Furniture, Fittings and carpets",CFO and Corporate,21st CENTURY OFFICE CONCEPTS LTD,,Small,,,5106277554,"Furniture, Fixtures and Fittings",Ground floor hire furniture i9,SG12 0SS,"11,367.60",
"Housing, Communities & Local Government",DLUHC,03/12/2021,"Furniture, Fittings and carpets",CFO and Corporate,21st CENTURY OFFICE CONCEPTS LTD,,Small,,,5106277555,"Furniture, Fixtures and Fittings",2MS Office equipment,SG12 0SS,792.00,
"Housing, Communities & Local Government",DLUHC,03/12/2021,"Furniture, Fittings and carpets",CFO and Corporate,WAGSTAFF BROS LTD,,,,210307773,5106277472,"Furniture, Fixtures and Fittings",Reasonable Adjustments 21/22,EC1V 4JR,"1,443.84",
"Housing, Communities & Local Government",DLUHC,03/12/2021,"IT - PC, Network & Hardware",CFO and Corporate,VOHKUS LTD,,Large,,221235125,5106277636,ICT Hardware,Mini DisplayPort to Display - Delivery,PO15 5TT,6.00,
"Housing, Communities & Local Government",DLUHC,03/12/2021,"IT - PC, Network & Hardware",CFO and Corporate,VOHKUS LTD,,Large,,221235125,5106277636,ICT Hardware,MDP2DPMM6 - Mini DisplayPort to DisplayP,PO15 5TT,970.20,
"Housing, Communities & Local Government",DLUHC,03/12/2021,IT - Service Contracts,CFO and Corporate,ALEXANDER MANN SOLUTIONS LTD,,Large,,,5106277606,IT Managed / Outsourced Services,Agency Staff,EC2N 3AQ,"3,079.65",
"Housing, Communities & Local Government",DLUHC,03/12/2021,IT - Service Contracts,CFO and Corporate,ALEXANDER MANN SOLUTIONS LTD,,Large,,,5106277607,IT Managed / Outsourced Services,Agency Staff,EC2N 3AQ,"3,849.60",
"Housing, Communities & Local Government",DLUHC,03/12/2021,IT - Service Contracts,CFO and Corporate,ALEXANDER MANN SOLUTIONS LTD,,Large,,,5106277611,IT Managed / Outsourced Services,Agency Staff,EC2N 3AQ,"4,294.98",
"Housing, Communities & Local Government",DLUHC,03/12/2021,IT - Service Contracts,CFO and Corporate,ALEXANDER MANN SOLUTIONS LTD,,Large,,,5106277614,IT Managed / Outsourced Services,Agency Staff,EC2N 3AQ,"15,112.03",
"Housing, Communities & Local Government",DLUHC,03/12/2021,IT - Service Contracts,CFO and Corporate,ALEXANDER MANN SOLUTIONS LTD,,Large,,,5106277617,IT Managed / Outsourced Services,Agency Staff,EC2N 3AQ,"2,001.78",
"Housing, Communities & Local Government",DLUHC,03/12/2021,IT - Service Contracts,CFO and Corporate,ALEXANDER MANN SOLUTIONS LTD,,Large,,,5106277632,IT Managed / Outsourced Services,Agency Staff,EC2N 3AQ,596.53,
"Housing, Communities & Local Government",DLUHC,03/12/2021,IT - Service Contracts,CFO and Corporate,X M A LTD,,Large,,298484148,5106277586,IT Managed / Outsourced Services,12 months hardware support services exte,NG11 7EP,382.38,
"Housing, Communities & Local Government",DLUHC,03/12/2021,IT - Service Contracts,CFO and Corporate,X M A LTD,,Large,,298484148,5106277587,IT Managed / Outsourced Services,12 months hardware support services exte,NG11 7EP,382.38,
"Housing, Communities & Local Government",DLUHC,03/12/2021,IT - Service Contracts,CFO and Corporate,X M A LTD,,Large,,298484148,5106277588,IT Managed / Outsourced Services,12 months hardware support services exte,NG11 7EP,382.38,
"Housing, Communities & Local Government",DLUHC,03/12/2021,IT - Service Contracts,CFO and Corporate,X M A LTD,,Large,,298484148,5106277590,IT Managed / Outsourced Services,12 months hardware support services exte,NG11 7EP,424.02,
"Housing, Communities & Local Government",DLUHC,03/12/2021,IT - Service Contracts,CFO and Corporate,X M A LTD,,Large,,298484148,5106277637,IT Managed / Outsourced Services,12 months hardware support services exte,NG11 7EP,424.02,
"Housing, Communities & Local Government",DLUHC,03/12/2021,IT - Service Contracts,CFO and Corporate,X M A LTD,,Large,,298484148,5106277641,IT Managed / Outsourced Services,12 months hardware support services exte,NG11 7EP,"8,228.27",
"Housing, Communities & Local Government",DLUHC,03/12/2021,IT - Service Contracts,Housing & Planning,ALEXANDER MANN SOLUTIONS LTD,,Large,,,5106277610,Contingent Labour,Agency Staff,EC2N 3AQ,"7,945.44",
"Housing, Communities & Local Government",DLUHC,03/12/2021,IT - Service Contracts,Local Government Strategy and Analysis,RISUAL LIMITED,,Medium,,,5106277589,IT Managed / Outsourced Services,Analytical Data Services Beta Completion,ST18 0WP,"31,850.00",
"Housing, Communities & Local Government",DLUHC,03/12/2021,Management Consultancy,Safer and Greener Buildings,SLAUGHTER & MAY,,Large,,225772961,5106277625,Consultancy,Financing Scheme - Legal Support,EC1Y 8YY,"12,000.00",
"Housing, Communities & Local Government",DLUHC,03/12/2021,Office Supplies,CFO and Corporate,21st CENTURY OFFICE CONCEPTS LTD,,Small,,,5106277567,Office Supplies,Hand sanitisers and wipes to 23SS,SG12 0SS,"1,530.00",
"Housing, Communities & Local Government",DLUHC,03/12/2021,Office Supplies,CFO and Corporate,21st CENTURY OFFICE CONCEPTS LTD,,Small,,,5106277570,Office Supplies,Ministerial office/Private office item r,SG12 0SS,841.09,
"Housing, Communities & Local Government",DLUHC,03/12/2021,Office Supplies,CFO and Corporate,21st CENTURY OFFICE CONCEPTS LTD,,Small,,,5106277571,Office Supplies,90 pocket size hand sanitisers (for Wolv,SG12 0SS,297.00,
"Housing, Communities & Local Government",DLUHC,03/12/2021,Professional services,Housing & Planning,Zaizi Limited,,Micro,,,5106277560,Research,National Landlord Register - Digitial Discovery,W6 7JP,"31,140.00",
"Housing, Communities & Local Government",DLUHC,03/12/2021,Professional services,Local Government Strategy and Analysis,ALEXANDER MANN SOLUTIONS LTD,,Large,,,5106277616,Contingent Labour,Agency Staff,EC2N 3AQ,"1,242.84",
"Housing, Communities & Local Government",DLUHC,03/12/2021,Professional services,Safer and Greener Buildings,ALEXANDER MANN SOLUTIONS LTD,,Large,,,5106277631,Contingent Labour,Agency Staff,EC2N 3AQ,"2,199.42",
"Housing, Communities & Local Government",DLUHC,03/12/2021,Professional services,Safer and Greener Buildings,TURNER&TOWNSEND PROJECT MAN LTD,,Large,,,5106277443,Technical Services,Provision of Client Side Support Service,LS18 4GH,"7,881.05",
"Housing, Communities & Local Government",DLUHC,03/12/2021,Professional services,Stronger Places,Wood Group UK Limited,,Large,,,5106277574,Environmental Services,Oxford Cambridge Arc Advertising Expenditure,AB11 6EQ,"4,658.22",
"Housing, Communities & Local Government",DLUHC,03/12/2021,Provision Utilisation Other,Safer and Greener Buildings,ALEXANDER MANN SOLUTIONS LTD,,Large,,,5106277608,Contingent Labour,Agency Staff,EC2N 3AQ,"2,835.24",
"Housing, Communities & Local Government",DLUHC,03/12/2021,Provision Utilisation Other,Safer and Greener Buildings,ALEXANDER MANN SOLUTIONS LTD,,Large,,,5106277621,Contingent Labour,Agency Staff,EC2N 3AQ,"1,847.76",
"Housing, Communities & Local Government",DLUHC,03/12/2021,Provision Utilisation Other,Safer and Greener Buildings,ALEXANDER MANN SOLUTIONS LTD,,Large,,,5106277623,Contingent Labour,Agency Staff,EC2N 3AQ,"2,340.55",
"Housing, Communities & Local Government",DLUHC,03/12/2021,Recruitment,CFO and Corporate,ALEXANDER MANN SOLUTIONS LTD,,Large,,,5106277628,Contingent Labour,Agency Staff,EC2N 3AQ,"2,887.75",
"Housing, Communities & Local Government",DLUHC,03/12/2021,Recruitment,CFO and Corporate,CABINET OFFICE,,Large,,232159186,5106277568,Business Process Outsourcing Services,SAP Technical and Project Resources,FY5 3TA,"327,270.00",
"Housing, Communities & Local Government",DLUHC,03/12/2021,Recruitment,Stronger Places,ALEXANDER MANN SOLUTIONS LTD,,Large,,,5106277604,Contingent Labour,Agency Staff,EC2N 3AQ,"2,438.05",
"Housing, Communities & Local Government",DLUHC,03/12/2021,Removals and Porterage,CFO and Corporate,21st CENTURY OFFICE CONCEPTS LTD,,Small,,,5106277557,Transport,Birmingham move from 5SP to 23SS; plus c,SG12 0SS,"7,580.70",
"Housing, Communities & Local Government",DLUHC,03/12/2021,Removals and Porterage,CFO and Corporate,21st CENTURY OFFICE CONCEPTS LTD,,Small,,,5106277569,Transport,Removal of final pieces from 5th floor 5,SG12 0SS,"2,994.58",
"Housing, Communities & Local Government",DLUHC,03/12/2021,Removals and Porterage,CFO and Corporate,21st CENTURY OFFICE CONCEPTS LTD,,Small,,,5106277572,Transport,5SP removal works 4th and 5th floor,SG12 0SS,"8,984.57",
"Housing, Communities & Local Government",DLUHC,03/12/2021,Rent,CFO and Corporate,GOVERNMENT PROPERTY AGENCY,,Medium,,,5106277638,Business Support,Regus Rent,B2 5LS,"38,332.80",
"Housing, Communities & Local Government",DLUHC,03/12/2021,Repayments of Private Sect Grant (Cap),Stronger Places,FISKARS UK LTD,,,,,2300003335,,RGF Grant Recovery 1682 FISKARS November 2021,ST12 9ER,"-793,244.10",
"Housing, Communities & Local Government",DLUHC,03/12/2021,Software Licences,CFO and Corporate,BYTES SOFTWARE SERVICES LTD,,Medium,,225273754,5106277576,Software,Assistive Software Licences,KT22 7TW,251.95,
"Housing, Communities & Local Government",DLUHC,03/12/2021,Software Licences,CFO and Corporate,BYTES SOFTWARE SERVICES LTD,,Medium,,225273754,5106277583,Software,Assistive Software Licences,KT22 7TW,251.94,
"Housing, Communities & Local Government",DLUHC,03/12/2021,Software Licences,CFO and Corporate,PHOENIX SOFTWARE LTD,,Large,,,5106277639,Software,MSEA Licences & Support 3 years,YO42 1NS,"1,686,850.97",
"Housing, Communities & Local Government",DLUHC,03/12/2021,Steady State Service Provision,CFO and Corporate,CABINET OFFICE,,Large,,232159186,5106277568,Business Process Outsourcing Services,Project Manager for SAP Success Factors,FY5 3TA,"51,180.00",
"Housing, Communities & Local Government",DLUHC,03/12/2021,Steady State Service Provision,CFO and Corporate,GOVERNMENT PROPERTY AGENCY,,Medium,,,5106277638,Business Support,Regus Management Charge,B2 5LS,"1,848.75",
"Housing, Communities & Local Government",DLUHC,03/12/2021,Steady State Service Provision,CFO and Corporate,GOVERNMENT PROPERTY AGENCY,,Medium,,,5106277640,Business Support,Priory Sq Management Charge,B2 5LS,"8,109.00",
"Housing, Communities & Local Government",DLUHC,03/12/2021,Telecoms equipment (non-capitalised),CFO and Corporate,BANNER GROUP LTD,,Micro,,,5106277247,Telecoms,960-001227 Logitech Rally - Conference c,WF6 2TZ,"1,830.96",
"Housing, Communities & Local Government",DLUHC,03/12/2021,Training,CFO and Corporate,KNOWLEDGEPOOL GROUP LIMITED,,Medium,,737096441,5106277585,Development and Training,Civil Service Training,RG1 8LS,"3,655.26",
"Housing, Communities & Local Government",DLUHC,03/12/2021,Training,CFO and Corporate,KPMG LLP (CSL),,Large,,,5106277509,Development and Training,Civil Service Training,E14 5GL,"9,445.00",
"Housing, Communities & Local Government",DLUHC,03/12/2021,Training,Local Government Strategy and Analysis,KPMG LLP (CSL),,Large,,,5106277508,Development and Training,Civil Service Training,E14 5GL,"1,394.00",
"Housing, Communities & Local Government",DLUHC,06/12/2021,Conferences and Meeting Facilities,Housing & Planning,DCLG GOVERNMENT PROCUREMENT CARD,,,,,1000005063,Business Travel Accommodation,Royal Town Planning Institute - Training Event,TN37 7GA,298.80,
"Housing, Communities & Local Government",DLUHC,06/12/2021,ERDF Work in Progress � Capital,Stronger Places,OXFORD INNOVATION SERVICES LTD(MGP2,,,,,7700010109,,ERDF grant payment,OX1 1BY,"40,808.97",Yes
"Housing, Communities & Local Government",DLUHC,06/12/2021,ERDF Work in Progress � Resource,Stronger Places,ASTON UNIVERSITY,,Large,,227749751,7700010110,,ERDF grant payment,B4 7ET,"77,921.36",Yes
"Housing, Communities & Local Government",DLUHC,06/12/2021,ERDF Work in Progress � Resource,Stronger Places,ASTON UNIVERSITY,,Large,,227749751,7700010117,,ERDF grant payment,B4 7ET,"21,552.82",Yes
"Housing, Communities & Local Government",DLUHC,06/12/2021,ERDF Work in Progress � Resource,Stronger Places,DEVON COUNTY COUNCIL,,Large,,,7700010114,,ERDF grant payment,EX2 4QD,"254,180.95",Yes
"Housing, Communities & Local Government",DLUHC,06/12/2021,ERDF Work in Progress � Resource,Stronger Places,DURHAM UNIVERSITY,,Large,,,7700010108,,ERDF grant payment,DH1 3LE,"22,397.34",Yes
"Housing, Communities & Local Government",DLUHC,06/12/2021,ERDF Work in Progress � Resource,Stronger Places,EAST RIDING OF YORKSHIRE COUNCIL,,,,,7700010116,,ERDF grant payment,HU17 9BA,"44,518.28",Yes
"Housing, Communities & Local Government",DLUHC,06/12/2021,ERDF Work in Progress � Resource,Stronger Places,GATESHEAD COUNCIL,,Large,,,7700010115,,ERDF grant payment,NE8 1HH,"22,221.71",Yes
"Housing, Communities & Local Government",DLUHC,06/12/2021,ERDF Work in Progress � Resource,Stronger Places,H & W CHAMBER OF COMMERCE,,Medium,,,7700010111,,ERDF grant payment,WR4 9NE,"4,528.55",Yes
"Housing, Communities & Local Government",DLUHC,06/12/2021,ERDF Work in Progress � Resource,Stronger Places,NEWCASTLE UNIVERSITY,,,,,7700010113,,ERDF grant payment,NE1 7RU,"68,949.39",Yes
"Housing, Communities & Local Government",DLUHC,06/12/2021,ERDF Work in Progress � Resource,Stronger Places,OXFORD INNOVATION SERVICES LTD(MGP2,,,,,7700010109,,ERDF grant payment,OX1 1BY,"281,623.99",Yes
"Housing, Communities & Local Government",DLUHC,06/12/2021,ERDF Work in Progress � Resource,Stronger Places,TEESSIDE UNIVERSITY,,Large,,,7700010112,,ERDF grant payment,TS1 3BA,"102,306.10",Yes
"Housing, Communities & Local Government",DLUHC,06/12/2021,EXP � PURCHASE OF GOODS /SERVICES R & D,Housing & Planning,ICF CONSULTING LTD,,Large,,,5106277681,Research,Housing First Increase 21/22,EC4M 5SB,"64,290.00",
"Housing, Communities & Local Government",DLUHC,06/12/2021,"IT - PC, Network & Hardware",CFO and Corporate,BANNER GROUP LTD,,Micro,,,5106277678,ICT Hardware,MS Surface Docking stations,WF6 2TZ,"10,075.50",
"Housing, Communities & Local Government",DLUHC,06/12/2021,"IT - PC, Network & Hardware",CFO and Corporate,X M A LTD,,Large,,298484148,5106277674,ICT Hardware,MoG changes additional IT kit,NG11 7EP,"19,850.40",
"Housing, Communities & Local Government",DLUHC,06/12/2021,"IT - PC, Network & Hardware",CFO and Corporate,X M A LTD,,Large,,298484148,5106277675,ICT Hardware,MoG changes additional IT kit,NG11 7EP,"4,532.22",
"Housing, Communities & Local Government",DLUHC,06/12/2021,"IT - PC, Network & Hardware",CFO and Corporate,X M A LTD,,Large,,298484148,5106277676,ICT Hardware,MoG changes additional IT kit,NG11 7EP,"4,567.32",
"Housing, Communities & Local Government",DLUHC,06/12/2021,"IT - PC, Network & Hardware",CFO and Corporate,X M A LTD,,Large,,298484148,5106277677,ICT Hardware,MoG changes additional IT kit,NG11 7EP,"2,916.00",
"Housing, Communities & Local Government",DLUHC,06/12/2021,IT - Service Contracts,CFO and Corporate,X M A LTD,,Large,,298484148,5106277670,IT Managed / Outsourced Services,12 months hardware support services exte,NG11 7EP,"15,968.04",
"Housing, Communities & Local Government",DLUHC,06/12/2021,IT Consultancy,Stronger Places,EVOCO DIGITAL SERVICES LTD,,Small,,,5106277658,IT Managed / Outsourced Services,Funding service design - technical deliv,LU5 4DD,"7,380.00",
"Housing, Communities & Local Government",DLUHC,06/12/2021,Legal Fees,Housing & Planning,LANDMARK CHAMBERS,,Medium,,732521732,5106277550,Legal,Legal Advice,EC4A 2HG,768.00,
"Housing, Communities & Local Government",DLUHC,06/12/2021,Physical Storage,CFO and Corporate,IRON MOUNTAIN (UK) LIMITED,,Large,,501338354,5106277667,Warehousing and Storage,Secure Offsite Tape Storage U051 2021/22,EH54 7DF,874.60,
"Housing, Communities & Local Government",DLUHC,06/12/2021,Professional services,CFO and Corporate,DCLG GOVERNMENT PROCUREMENT CARD,,,,,1000005064,Environmental Services,Google GSuite accounts,TN37 7GA,509.37,
"Housing, Communities & Local Government",DLUHC,06/12/2021,Professional services,Housing & Planning,CEL GROUP,,Medium,,394794614,5106277671,Technical Services,Funding for National Body for Home Improvement Agencies,WA2 0YL,"88,000.00",
"Housing, Communities & Local Government",DLUHC,06/12/2021,Professional services,Housing & Planning,CEL GROUP,,Medium,,394794614,5106277672,Technical Services,Funding for National Body for Home Improvement Agencies,WA2 0YL,"88,000.00",
"Housing, Communities & Local Government",DLUHC,06/12/2021,Professional services,Stronger Places,ALMA ECONOMICS LTD,,Small,,,5106277552,IT Managed / Outsourced Services,Oxford Cambridge Spatial Framework Professional Services,N16 7XJ,"47,760.00",
"Housing, Communities & Local Government",DLUHC,06/12/2021,Property/Estates Consultancy,Safer and Greener Buildings,JACOBS UK LTD,,Large,,,5106277656,Consultancy,Peer Review of Engineering Advice,SE1 2QG,"1,342.50",
"Housing, Communities & Local Government",DLUHC,06/12/2021,Software Licences,CFO and Corporate,PHOENIX SOFTWARE LTD,,Large,,,5106277669,Software,For extra licences,YO42 1NS,"10,580.40",
"Housing, Communities & Local Government",DLUHC,06/12/2021,Steady State Service Provision,CFO and Corporate,CGI IT UK LIMITED,,Large,,239881618,5106277644,Business Process Outsourcing Services,Payroll Services and Licences 2020-21,EC3M 3BY,0.72,
"Housing, Communities & Local Government",DLUHC,06/12/2021,Steady State Service Provision,CFO and Corporate,CGI IT UK LIMITED,,Large,,239881618,5106277644,Business Process Outsourcing Services,Payroll Services and Licences 2021/22,EC3M 3BY,339.68,
"Housing, Communities & Local Government",DLUHC,06/12/2021,Training,CFO and Corporate,KNOWLEDGEPOOL GROUP LIMITED,,Medium,,737096441,5106277673,Development and Training,Civil Service Training,RG1 8LS,609.21,
"Housing, Communities & Local Government",DLUHC,06/12/2021,Training,CFO and Corporate,KPMG LLP (CSL),,Large,,,5106277665,Development and Training,Civil Service Training,E14 5GL,229.00,
"Housing, Communities & Local Government",DLUHC,06/12/2021,Training,Local Government Strategy and Analysis,LSR TRAINING AND DEVELOPMENT LTD,,Micro,,,5106277668,Development and Training,Civil Service Training,YO42 4RE,490.00,
"Housing, Communities & Local Government",DLUHC,06/12/2021,Training,Local Government Strategy and Analysis,WISE OWL BUSINESS SOLUTIONS LTD,,Micro,,738553754,5106277666,Development and Training,Civil Service Training,SK13 2AA,595.00,
"Housing, Communities & Local Government",DLUHC,06/12/2021,Utilisation of Provi - Cap Grant to LA,Safer and Greener Buildings,PINSENT MASONS LLP,,Large,,215580626,5106277657,Legal,Deconstruction procurement programme,EC2A 4ES,"6,845.52",
"Housing, Communities & Local Government",DLUHC,07/12/2021,Cap Grants to Private Sector Companies,Housing & Planning,LIVERPOOL UNIVERSITY,,Large,,228645628,5106277646,Research,Supporting Development of the Infrastructure Levy,L69 3BX,"98,000.00",Yes
"Housing, Communities & Local Government",DLUHC,07/12/2021,Conferences and Meeting Facilities,Local Government Strategy and Analysis,REVOLVING DOORS AGENCY,Yes,Small,,,5106277701,Business Travel Accommodation,Room Hire,SE1 6LN,273.60,
"Housing, Communities & Local Government",DLUHC,07/12/2021,Conferences and Meeting Facilities,Safer and Greener Buildings,MUSEUM OF BRANDS,,Small,,,5106277702,Business Travel Accommodation,persons commission meeting,W11 1QT,294.00,
"Housing, Communities & Local Government",DLUHC,07/12/2021,Current (non AEF) Grants to Local Authorities,Housing & Planning,BIRMINGHAM CITY CNCL,,,,213780559,3700105563,,Surplus on account payable to the Exchequer,B2 2AJ,"-145,350.00",Yes
"Housing, Communities & Local Government",DLUHC,07/12/2021,ERDF Work in Progress � Capital,Stronger Places,DERBY CITY COUNCIL,,Large,,,7700010122,,ERDF grant payment,DE1 2FS,"16,624.72",Yes
"Housing, Communities & Local Government",DLUHC,07/12/2021,ERDF Work in Progress � Capital,Stronger Places,EAST MIDLANDS CHAMBER(DNL),,,,,7700010119,,ERDF grant payment,S41 8ND,"14,000.00",Yes
"Housing, Communities & Local Government",DLUHC,07/12/2021,ERDF Work in Progress � Capital,Stronger Places,LEICESTER CITY COUNCIL,,,,,7700010120,,ERDF grant payment,LE1 1FZ,"434,071.54",Yes
"Housing, Communities & Local Government",DLUHC,07/12/2021,ERDF Work in Progress � Capital,Stronger Places,SOUTH EAST MIDLANDS LOCAL ENTERPRIS,,,,,7700010121,,ERDF grant payment,MK43 0BT,"15,566.50",Yes
"Housing, Communities & Local Government",DLUHC,07/12/2021,ERDF Work in Progress � Resource,Stronger Places,DERBY CITY COUNCIL,,Large,,,7700010122,,ERDF grant payment,DE1 2FS,"9,453.31",Yes
"Housing, Communities & Local Government",DLUHC,07/12/2021,ERDF Work in Progress � Resource,Stronger Places,DERBY UNIVERSITY,,,,,7700010123,,ERDF grant payment,DE22 1GB,"80,110.58",Yes
"Housing, Communities & Local Government",DLUHC,07/12/2021,ERDF Work in Progress � Resource,Stronger Places,EAST MIDLANDS CHAMBER(DNL),,,,,7700010119,,ERDF grant payment,S41 8ND,"32,751.05",Yes
"Housing, Communities & Local Government",DLUHC,07/12/2021,ERDF Work in Progress � Resource,Stronger Places,LEICESTER CITY COUNCIL,,,,,7700010120,,ERDF grant payment,LE1 1FZ,"142,669.70",Yes
"Housing, Communities & Local Government",DLUHC,07/12/2021,ERDF Work in Progress � Resource,Stronger Places,SOUTH EAST MIDLANDS LOCAL ENTERPRIS,,,,,7700010121,,ERDF grant payment,MK43 0BT,"165,594.74",Yes
"Housing, Communities & Local Government",DLUHC,07/12/2021,ERDF Work in Progress � Resource,Stronger Places,UNIVERSITY OF BIRMINGHAM,,Large,,,7700010118,,ERDF grant payment,B15 2TT,"236,820.40",Yes
"Housing, Communities & Local Government",DLUHC,07/12/2021,EXP � PURCHASE OF GOODS /SERVICES R & D,Local Government Strategy and Analysis,GREEN PARK INTERIM & EXECUTIVE,,Small,,348738829,5106277714,Business Process Outsourcing Services,UKHMF Curator Salary,SW1P 1BX,"18,912.52",
"Housing, Communities & Local Government",DLUHC,07/12/2021,EXP � PURCHASE OF GOODS /SERVICES R & D,Local Government Strategy and Analysis,Mr Basil Watson,,,,,5106277690,Technical Services,Windrush Monument,30045,"217,773.60",
"Housing, Communities & Local Government",DLUHC,07/12/2021,Grant in Aid to NDPBs (non budget),Local Government Strategy and Analysis,VALUATION TRIBUNAL SERVICE,,,,211218366,2100311931,,GIA to VTS,E1 8EU,"430,000.00",Yes
"Housing, Communities & Local Government",DLUHC,07/12/2021,IT - Service Contracts,CFO and Corporate,EVOCO DIGITAL SERVICES LTD,,Small,,,5106277713,IT Managed / Outsourced Services,Agile Coaching/Product Management,LU5 4DD,"49,320.00",
"Housing, Communities & Local Government",DLUHC,07/12/2021,IT - Service Contracts,Housing & Planning,ADVICE CLOUD LIMITED,,Small,,,5106277556,IT Managed / Outsourced Services,Digital Engagement Tools-Supporting Local Authority Procurement ,BN3 3JA,"10,050.00",
"Housing, Communities & Local Government",DLUHC,07/12/2021,IT - Service Contracts,Housing & Planning,MADE TECH LTD,,Medium,,,5106277645,IT Managed / Outsourced Services,Delivery of Digital Planning Reform - Consultant Fees,EC2A 4NE,"11,824.20",
"Housing, Communities & Local Government",DLUHC,07/12/2021,Management Consultancy,Safer and Greener Buildings,VERACITY OSI UK LTD,,Medium,,,5106277704,Consultancy,Business Case Specialist Services,EC3R 8LJ,"24,822.00",
"Housing, Communities & Local Government",DLUHC,07/12/2021,Professional services,Safer and Greener Buildings,Bloom Procurement Services Limited,,Large,,,5106277712,Consultancy,Business case on  Selection Criteria and,NE8 2ET,"10,800.00",
"Housing, Communities & Local Government",DLUHC,07/12/2021,Steady State Service Provision,Housing & Planning,GROUNDWORK UK,Yes,,,739193758,5106277650,Business Process Outsourcing Services,Grant admin costs,B1 2RR,"3,184.00",
"Housing, Communities & Local Government",DLUHC,07/12/2021,Steady State Service Provision,Housing & Planning,GROUNDWORK UK,Yes,,,739193758,5106277651,Business Process Outsourcing Services,Grant admin costs,B1 2RR,"6,522.00",
"Housing, Communities & Local Government",DLUHC,07/12/2021,Telecoms equipment (non-capitalised),CFO and Corporate,STORM TECHNOLOGIES LTD,,Medium,,519916048,5106277717,Telecoms,960-001312 - Logitech Rally Bar - Video,WD18 8YW,"11,436.77",
"Housing, Communities & Local Government",DLUHC,07/12/2021,Telecoms equipment (non-capitalised),CFO and Corporate,STORM TECHNOLOGIES LTD,,Medium,,519916048,5106277717,Telecoms,Logitech Rally Bar - Video- Delivery,WD18 8YW,5.94,
"Housing, Communities & Local Government",DLUHC,07/12/2021,Training,CFO and Corporate,KPMG LLP (CSL),,Large,,,5106277715,Development and Training,Civil Service Training,E14 5GL,210.00,
"Housing, Communities & Local Government",DLUHC,07/12/2021,Training,Local Government Strategy and Analysis,LSR TRAINING AND DEVELOPMENT LTD,,Micro,,,5106277716,Development and Training,Civil Service Training,YO42 4RE,490.00,
"Housing, Communities & Local Government",DLUHC,07/12/2021,Web Services,Safer and Greener Buildings,BIG BLUE DOOR,,Micro,,,5106277649,IT Managed / Outsourced Services,Website or Grenfell Tower Memori,SE1 2PZ,"1,800.00",
"Housing, Communities & Local Government",DLUHC,08/12/2021,Cap Grants to Private Sector Companies,Safer and Greener Buildings,Pinnacle Housing Limited,,,,,3700126463,,Grant payable by the Exchequer,WC1V 6PL,"33,790.00",Yes
"Housing, Communities & Local Government",DLUHC,08/12/2021,Current (non AEF) Grants to Local Authorities,Local Government Strategy and Analysis,CITY OF LONDON,,Large,,217471460,2100311951,,Payments to LAs for BCF 21-22 regional assurance,EC2P 2EJ,"44,503.00",Yes
"Housing, Communities & Local Government",DLUHC,08/12/2021,Current (non AEF) Grants to Local Authorities,Local Government Strategy and Analysis,DURHAM COUNTY COUNCIL,,,,228453601,2100311957,,Payments to LAs for BCF 21-22 regional assurance,DL16 6JQ,"25,728.00",Yes
"Housing, Communities & Local Government",DLUHC,08/12/2021,Current (non AEF) Grants to Local Authorities,Local Government Strategy and Analysis,EAST SUSSEX CC,,,,,2100311949,,Payments to LAs for BCF 21-22 regional assurance,BN7 1UE,"31,093.00",Yes
"Housing, Communities & Local Government",DLUHC,08/12/2021,Current (non AEF) Grants to Local Authorities,Local Government Strategy and Analysis,GLOUCESTERSHIRE COUNTY COUNCIL,,Public Bodies,,211272067,2100311950,,Payments to LAs for BCF 21-22 regional assurance,GL2 2AX,"27,517.00",Yes
"Housing, Communities & Local Government",DLUHC,08/12/2021,Current (non AEF) Grants to Local Authorities,Local Government Strategy and Analysis,HERTFORDSHIRE CC,,Large,,211218291,2100311952,,Payments to LAs for BCF 21-22 regional assurance,SG13 8TN,"25,728.00",Yes
"Housing, Communities & Local Government",DLUHC,08/12/2021,Current (non AEF) Grants to Local Authorities,Local Government Strategy and Analysis,LEEDS CITY COUNCIL,,Public Bodies,,,2100311955,,Payments to LAs for BCF 21-22 regional assurance,LS1 3AD,"28,411.00",Yes
"Housing, Communities & Local Government",DLUHC,08/12/2021,Current (non AEF) Grants to Local Authorities,Local Government Strategy and Analysis,NOTTINGHAMSHIRE CC,,,,214657947,2100311954,,Payments to LAs for BCF 21-22 regional assurance,NG2 7QZ,"23,940.00",Yes
"Housing, Communities & Local Government",DLUHC,08/12/2021,Current (non AEF) Grants to Local Authorities,Local Government Strategy and Analysis,SHROPSHIRE UNITARY COUNCIL,,,,,2100311953,,Payments to LAs for BCF 21-22 regional assurance,SY1 9DP,"27,517.00",Yes
"Housing, Communities & Local Government",DLUHC,08/12/2021,Current (non AEF) Grants to Local Authorities,Local Government Strategy and Analysis,TAMESIDE MBC,,Large,,212635875,2100311956,,Payments to LAs for BCF 21-22 regional assurance,OL6 0GA,"35,563.00",Yes
"Housing, Communities & Local Government",DLUHC,08/12/2021,Current Grants to Non Profit Bodies,Housing & Planning,NATIONAL CLT NETWORK,,Micro,,,2100311848,,Communitiy housing fund,SE1 4YR,"1,500,000.00",Yes
"Housing, Communities & Local Government",DLUHC,08/12/2021,ERDF Work in Progress � Capital,Stronger Places,KINGSTON UPON HULL CITY COUNCIL,,Large,,,7700010136,,ERDF grant payment,HU1 2AA,"34,592.88",Yes
"Housing, Communities & Local Government",DLUHC,08/12/2021,ERDF Work in Progress � Capital,Stronger Places,Music and Arts Production Leeds,,Micro,,,7700010132,,ERDF grant payment,LS9 7DR,"29,025.03",Yes
"Housing, Communities & Local Government",DLUHC,08/12/2021,ERDF Work in Progress � Capital,Stronger Places,NORTH LINCOLNSHIRE COUNCIL,,,,,7700010128,,ERDF grant payment,DN16 1AB,"12,965.39",Yes
"Housing, Communities & Local Government",DLUHC,08/12/2021,ERDF Work in Progress � Capital,Stronger Places,SUNDERLAND CITY COUNCIL,,,,,7700010129,,ERDF grant payment,SR2 7DN,379.11,Yes
"Housing, Communities & Local Government",DLUHC,08/12/2021,ERDF Work in Progress � Capital,Stronger Places,WOLVERHAMPTON CITY COUNCIL,,,,,7700010131,,ERDF grant payment,WV1 1RL,877.80,Yes
"Housing, Communities & Local Government",DLUHC,08/12/2021,ERDF Work in Progress � Resource,Stronger Places, WEST YORKSHIRE COMBINED AUTHORITY,,Large,,,7700010125,,ERDF grant payment,LS1 2DE,"42,120.40",Yes
"Housing, Communities & Local Government",DLUHC,08/12/2021,ERDF Work in Progress � Resource,Stronger Places,CENTRE FOR PROCESS INNOVATION LTD,,Large,,,7700010126,,ERDF grant payment,TS10 4RF,"118,985.30",Yes
"Housing, Communities & Local Government",DLUHC,08/12/2021,ERDF Work in Progress � Resource,Stronger Places,COMMUNITY MEDIA SOLUTIONS LTD,,Micro,,,7700010135,,ERDF grant payment,S1 2BX,"70,871.94",Yes
"Housing, Communities & Local Government",DLUHC,08/12/2021,ERDF Work in Progress � Resource,Stronger Places,KINGSTON UPON HULL CITY COUNCIL,,Large,,,7700010136,,ERDF grant payment,HU1 2AA,"65,949.77",Yes
"Housing, Communities & Local Government",DLUHC,08/12/2021,ERDF Work in Progress � Resource,Stronger Places,NEWCASTLE CITY COUNCIL,,,,,7700010138,,ERDF grant payment,NE1 8QH,"76,619.75",Yes
"Housing, Communities & Local Government",DLUHC,08/12/2021,ERDF Work in Progress � Resource,Stronger Places,NORTH LINCOLNSHIRE COUNCIL,,,,,7700010128,,ERDF grant payment,DN16 1AB,"8,685.89",Yes
"Housing, Communities & Local Government",DLUHC,08/12/2021,ERDF Work in Progress � Resource,Stronger Places,NORTH LINCOLNSHIRE COUNCIL,,,,,7700010134,,ERDF grant payment,DN16 1AB,"11,625.83",Yes
"Housing, Communities & Local Government",DLUHC,08/12/2021,ERDF Work in Progress � Resource,Stronger Places,RTC NORTH LTD,,Small,,,7700010127,,ERDF grant payment,SR5 3XB,"148,144.28",Yes
"Housing, Communities & Local Government",DLUHC,08/12/2021,ERDF Work in Progress � Resource,Stronger Places,SOUTH TYNESIDE BOROUGH COUNCIL,,,,,7700010124,,ERDF grant payment,NE33 2RL,"78,609.56",Yes
"Housing, Communities & Local Government",DLUHC,08/12/2021,ERDF Work in Progress � Resource,Stronger Places,SUNDERLAND CITY COUNCIL,,,,,7700010129,,ERDF grant payment,SR2 7DN,"39,013.12",Yes
"Housing, Communities & Local Government",DLUHC,08/12/2021,ERDF Work in Progress � Resource,Stronger Places,TEESSIDE UNIVERSITY,,Large,,,7700010133,,ERDF grant payment,TS1 3BA,"193,709.16",Yes
"Housing, Communities & Local Government",DLUHC,08/12/2021,ERDF Work in Progress � Resource,Stronger Places,UNIVERSITY OF BIRMINGHAM,,Large,,,7700010137,,ERDF grant payment,B15 2TT,"56,458.99",Yes
"Housing, Communities & Local Government",DLUHC,08/12/2021,ERDF Work in Progress � Resource,Stronger Places,WOLVERHAMPTON CITY COUNCIL,,,,,7700010130,,ERDF grant payment,WV1 1RL,"489,382.51",Yes
"Housing, Communities & Local Government",DLUHC,08/12/2021,ERDF Work in Progress � Resource,Stronger Places,WOLVERHAMPTON CITY COUNCIL,,,,,7700010131,,ERDF grant payment,WV1 1RL,"28,817.11",Yes
"Housing, Communities & Local Government",DLUHC,08/12/2021,EXP � PURCHASE OF GOODS /SERVICES R & D,Housing & Planning,LIVERPOOL UNIVERSITY,,Large,,228645628,5106277757,Research,Park Homes Sales Commission Research,L69 3BX,"20,932.00",
"Housing, Communities & Local Government",DLUHC,08/12/2021,Grant in Aid to NDPBs (non budget),Local Government Strategy and Analysis,COMMISSION LOCAL ADMINISTRATION,,,,215271508,2100311905,,DCLG DEL 21/22 budget contribution for the CLAE,CV1 3BH,"1,170,000.00",Yes
"Housing, Communities & Local Government",DLUHC,08/12/2021,IT - Service Contracts,CFO and Corporate,MADE TECH LTD,,Medium,,,5106277736,IT Managed / Outsourced Services,Technical architect and service mapping,EC2A 4NE,"74,495.00",
"Housing, Communities & Local Government",DLUHC,08/12/2021,Legal Fees,Safer and Greener Buildings,HUGO KEITH - THREE RAYMOND,,Micro,,,5106277737,Legal,Legal Advice,WC1R 5BH,"6,567.50",
"Housing, Communities & Local Government",DLUHC,08/12/2021,Printing,Local Government Strategy and Analysis,STATIONERY OFFICE LTD,,Large,,779375633,5106277740,Printing Services,Statutory Instru NON VAT(21-22),W1F 8PR,305.00,
"Housing, Communities & Local Government",DLUHC,08/12/2021,Printing,Local Government Strategy and Analysis,STATIONERY OFFICE LTD,,Large,,779375633,5106277740,Printing Services,Statutory Instruments Print - VAT(21-22),W1F 8PR,174.00,
"Housing, Communities & Local Government",DLUHC,08/12/2021,Printing,Local Government Strategy and Analysis,STATIONERY OFFICE LTD,,Large,,779375633,5106277741,Printing Services,Statutory Instru NON VAT(21-22),W1F 8PR,305.00,
"Housing, Communities & Local Government",DLUHC,08/12/2021,Printing,Local Government Strategy and Analysis,STATIONERY OFFICE LTD,,Large,,779375633,5106277741,Printing Services,Statutory Instruments Print - VAT(21-22),W1F 8PR,174.00,
"Housing, Communities & Local Government",DLUHC,08/12/2021,Professional services,CFO and Corporate,GOVT ACTUARYS DEPARTMENT,,Public Bodies,,217789766,5106277749,Operation of Industrial Facilities,GAd Ris Model,EC4A 1AB,"-2,133.00",
"Housing, Communities & Local Government",DLUHC,08/12/2021,Professional services,Local Government Strategy and Analysis,WSP UK LTD,,Large,,,5106277735,Financial,Employment Instructions,WC2A 1AF,"12,000.00",
"Housing, Communities & Local Government",DLUHC,08/12/2021,Professional services,Local Government Strategy and Analysis,WSP UK LTD,,Large,,,5106277738,Financial,Employment Instructions,WC2A 1AF,"5,316.00",
"Housing, Communities & Local Government",DLUHC,08/12/2021,Publications,Local Government Strategy and Analysis,PRESS DATA LTD,,Small,,,5106277562,Learning and Development Materials,Media Monitoring - Press Cuttings,SE1 1JA,"1,528.25",
"Housing, Communities & Local Government",DLUHC,08/12/2021,Software Licences,CFO and Corporate,DCLG GOVERNMENT PROCUREMENT CARD,,,,,1000005066,Software,Large monitor for office (YE) RA,TN37 7GA,463.17,
"Housing, Communities & Local Government",DLUHC,08/12/2021,Software Licences,CFO and Corporate,SNP UK,,Small,,216919025,5106277725,Software,SNP Test Data Organiser Software,SW1W 9TR,"5,655.00",
"Housing, Communities & Local Government",DLUHC,09/12/2021,Advertising,Housing & Planning,M&C SAATCHI (UK) LTD,,Large,,,5106277824,Advertising,Generation Buy advertising campaign,W1F 9EE,707.00,
"Housing, Communities & Local Government",DLUHC,09/12/2021,Courier Services,CFO and Corporate,POSTURITE LTD,,Medium,,216832621,5106277805,Office Solutions,Courier,BN26 6SZ,11.94,
"Housing, Communities & Local Government",DLUHC,09/12/2021,Electronic Data Storage,CFO and Corporate,RESTORE PLC,,Large,,,5106277820,Warehousing and Storage,Visions digital storage,RH1 3DY,"4,770.55",
"Housing, Communities & Local Government",DLUHC,09/12/2021,ERDF Work in Progress � Capital,Stronger Places,FALMOUTH UNIVERSITY,,Large,,,7700010144,,ERDF grant payment,TR10 9FE,641.52,Yes
"Housing, Communities & Local Government",DLUHC,09/12/2021,ERDF Work in Progress � Capital,Stronger Places,UNIVERSITY OF EXETER,,,,,7700010140,,ERDF grant payment,EX4 4QJ,"103,997.32",Yes
"Housing, Communities & Local Government",DLUHC,09/12/2021,ERDF Work in Progress � Resource,Stronger Places,FALMOUTH UNIVERSITY,,Large,,,7700010144,,ERDF grant payment,TR10 9FE,"86,626.53",Yes
"Housing, Communities & Local Government",DLUHC,09/12/2021,ERDF Work in Progress � Resource,Stronger Places,FALMOUTH UNIVERSITY,,Large,,,7700010146,,ERDF grant offset,TR10 9FE,-470.40,Yes
"Housing, Communities & Local Government",DLUHC,09/12/2021,ERDF Work in Progress � Resource,Stronger Places,GM BUSINESS SUPPORT LTD,,,,,7700010143,,ERDF grant payment,M1 5JW,"163,758.55",Yes
"Housing, Communities & Local Government",DLUHC,09/12/2021,ERDF Work in Progress � Resource,Stronger Places,KINGSTON UPON HULL CITY COUNCIL,,Large,,,7700010141,,ERDF grant payment,HU1 2AA,"83,023.67",Yes
"Housing, Communities & Local Government",DLUHC,09/12/2021,ERDF Work in Progress � Resource,Stronger Places,LANCASHIRE COUNTY COUNCIL,,Large,,,7700010149,,ERDF grant payment,PR1 8XJ,"238,137.50",Yes
"Housing, Communities & Local Government",DLUHC,09/12/2021,ERDF Work in Progress � Resource,Stronger Places,LONDON SOUTH BANK UNIVERSITY,,,,,7700010142,,ERDF grant payment,SE1 0AA,"46,626.54",Yes
"Housing, Communities & Local Government",DLUHC,09/12/2021,ERDF Work in Progress � Resource,Stronger Places,NGAGE SOLUTIONS LTD,,Small,,,7700010147,,ERDF grant payment,HP19 8TE,"10,707.75",Yes
"Housing, Communities & Local Government",DLUHC,09/12/2021,ERDF Work in Progress � Resource,Stronger Places,UNIVERSITY OF EXETER,,,,,7700010140,,ERDF grant payment,EX4 4QJ,"105,985.78",Yes
"Housing, Communities & Local Government",DLUHC,09/12/2021,ERDF Work in Progress � Resource,Stronger Places,UNIVERSITY OF EXETER,,,,,7700010145,,ERDF grant payment,EX4 4QJ,"152,312.26",Yes
"Housing, Communities & Local Government",DLUHC,09/12/2021,ERDF Work in Progress � Resource,Stronger Places,UNIVERSITY OF EXETER,,,,,7700010148,,ERDF grant payment,EX4 4QJ,"213,968.68",Yes
"Housing, Communities & Local Government",DLUHC,09/12/2021,ERDF Work in Progress � Resource,Stronger Places,UNIVERSITY OF KEELE,,,,,7700010150,,ERDF grant payment,ST5 5BG,"41,340.15",Yes
"Housing, Communities & Local Government",DLUHC,09/12/2021,EXP � PURCHASE OF GOODS /SERVICES R & D,Local Government Strategy and Analysis,MADE TECH LTD,,Medium,,,5106277812,IT Managed / Outsourced Services,Data Dashboards Development ,EC2A 4NE,"66,705.00",
"Housing, Communities & Local Government",DLUHC,09/12/2021,EXP � PURCHASE OF GOODS /SERVICES R & D,Local Government Strategy and Analysis,RIGHTMOVE,,Large,,,5106277647,Research,Research Housing Market Indicators,MK16 1AJ,"10,000.00",
"Housing, Communities & Local Government",DLUHC,09/12/2021,EXP � PURCHASE OF GOODS /SERVICES R & D,Safer and Greener Buildings,Architects Registration Board,,Medium,,,5106277116,Technical Services,Architects Registration Board - Mutual R,W1W 5BU,"38,890.85",
"Housing, Communities & Local Government",DLUHC,09/12/2021,EXP � PURCHASE OF GOODS /SERVICES R & D,Safer and Greener Buildings,Architects Registration Board,,Medium,,,5106277794,Technical Services,Architects Registration Board - Mutual R,W1W 5BU,"31,478.74",
"Housing, Communities & Local Government",DLUHC,09/12/2021,EXP � PURCHASE OF GOODS /SERVICES R & D,Safer and Greener Buildings,BUILDING RESEARCH ESTABLISHMENT,,Large,,896495033,5106277827,Research,investigation of real fires,WD25 9XX,"6,918.00",
"Housing, Communities & Local Government",DLUHC,09/12/2021,EXP � PURCHASE OF GOODS /SERVICES R & D,Safer and Greener Buildings,PRP ARCHITECTS LLP,,Large,,,5106277816,Research,Research,KT7 0QJ,"406,267.23",
"Housing, Communities & Local Government",DLUHC,09/12/2021,"Furniture, Fittings and carpets",CFO and Corporate,WAGSTAFF BROS LTD,,,,210307773,5106277814,"Furniture, Fixtures and Fittings",Reasonable Adjustments 21/22,EC1V 4JR,383.38,
"Housing, Communities & Local Government",DLUHC,09/12/2021,Grant in Aid to NDPBs (non budget),Housing & Planning,HOMES ENGLAND,,Public Bodies,,215576860,2100311967,,Homes England November 2021 Grant in Aid payment,NE11 0NA,"344,127,040.00",Yes
"Housing, Communities & Local Government",DLUHC,09/12/2021,IT - Service Contracts,CFO and Corporate,MADE TECH LTD,,Medium,,,5106277829,IT Managed / Outsourced Services,Case level Data Collection: Beta Phase S,EC2A 4NE,"136,272.25",
"Housing, Communities & Local Government",DLUHC,09/12/2021,IT - Service Contracts,CFO and Corporate,STATIONERY OFFICE LTD,,Large,,779375633,5106277818,IT Managed / Outsourced Services,Delta development for 2021 - 22,W1F 8PR,"324,158.00",
"Housing, Communities & Local Government",DLUHC,09/12/2021,IT - Software Maintenance,CFO and Corporate,STATIONERY OFFICE LTD,,Large,,779375633,5106277808,IT Managed / Outsourced Services,DELTA Support 2021-2023,W1F 8PR,"22,800.00",
"Housing, Communities & Local Government",DLUHC,09/12/2021,Legal Fees,Housing & Planning,CONOR FEGAN,,,,,5106277826,Legal,Legal Advice,EC4Y 7BY,672.00,
"Housing, Communities & Local Government",DLUHC,09/12/2021,Office machinery consumables,CFO and Corporate,COMPUTACENTER (UK) LTD,,Large,,226023463,5106277782,Office Supplies,HPE RW Data Cartridge LTO Ultrium 4 (x10,AL10 9TW,256.32,
"Housing, Communities & Local Government",DLUHC,09/12/2021,Physical Storage,CFO and Corporate,RESTORE PLC,,Large,,,5106277801,Warehousing and Storage,Visions digital storage 2 year extension,RH1 3DY,212.48,
"Housing, Communities & Local Government",DLUHC,09/12/2021,Physical Storage,CFO and Corporate,RESTORE PLC,,Large,,,5106277802,Warehousing and Storage,Visions digital storage 2 year extension,RH1 3DY,875.72,
"Housing, Communities & Local Government",DLUHC,09/12/2021,Physical Storage,CFO and Corporate,RESTORE PLC,,Large,,,5106277804,Warehousing and Storage,Visions digital storage 2 year extension,RH1 3DY,"1,534.89",
"Housing, Communities & Local Government",DLUHC,09/12/2021,Physical Storage,CFO and Corporate,RESTORE PLC,,Large,,,5106277807,Warehousing and Storage,Visions digital storage 2 year extension,RH1 3DY,"4,015.55",
"Housing, Communities & Local Government",DLUHC,09/12/2021,Physical Storage,CFO and Corporate,RESTORE PLC,,Large,,,5106277820,Warehousing and Storage,Visions digital storage 2 year extension,RH1 3DY,"28,063.58",
"Housing, Communities & Local Government",DLUHC,09/12/2021,Professional services,Housing & Planning,VALUATION OFFICE AGENCY,,Public Bodies,,215253886,5106277680,Business Process Outsourcing Services,Valuation Office Agency Right to Buy,W1D 5BU,"159,663.81",
"Housing, Communities & Local Government",DLUHC,09/12/2021,Training,CFO and Corporate,BYTES SOFTWARE SERVICES LTD,,Medium,,225273754,5106277791,Learning and Development Materials,Civil Service Training,KT22 7TW,225.00,
"Housing, Communities & Local Government",DLUHC,09/12/2021,Training,CFO and Corporate,BYTES SOFTWARE SERVICES LTD,,Medium,,225273754,5106277815,Learning and Development Materials,Civil Service Training,KT22 7TW,225.00,
"Housing, Communities & Local Government",DLUHC,09/12/2021,Training,CFO and Corporate,KPMG LLP (CSL),,Large,,,5106277783,Development and Training,Civil Service Training,E14 5GL,776.00,
"Housing, Communities & Local Government",DLUHC,09/12/2021,Training,CFO and Corporate,KPMG LLP (CSL),,Large,,,5106277784,Development and Training,Civil Service Training,E14 5GL,"3,133.00",
"Housing, Communities & Local Government",DLUHC,09/12/2021,Training,CFO and Corporate,MINISTRY OF JUSTICE,,,,211860841,5106277813,Development and Training,Civil Service Training,NP20 9BB,"2,500.00",
"Housing, Communities & Local Government",DLUHC,09/12/2021,Training,CFO and Corporate,UNIVERSITY COLLEGE LONDON,,Large,,225410919,5106277795,Development and Training,Civil Service Training,WC1E 6BT,"2,383.20",
"Housing, Communities & Local Government",DLUHC,09/12/2021,Training,Local Government Strategy and Analysis,LSR TRAINING AND DEVELOPMENT LTD,,Micro,,,5106277727,Development and Training,Civil Service Training,YO42 4RE,"1,680.00",
"Housing, Communities & Local Government",DLUHC,09/12/2021,Training,Local Government Strategy and Analysis,LSR TRAINING AND DEVELOPMENT LTD,,Micro,,,5106277786,Development and Training,Civil Service Training,YO42 4RE,350.00,
"Housing, Communities & Local Government",DLUHC,09/12/2021,Training,Local Government Strategy and Analysis,LSR TRAINING AND DEVELOPMENT LTD,,Micro,,,5106277786,Development and Training,Civil Service Training,YO42 4RE,490.00,
"Housing, Communities & Local Government",DLUHC,09/12/2021,Training,Local Government Strategy and Analysis,LSR TRAINING AND DEVELOPMENT LTD,,Micro,,,5106277788,Development and Training,Civil Service Training,YO42 4RE,350.00,
"Housing, Communities & Local Government",DLUHC,09/12/2021,Training,Local Government Strategy and Analysis,LSR TRAINING AND DEVELOPMENT LTD,,Micro,,,5106277821,Development and Training,Civil Service Training,YO42 4RE,350.00,
"Housing, Communities & Local Government",DLUHC,09/12/2021,Training,Local Government Strategy and Analysis,LSR TRAINING AND DEVELOPMENT LTD,,Micro,,,5106277821,Development and Training,Civil Service Training,YO42 4RE,490.00,
"Housing, Communities & Local Government",DLUHC,09/12/2021,Training,Local Government Strategy and Analysis,LSR TRAINING AND DEVELOPMENT LTD,,Micro,,,5106277822,Development and Training,Civil Service Training,YO42 4RE,350.00,
"Housing, Communities & Local Government",DLUHC,09/12/2021,Training,Safer and Greener Buildings,KPMG LLP (CSL),,Large,,,5106277724,Development and Training,Civil Service Training,E14 5GL,"1,320.00",
"Housing, Communities & Local Government",DLUHC,10/12/2021,Agency Staff,CFO and Corporate,ALEXANDER MANN SOLUTIONS LTD,,Large,,,5106277867,Contingent Labour,Agency Staff,EC2N 3AQ,"4,619.52",
"Housing, Communities & Local Government",DLUHC,10/12/2021,Agency Staff,CFO and Corporate,ALEXANDER MANN SOLUTIONS LTD,,Large,,,5106277869,Contingent Labour,Agency Staff,EC2N 3AQ,"4,267.80",
"Housing, Communities & Local Government",DLUHC,10/12/2021,Agency Staff,CFO and Corporate,ALEXANDER MANN SOLUTIONS LTD,,Large,,,5106277873,Contingent Labour,Agency Staff,EC2N 3AQ,"3,695.58",
"Housing, Communities & Local Government",DLUHC,10/12/2021,Agency Staff,CFO and Corporate,ALEXANDER MANN SOLUTIONS LTD,,Large,,,5106277874,Contingent Labour,Agency Staff,EC2N 3AQ,"4,311.48",
"Housing, Communities & Local Government",DLUHC,10/12/2021,Agency Staff,CFO and Corporate,ALEXANDER MANN SOLUTIONS LTD,,Large,,,5106277876,Contingent Labour,Agency Staff,EC2N 3AQ,"4,109.70",
"Housing, Communities & Local Government",DLUHC,10/12/2021,Agency Staff,CFO and Corporate,ALEXANDER MANN SOLUTIONS LTD,,Large,,,5106277878,Contingent Labour,Agency Staff,EC2N 3AQ,"3,980.88",
"Housing, Communities & Local Government",DLUHC,10/12/2021,Agency Staff,CFO and Corporate,ALEXANDER MANN SOLUTIONS LTD,,Large,,,5106277880,Contingent Labour,Agency Staff,EC2N 3AQ,"2,529.00",
"Housing, Communities & Local Government",DLUHC,10/12/2021,Agency Staff,CFO and Corporate,ALEXANDER MANN SOLUTIONS LTD,,Large,,,5106277885,Contingent Labour,Agency Staff,EC2N 3AQ,"71,201.71",
"Housing, Communities & Local Government",DLUHC,10/12/2021,Agency Staff,CFO and Corporate,ALEXANDER MANN SOLUTIONS LTD,,Large,,,5106277887,Contingent Labour,Agency Staff,EC2N 3AQ,"4,431.36",
"Housing, Communities & Local Government",DLUHC,10/12/2021,Agency Staff,CFO and Corporate,ALEXANDER MANN SOLUTIONS LTD,,Large,,,5106277889,Contingent Labour,Agency Staff,EC2N 3AQ,"4,619.52",
"Housing, Communities & Local Government",DLUHC,10/12/2021,Agency Staff,CFO and Corporate,ALEXANDER MANN SOLUTIONS LTD,,Large,,,5106277890,Contingent Labour,Agency Staff,EC2N 3AQ,"7,391.16",
"Housing, Communities & Local Government",DLUHC,10/12/2021,Agency Staff,CFO and Corporate,ALEXANDER MANN SOLUTIONS LTD,,Large,,,5106277893,Contingent Labour,Agency Staff,EC2N 3AQ,"2,465.82",
"Housing, Communities & Local Government",DLUHC,10/12/2021,Agency Staff,CFO and Corporate,ALEXANDER MANN SOLUTIONS LTD,,Large,,,5106277894,Contingent Labour,Agency Staff,EC2N 3AQ,"13,861.20",
"Housing, Communities & Local Government",DLUHC,10/12/2021,Agency Staff,CFO and Corporate,ALEXANDER MANN SOLUTIONS LTD,,Large,,,5106277897,Contingent Labour,Agency Staff,EC2N 3AQ,"4,619.52",
"Housing, Communities & Local Government",DLUHC,10/12/2021,Agency Staff,CFO and Corporate,ALEXANDER MANN SOLUTIONS LTD,,Large,,,5106277898,Contingent Labour,Agency Staff,EC2N 3AQ,"4,003.56",
"Housing, Communities & Local Government",DLUHC,10/12/2021,Agency Staff,CFO and Corporate,ALEXANDER MANN SOLUTIONS LTD,,Large,,,5106277910,Contingent Labour,Agency Staff,EC2N 3AQ,"3,150.30",
"Housing, Communities & Local Government",DLUHC,10/12/2021,Agency Staff,Housing & Planning,ALEXANDER MANN SOLUTIONS LTD,,Large,,,5106277861,Contingent Labour,Agency Staff,EC2N 3AQ,"5,670.48",
"Housing, Communities & Local Government",DLUHC,10/12/2021,Agency Staff,Housing & Planning,ALEXANDER MANN SOLUTIONS LTD,,Large,,,5106277862,Contingent Labour,Agency Staff,EC2N 3AQ,"7,185.85",
"Housing, Communities & Local Government",DLUHC,10/12/2021,Agency Staff,Housing & Planning,ALEXANDER MANN SOLUTIONS LTD,,Large,,,5106277866,Contingent Labour,Agency Staff,EC2N 3AQ,"5,095.44",
"Housing, Communities & Local Government",DLUHC,10/12/2021,Agency Staff,Housing & Planning,ALEXANDER MANN SOLUTIONS LTD,,Large,,,5106277881,Contingent Labour,Agency Staff,EC2N 3AQ,"1,231.97",
"Housing, Communities & Local Government",DLUHC,10/12/2021,Agency Staff,Housing & Planning,ALEXANDER MANN SOLUTIONS LTD,,Large,,,5106277881,Contingent Labour,Agency Staff,EC2N 3AQ,"3,695.42",
"Housing, Communities & Local Government",DLUHC,10/12/2021,Agency Staff,Housing & Planning,ALEXANDER MANN SOLUTIONS LTD,,Large,,,5106277886,Contingent Labour,Agency Staff,EC2N 3AQ,"2,463.72",
"Housing, Communities & Local Government",DLUHC,10/12/2021,Agency Staff,Local Government Strategy and Analysis,ALEXANDER MANN SOLUTIONS LTD,,Large,,,5106277892,Contingent Labour,Agency Staff,EC2N 3AQ,"1,231.85",
"Housing, Communities & Local Government",DLUHC,10/12/2021,Agency Staff,Local Government Strategy and Analysis,ALEXANDER MANN SOLUTIONS LTD,,Large,,,5106277899,Contingent Labour,Agency Staff,EC2N 3AQ,"3,465.30",
"Housing, Communities & Local Government",DLUHC,10/12/2021,Agency Staff,Local Government Strategy and Analysis,ALEXANDER MANN SOLUTIONS LTD,,Large,,,5106277911,Contingent Labour,Agency Staff,EC2N 3AQ,"2,848.72",
"Housing, Communities & Local Government",DLUHC,10/12/2021,Agency Staff,Safer and Greener Buildings,ALEXANDER MANN SOLUTIONS LTD,,Large,,,5106277863,Contingent Labour,Agency Staff,EC2N 3AQ,"4,743.90",
"Housing, Communities & Local Government",DLUHC,10/12/2021,Agency Staff,Safer and Greener Buildings,ALEXANDER MANN SOLUTIONS LTD,,Large,,,5106277864,Contingent Labour,Agency Staff,EC2N 3AQ,487.56,
"Housing, Communities & Local Government",DLUHC,10/12/2021,Agency Staff,Safer and Greener Buildings,ALEXANDER MANN SOLUTIONS LTD,,Large,,,5106277865,Contingent Labour,Agency Staff,EC2N 3AQ,"4,644.36",
"Housing, Communities & Local Government",DLUHC,10/12/2021,Agency Staff,Safer and Greener Buildings,ALEXANDER MANN SOLUTIONS LTD,,Large,,,5106277868,Contingent Labour,Agency Staff,EC2N 3AQ,"3,780.36",
"Housing, Communities & Local Government",DLUHC,10/12/2021,Agency Staff,Safer and Greener Buildings,ALEXANDER MANN SOLUTIONS LTD,,Large,,,5106277871,Contingent Labour,Agency Staff,EC2N 3AQ,"2,771.66",
"Housing, Communities & Local Government",DLUHC,10/12/2021,Agency Staff,Safer and Greener Buildings,ALEXANDER MANN SOLUTIONS LTD,,Large,,,5106277901,Contingent Labour,Agency Staff,EC2N 3AQ,"19,041.88",
"Housing, Communities & Local Government",DLUHC,10/12/2021,Agency Staff,Safer and Greener Buildings,ALEXANDER MANN SOLUTIONS LTD,,Large,,,5106277904,Contingent Labour,Agency Staff,EC2N 3AQ,"1,663.02",
"Housing, Communities & Local Government",DLUHC,10/12/2021,Agency Staff,Safer and Greener Buildings,ALEXANDER MANN SOLUTIONS LTD,,Large,,,5106277906,Contingent Labour,Agency Staff,EC2N 3AQ,"1,847.76",
"Housing, Communities & Local Government",DLUHC,10/12/2021,Agency Staff,Stronger Places,ALEXANDER MANN SOLUTIONS LTD,,Large,,,5106277888,Contingent Labour,Agency Staff,EC2N 3AQ,654.90,
"Housing, Communities & Local Government",DLUHC,10/12/2021,Agency Staff,Stronger Places,ALEXANDER MANN SOLUTIONS LTD,,Large,,,5106277900,Contingent Labour,Agency Staff,EC2N 3AQ,"3,465.30",
"Housing, Communities & Local Government",DLUHC,10/12/2021,Cap Grants to Private Sector Companies,Safer and Greener Buildings,Stella Nova Mgt Services Ltd,,,,,3700126491,,Grant payable by the Exchequer,L20 4TZ,"85,917.00",Yes
"Housing, Communities & Local Government",DLUHC,10/12/2021,Catering,Housing & Planning,COMPASS GROUP UK & IRELAND LTD,,Large,,236753617,5106277844,Business Support,Planning Away Day - 14 November 2021,B45 9PZ,697.40,
"Housing, Communities & Local Government",DLUHC,10/12/2021,Current (non AEF) Grants to Local Authorities,Housing & Planning,GREATER LONDON AUTHORITY,,Large,,225353416,2100311841,,Communitiy housing fund,SE10 1AP,"2,000,000.00",Yes
"Housing, Communities & Local Government",DLUHC,10/12/2021,Current (non AEF) Grants to Local Authorities,Stronger Places,BIRMINGHAM CITY CNCL,,,,213780559,3700126487,,Grant payable by the Exchequer,B2 2AJ,"55,495.00",Yes
"Housing, Communities & Local Government",DLUHC,10/12/2021,Current (non AEF) Grants to Local Authorities,Stronger Places,BRIGHTON & HOVE CITY COUNCIL,,Large,,228455218,3700126468,,Grant payable by the Exchequer,BN1 3JE,"80,963.00",Yes
"Housing, Communities & Local Government",DLUHC,10/12/2021,Current (non AEF) Grants to Local Authorities,Stronger Places,BROMSGROVE DC,,,,236654745,3700126489,,Grant payable by the Exchequer,B60 1AA,"3,272.00",Yes
"Housing, Communities & Local Government",DLUHC,10/12/2021,Current (non AEF) Grants to Local Authorities,Stronger Places,BROXBOURNE BC,,Public Bodies,,239931918,3700126469,,Grant payable by the Exchequer,EN8 9XG,"34,185.00",Yes
"Housing, Communities & Local Government",DLUHC,10/12/2021,Current (non AEF) Grants to Local Authorities,Stronger Places,CASTLE POINT BC,,Public Bodies,,228217931,3700126484,,Grant payable by the Exchequer,SS7 1TF,"7,758.00",Yes
"Housing, Communities & Local Government",DLUHC,10/12/2021,Current (non AEF) Grants to Local Authorities,Stronger Places,CHERWELL DC,,,,,3700126477,,Grant payable by the Exchequer,OX15 4AA,"61,231.00",Yes
"Housing, Communities & Local Government",DLUHC,10/12/2021,Current (non AEF) Grants to Local Authorities,Stronger Places,CRAWLEY BC,,,,211222500,3700126466,,Grant payable by the Exchequer,RH10 1UZ,"21,370.00",Yes
"Housing, Communities & Local Government",DLUHC,10/12/2021,Current (non AEF) Grants to Local Authorities,Stronger Places,DONCASTER MBC,,,,,3700126480,,Grant payable by the Exchequer,DN1 3QA,"29,660.00",Yes
"Housing, Communities & Local Government",DLUHC,10/12/2021,Current (non AEF) Grants to Local Authorities,Stronger Places,EDEN DC (HSG),,,,,3700126483,,Grant payable by the Exchequer,CA11 7QF,"12,240.00",Yes
"Housing, Communities & Local Government",DLUHC,10/12/2021,Current (non AEF) Grants to Local Authorities,Stronger Places,FAREHAM BC,,,,228474144,3700126465,,Grant payable by the Exchequer,PO16 7PU,"54,734.00",Yes
"Housing, Communities & Local Government",DLUHC,10/12/2021,Current (non AEF) Grants to Local Authorities,Stronger Places,HAMBLETON DC (HSG),,,,503481319,3700126475,,Grant payable by the Exchequer,DL6 2UU,"50,525.00",Yes
"Housing, Communities & Local Government",DLUHC,10/12/2021,Current (non AEF) Grants to Local Authorities,Stronger Places,HARROW LB,,,,,3700126464,,Grant payable by the Exchequer,HA1 2UZ,"52,832.00",Yes
"Housing, Communities & Local Government",DLUHC,10/12/2021,Current (non AEF) Grants to Local Authorities,Stronger Places,MAIDSTONE BC,,Public Bodies,,293004214,3700126467,,Grant payable by the Exchequer,ME15 6JQ,"33,688.00",Yes
"Housing, Communities & Local Government",DLUHC,10/12/2021,Current Grants to Non Profit Bodies,Housing & Planning,NATIONAL CLT NETWORK,,Micro,,,2100311877,,Communitiy housing fund,SE1 4YR,"1,000,000.00",Yes
"Housing, Communities & Local Government",DLUHC,10/12/2021,ERDF Work in Progress � Capital,Stronger Places,CORNWALL COUNCIL,,Large,,,7700010156,,ERDF grant payment,TR1 3AY,"153,062.18",Yes
"Housing, Communities & Local Government",DLUHC,10/12/2021,ERDF Work in Progress � Capital,Stronger Places,SHEFFIELD HALLAM UNIVERSITY,,,,,7700010158,,ERDF grant payment,S1 1WB,"6,676.81",Yes
"Housing, Communities & Local Government",DLUHC,10/12/2021,ERDF Work in Progress � Capital,Stronger Places,UNIVERSITY OF KEELE,,,,,7700010035,,ERDF grant offset ,ST5 5BG,"-68,627.75",Yes
"Housing, Communities & Local Government",DLUHC,10/12/2021,ERDF Work in Progress � Capital,Stronger Places,UNIVERSITY SHEFFIELD,,Large,,,7700010159,,ERDF grant payment,S10 2TN,"185,322.02",Yes
"Housing, Communities & Local Government",DLUHC,10/12/2021,ERDF Work in Progress � Resource,Stronger Places,CORNWALL COUNCIL,,Large,,,7700010156,,ERDF grant payment,TR1 3AY,"15,398.61",Yes
"Housing, Communities & Local Government",DLUHC,10/12/2021,ERDF Work in Progress � Resource,Stronger Places,EAST RIDING OF YORKSHIRE COUNCIL,,,,,7700010153,,ERDF grant payment,HU17 9BA,"5,441.95",Yes
"Housing, Communities & Local Government",DLUHC,10/12/2021,ERDF Work in Progress � Resource,Stronger Places,LEICESTER CITY COUNCIL,,,,,7700010154,,ERDF grant payment,LE1 1FZ,"141,808.08",Yes
"Housing, Communities & Local Government",DLUHC,10/12/2021,ERDF Work in Progress � Resource,Stronger Places,LONDON SOUTH BANK UNIVERSITY,,,,,7700010157,,ERDF grant payment,SE1 0AA,"252,046.28",Yes
"Housing, Communities & Local Government",DLUHC,10/12/2021,ERDF Work in Progress � Resource,Stronger Places,LONDON TRAINING&EMPLOYMENT NETWORK,,,,,7700010152,,ERDF grant payment,N7 8QJ,"93,650.02",Yes
"Housing, Communities & Local Government",DLUHC,10/12/2021,ERDF Work in Progress � Resource,Stronger Places,MEDILINK EAST MIDLANDS,,Small,,,7700010160,,ERDF grant payment,NG1 1GF,"24,968.48",Yes
"Housing, Communities & Local Government",DLUHC,10/12/2021,ERDF Work in Progress � Resource,Stronger Places,SHEFFIELD HALLAM UNIVERSITY,,,,,7700010158,,ERDF grant payment,S1 1WB,"35,807.92",Yes
"Housing, Communities & Local Government",DLUHC,10/12/2021,ERDF Work in Progress � Resource,Stronger Places,SOMERSET COUNTY COUNCIL,,Micro,,,7700010155,,ERDF grant payment,TA1 4DY,"8,914.65",Yes
"Housing, Communities & Local Government",DLUHC,10/12/2021,ERDF Work in Progress � Resource,Stronger Places,UNIVERSITY OF KEELE,,,,,7700010035,,ERDF grant offset ,ST5 5BG,"-252,618.24",Yes
"Housing, Communities & Local Government",DLUHC,10/12/2021,ERDF Work in Progress � Resource,Stronger Places,UNIVERSITY SHEFFIELD,,Large,,,7700010159,,ERDF grant payment,S10 2TN,"65,527.47",Yes
"Housing, Communities & Local Government",DLUHC,10/12/2021,ERDF Work in Progress � Resource,Stronger Places,YTKO LIMITED,,Small,,,7700010151,,ERDF grant payment,CB6 1RA,"12,484.50",Yes
"Housing, Communities & Local Government",DLUHC,10/12/2021,EXP � PURCHASE OF GOODS /SERVICES R & D,Local Government Strategy and Analysis,COMMERCIAL EVALUATIONS LTD,,Micro,,,5106277845,Research,Licence Renewal,CM1 3JB,"4,750.00",
"Housing, Communities & Local Government",DLUHC,10/12/2021,"IT - PC, Network & Hardware",CFO and Corporate,Ballicom,,Medium,,,5106277916,ICT Hardware,3J2-00002 - Microsoft Wired Desktop 600,CV6 5SF,670.32,
"Housing, Communities & Local Government",DLUHC,10/12/2021,"IT - PC, Network & Hardware",CFO and Corporate,Ballicom,,Medium,,,5106277916,ICT Hardware,MDP2DPM M1M - StarTech.com 1m Mini Displ,CV6 5SF,273.67,
"Housing, Communities & Local Government",DLUHC,10/12/2021,"IT - PC, Network & Hardware",CFO and Corporate,Ballicom,,Medium,,,5106277916,ICT Hardware,PF3-00012 - Microsoft Surface Dock - Doc,CV6 5SF,"5,639.76",
"Housing, Communities & Local Government",DLUHC,10/12/2021,"IT - PC, Network & Hardware",CFO and Corporate,Ballicom,,Medium,,,5106277917,ICT Hardware,246B1/00 - Philips B Line 246B1 - LED monitor,CV6 5SF,"3,036.00",
"Housing, Communities & Local Government",DLUHC,10/12/2021,"IT - PC, Network & Hardware",CFO and Corporate,Ballicom,,Medium,,,5106277917,ICT Hardware,3J2-00002 - Microsoft Wired Desktop 600,CV6 5SF,31.92,
"Housing, Communities & Local Government",DLUHC,10/12/2021,"IT - PC, Network & Hardware",CFO and Corporate,Ballicom,,Medium,,,5106277917,ICT Hardware,MDP2DPM M1M - StarTech.com 1m Mini Displ,CV6 5SF,13.03,
"Housing, Communities & Local Government",DLUHC,10/12/2021,"IT - PC, Network & Hardware",CFO and Corporate,Ballicom,,Medium,,,5106277917,ICT Hardware,PF3-00012 - Microsoft Surface Dock - Doc,CV6 5SF,268.56,
"Housing, Communities & Local Government",DLUHC,10/12/2021,"IT - PC, Network & Hardware",CFO and Corporate,Ballicom,,Medium,,,5106277918,ICT Hardware,246B1/00 Philips B Line 246B1 - LED  monitor,CV6 5SF,"7,590.00",
"Housing, Communities & Local Government",DLUHC,10/12/2021,"IT - PC, Network & Hardware",CFO and Corporate,Ballicom,,Medium,,,5106277918,ICT Hardware,3J2-00002 - Microsoft Wired Desktop 600,CV6 5SF,"1,244.88",
"Housing, Communities & Local Government",DLUHC,10/12/2021,"IT - PC, Network & Hardware",CFO and Corporate,Ballicom,,Medium,,,5106277919,ICT Hardware,246B1/00 Philips B Line 246B1 - LED  monitor,CV6 5SF,"5,768.40",
"Housing, Communities & Local Government",DLUHC,10/12/2021,"IT - PC, Network & Hardware",CFO and Corporate,Ballicom,,Medium,,,5106277919,ICT Hardware,3J2-00002 - Microsoft Wired Desktop 600,CV6 5SF,"1,212.96",
"Housing, Communities & Local Government",DLUHC,10/12/2021,IT - Service Contracts,CFO and Corporate,ALEXANDER MANN SOLUTIONS LTD,,Large,,,5106277870,IT Managed / Outsourced Services,Agency Staff,EC2N 3AQ,"3,079.65",
"Housing, Communities & Local Government",DLUHC,10/12/2021,IT - Service Contracts,CFO and Corporate,ALEXANDER MANN SOLUTIONS LTD,,Large,,,5106277875,IT Managed / Outsourced Services,Agency Staff,EC2N 3AQ,"1,431.66",
"Housing, Communities & Local Government",DLUHC,10/12/2021,IT - Service Contracts,CFO and Corporate,ALEXANDER MANN SOLUTIONS LTD,,Large,,,5106277877,IT Managed / Outsourced Services,Agency Staff,EC2N 3AQ,"3,181.48",
"Housing, Communities & Local Government",DLUHC,10/12/2021,IT - Service Contracts,CFO and Corporate,ALEXANDER MANN SOLUTIONS LTD,,Large,,,5106277879,IT Managed / Outsourced Services,Agency Staff,EC2N 3AQ,"2,001.78",
"Housing, Communities & Local Government",DLUHC,10/12/2021,IT - Service Contracts,CFO and Corporate,ALEXANDER MANN SOLUTIONS LTD,,Large,,,5106277895,IT Managed / Outsourced Services,Agency Staff,EC2N 3AQ,"3,849.60",
"Housing, Communities & Local Government",DLUHC,10/12/2021,IT - Service Contracts,CFO and Corporate,ALEXANDER MANN SOLUTIONS LTD,,Large,,,5106277902,IT Managed / Outsourced Services,Agency Staff,EC2N 3AQ,"13,521.20",
"Housing, Communities & Local Government",DLUHC,10/12/2021,IT - Service Contracts,CFO and Corporate,ALEXANDER MANN SOLUTIONS LTD,,Large,,,5106277903,IT Managed / Outsourced Services,Agency Staff,EC2N 3AQ,"4,829.00",
"Housing, Communities & Local Government",DLUHC,10/12/2021,IT - Service Contracts,CFO and Corporate,ARCUS CLOUD SERVICES LTD,,Medium,,,5106277846,IT Managed / Outsourced Services,Datamart hosting to 31 December 2021,NG24 2AG,"15,345.00",
"Housing, Communities & Local Government",DLUHC,10/12/2021,IT - Service Contracts,CFO and Corporate,ARCUS CLOUD SERVICES LTD,,Medium,,,5106277853,IT Managed / Outsourced Services,Datamart hosting to 31 December 2021,NG24 2AG,"71,110.76",
"Housing, Communities & Local Government",DLUHC,10/12/2021,IT - Service Contracts,CFO and Corporate,ARCUS CLOUD SERVICES LTD,,Medium,,,5106277857,IT Managed / Outsourced Services,Datamart hosting to 31 December 2021,NG24 2AG,"9,253.49",
"Housing, Communities & Local Government",DLUHC,10/12/2021,IT - Service Contracts,CFO and Corporate,LITTLE FISH(UK)T/A LITTLE FISH,,Medium,,,5106277914,IT Managed / Outsourced Services,Servicedesk/Tier2 provision to Nov 2021,NG1 1LS,"93,618.46",
"Housing, Communities & Local Government",DLUHC,10/12/2021,IT - Service Contracts,CFO and Corporate,MADE TECH LTD,,Medium,,,5106277849,IT Managed / Outsourced Services,Technical architect and service mapping,EC2A 4NE,"9,800.00",
"Housing, Communities & Local Government",DLUHC,10/12/2021,IT - Service Contracts,CFO and Corporate,MADE TECH LTD,,Medium,,,5106277851,IT Managed / Outsourced Services,Technical architect and service mapping,EC2A 4NE,"74,495.00",
"Housing, Communities & Local Government",DLUHC,10/12/2021,IT - Service Contracts,Housing & Planning,ALEXANDER MANN SOLUTIONS LTD,,Large,,,5106277883,Contingent Labour,Agency Staff,EC2N 3AQ,"5,004.00",
"Housing, Communities & Local Government",DLUHC,10/12/2021,IT - Service Contracts,Housing & Planning,ALEXANDER MANN SOLUTIONS LTD,,Large,,,5106277884,Contingent Labour,Agency Staff,EC2N 3AQ,"8,625.24",
"Housing, Communities & Local Government",DLUHC,10/12/2021,Professional services,Local Government Strategy and Analysis,ALEXANDER MANN SOLUTIONS LTD,,Large,,,5106277908,Contingent Labour,Agency Staff,EC2N 3AQ,"1,118.56",
"Housing, Communities & Local Government",DLUHC,10/12/2021,Professional services,Safer and Greener Buildings,ALEXANDER MANN SOLUTIONS LTD,,Large,,,5106277872,Contingent Labour,Agency Staff,EC2N 3AQ,"1,757.38",
"Housing, Communities & Local Government",DLUHC,10/12/2021,Professional services,Safer and Greener Buildings,BUILDING RESEARCH ESTABLISHMENT,,Large,,896495033,5106277697,Research,Convention Groups,WD25 9XX,"6,452.80",
"Housing, Communities & Local Government",DLUHC,10/12/2021,Professional services,Safer and Greener Buildings,JACOBS UK LTD,,Large,,,5106277686,Financial,Technical Advisor Support New Contract,SE1 2QG,"141,218.70",
"Housing, Communities & Local Government",DLUHC,10/12/2021,Property/Estates Consultancy,Safer and Greener Buildings,BUILDING RESEARCH ESTABLISHMENT,,Large,,896495033,5106277859,Research,Termite Monitoring and Eradication- uplift the funding ,WD25 9XX,"3,574.00",
"Housing, Communities & Local Government",DLUHC,10/12/2021,Property/Estates Consultancy,Safer and Greener Buildings,BUILDING RESEARCH ESTABLISHMENT,,Large,,896495033,5106277913,Research,Termite Monitoring and Eradication- uplift the funding ,WD25 9XX,"6,652.00",
"Housing, Communities & Local Government",DLUHC,10/12/2021,Provision Utilisation Other,Safer and Greener Buildings,ALEXANDER MANN SOLUTIONS LTD,,Large,,,5106277896,Contingent Labour,Agency Staff,EC2N 3AQ,"2,835.24",
"Housing, Communities & Local Government",DLUHC,10/12/2021,Provision Utilisation Other,Safer and Greener Buildings,ALEXANDER MANN SOLUTIONS LTD,,Large,,,5106277907,Contingent Labour,Agency Staff,EC2N 3AQ,"2,340.55",
"Housing, Communities & Local Government",DLUHC,10/12/2021,Recruitment,CFO and Corporate,ALEXANDER MANN SOLUTIONS LTD,,Large,,,5106277891,Contingent Labour,Agency Staff,EC2N 3AQ,"2,887.75",
"Housing, Communities & Local Government",DLUHC,10/12/2021,Recruitment,Stronger Places,ALEXANDER MANN SOLUTIONS LTD,,Large,,,5106277905,Contingent Labour,Agency Staff,EC2N 3AQ,"2,438.05",
"Housing, Communities & Local Government",DLUHC,10/12/2021,Steady State Service Provision,Housing & Planning,EXELA TECHNOLOGIES LIMITED,,Large,,,5106277847,IT Managed / Outsourced Services,Right To Buy Agents Service,TW20 9AB,"23,037.47",
"Housing, Communities & Local Government",DLUHC,10/12/2021,Steady State Service Provision,Housing & Planning,LOCALITY,,Medium,,347998312,5106277920,Business Process Outsourcing Services,Neighbourhood Planning Technical Support - October 2021,N1 6DR,"204,430.46",
"Housing, Communities & Local Government",DLUHC,10/12/2021,Steady State Service Provision,Housing & Planning,LOCALITY,,Medium,,347998312,5106277921,Business Process Outsourcing Services,Neighbourhood Planning Fixed Costs - November 2021,N1 6DR,"34,722.23",
"Housing, Communities & Local Government",DLUHC,10/12/2021,Steady State Service Provision,Housing & Planning,LOCALITY,,Medium,,347998312,5106277922,Technical Services,Discounted Market Homes Technical Support - November 2021,N1 6DR,"176,284.36",
"Housing, Communities & Local Government",DLUHC,10/12/2021,Steady State Service Provision,Safer and Greener Buildings,CABINET OFFICE,,Large,,232159186,5106277855,IT Managed / Outsourced Services,GDS Platform as a service usage,FY5 3TA,"11,672.30",
"Housing, Communities & Local Government",DLUHC,10/12/2021,Training,Safer and Greener Buildings,KPMG LLP (CSL),,Large,,,5106277838,Development and Training,Civil Service Training,E14 5GL,"1,320.00",
"Housing, Communities & Local Government",DLUHC,10/12/2021,Translations,Safer and Greener Buildings,K INTERNATIONAL LTD,,,,,5106277912,Interpretation and Translation,Italian translation - 29 October,MK5 8PL,"2,128.04",
"Housing, Communities & Local Government",DLUHC,10/12/2021,Vehicle hire,CFO and Corporate,EDENRED (UK GROUP) LTD,,Large,,210186342,5106277843,Vehicle Hire and Lease,Cycle To Work 21/22,SW1V 2RS,"4,148.38",
"Housing, Communities & Local Government",DLUHC,10/12/2021,Vehicle hire,CFO and Corporate,EDENRED (UK GROUP) LTD,,Large,,210186342,5106277843,Vehicle Hire and Lease,non VAT element (the helmets),SW1V 2RS,58.95,
"Housing, Communities & Local Government",DLUHC,13/12/2021,Agency Staff,CFO and Corporate,ALEXANDER MANN SOLUTIONS LTD,,Large,,,5106277934,Contingent Labour,Agency Staff,EC2N 3AQ,"1,517.38",
"Housing, Communities & Local Government",DLUHC,13/12/2021,Cap Grants to Local Authorities (DEL),Housing & Planning,*DERBYSHIRE DALES DC,,,,211392311,2100311990,,Local Authority grant,DE4 3NN,"251,009.00",Yes
"Housing, Communities & Local Government",DLUHC,13/12/2021,Cap Grants to Local Authorities (DEL),Housing & Planning,CHESHIRE WEST & CHESTER COUNCIL,,Public Bodies,,,2100311988,,Local Authority grant,CH1 2NP,"696,797.00",Yes
"Housing, Communities & Local Government",DLUHC,13/12/2021,Cap Grants to Local Authorities (DEL),Housing & Planning,COLCHESTER BC,,,,232682773,2100311989,,Local Authority grant,CO1 1FR,"2,300,000.00",Yes
"Housing, Communities & Local Government",DLUHC,13/12/2021,Cap Grants to Local Authorities (DEL),Housing & Planning,LONDON BOROUGH OF CAMDEN,,Public Bodies,,211651836,2100311987,,Local Authority grant,WC1H 8NG,"474,000.00",Yes
"Housing, Communities & Local Government",DLUHC,13/12/2021,Cap Grants to Local Authorities (DEL),Housing & Planning,NEWARK & SHERWOOD DC,,,,236186755,2100311991,,Local Authority grant,NG24 1BY,"1,051,417.00",Yes
"Housing, Communities & Local Government",DLUHC,13/12/2021,Cap Grants to Local Authorities (DEL),Housing & Planning,REDCAR & CLEVELAND BC,,,,215175196,2100311992,,Local Authority grant,TS6 9AR,"687,955.00",Yes
"Housing, Communities & Local Government",DLUHC,13/12/2021,Current (non AEF) Grants to Local Authorities,CFO and Corporate,CUMBRIA COUNTY COUNCIL,,Public Bodies,,211316542,2100312017,,Local Digital Innovation,CA3 8NA,"400,000.00",Yes
"Housing, Communities & Local Government",DLUHC,13/12/2021,Current (non AEF) Grants to Local Authorities,Local Government Strategy and Analysis,SOUTH HOLLAND,,,,236445383,3700118998,,Surplus on account payable to the Exchequer,PE11 2XE,"-31,693.00",Yes
"Housing, Communities & Local Government",DLUHC,13/12/2021,Current (non AEF) Grants to Local Authorities,Stronger Places,LICHFIELD DC,,,,236780086,3700126479,,Grant payable by the Exchequer,WS13 6YX,"6,588.00",Yes
"Housing, Communities & Local Government",DLUHC,13/12/2021,Current (non AEF) Grants to Local Authorities,Stronger Places,MANCHESTER CITY CNCL (HSG),,,,211241393,3700126478,,Grant payable by the Exchequer,M60 2JR,"6,610.00",Yes
"Housing, Communities & Local Government",DLUHC,13/12/2021,Current (non AEF) Grants to Local Authorities,Stronger Places,NEWCASTLE UNDER LYME BC,,,,229894373,3700126488,,Grant payable by the Exchequer,ST5 2AG,"64,643.00",Yes
"Housing, Communities & Local Government",DLUHC,13/12/2021,Current (non AEF) Grants to Local Authorities,Stronger Places,NUNEATON & BEDWORTH BC,,Large,,,3700126481,,Grant payable by the Exchequer,CV11 5AA,"29,971.00",Yes
"Housing, Communities & Local Government",DLUHC,13/12/2021,Current (non AEF) Grants to Local Authorities,Stronger Places,PLYMOUTH CITY CNCL,,Public Bodies,,236416095,3700126482,,Grant payable by the Exchequer,PL1 2AA,"39,365.00",Yes
"Housing, Communities & Local Government",DLUHC,13/12/2021,Current (non AEF) Grants to Local Authorities,Stronger Places,ROCHFORD DISTRICT COUNCIL,,,,387828767,3700126476,,Grant payable by the Exchequer,SS4 1BW,"25,679.00",Yes
"Housing, Communities & Local Government",DLUHC,13/12/2021,Current (non AEF) Grants to Local Authorities,Stronger Places,RUGBY BOROUGH COUNCIL,,,,,3700126473,,Grant payable by the Exchequer,CV21 2RR,"18,268.00",Yes
"Housing, Communities & Local Government",DLUHC,13/12/2021,Current (non AEF) Grants to Local Authorities,Stronger Places,RUNNYMEDE BOROUGH COUNCIL,,,,232225722,3700126474,,Grant payable by the Exchequer,KT15 2AH,"6,999.00",Yes
"Housing, Communities & Local Government",DLUHC,13/12/2021,Current (non AEF) Grants to Local Authorities,Stronger Places,RUSHCLIFFE BOROUGH COUNCIL,,,,,3700126486,,Grant payable by the Exchequer,NG2 5FE,"18,995.00",Yes
"Housing, Communities & Local Government",DLUHC,13/12/2021,Current (non AEF) Grants to Local Authorities,Stronger Places,RUSHMOOR BC,,,,232607606,3700126471,,Grant payable by the Exchequer,GU14 7JU,"25,172.00",Yes
"Housing, Communities & Local Government",DLUHC,13/12/2021,Current (non AEF) Grants to Local Authorities,Stronger Places,SOLIHULL MBC,,,,,3700126472,,Grant payable by the Exchequer,B91 3QR,"57,960.00",Yes
"Housing, Communities & Local Government",DLUHC,13/12/2021,Current (non AEF) Grants to Local Authorities,Stronger Places,SOUTHAMPTON CITY CNCL,,,,216927475,3700126485,,Grant payable by the Exchequer,SO14 7LY,"192,994.00",Yes
"Housing, Communities & Local Government",DLUHC,13/12/2021,Current (non AEF) Grants to Local Authorities,Stronger Places,WEST OXFORDSHIRE DC,,,,210401379,3700126470,,Grant payable by the Exchequer,OX28 1NB,"4,679.00",Yes
"Housing, Communities & Local Government",DLUHC,13/12/2021,ERDF Work in Progress � Capital,Stronger Places,COUNCIL OF THE ISLES OF SCILLY,,Large,,,7700010165,,ERDF grant payment,TR21 0LW,"66,951.40",Yes
"Housing, Communities & Local Government",DLUHC,13/12/2021,ERDF Work in Progress � Capital,Stronger Places,EDEN GEOTHERMAL LTD,,,,,7700010167,,ERDF grant payment,PI24 2SG,"986,745.25",Yes
"Housing, Communities & Local Government",DLUHC,13/12/2021,ERDF Work in Progress � Capital,Stronger Places,LINCOLN UNIVERSITY,,Large,,,7700010164,,ERDF grant payment,LN6 7TS,"321,545.82",Yes
"Housing, Communities & Local Government",DLUHC,13/12/2021,ERDF Work in Progress � Capital,Stronger Places,PORTSMOUTH HIGHER EDUCATION CORPORA,,Large,,,7700010169,,ERDF grant payment,PO1 2UP,"34,202.92",Yes
"Housing, Communities & Local Government",DLUHC,13/12/2021,ERDF Work in Progress � Capital,Stronger Places,UNIVERSITY OF WOLVERHAMPTON,,,,,7700010168,,ERDF grant payment,WV1 1LY,"60,526.03",Yes
"Housing, Communities & Local Government",DLUHC,13/12/2021,ERDF Work in Progress � Resource,Stronger Places,COUNCIL OF THE ISLES OF SCILLY,,Large,,,7700010165,,ERDF grant payment,TR21 0LW,"73,266.88",Yes
"Housing, Communities & Local Government",DLUHC,13/12/2021,ERDF Work in Progress � Resource,Stronger Places,DURHAM COUNTY COUNCIL,,,,,7700010163,,ERDF grant payment,DH1 5UF,"14,862.58",Yes
"Housing, Communities & Local Government",DLUHC,13/12/2021,ERDF Work in Progress � Resource,Stronger Places,KING'S COLLEGE LONDON,,,,,7700010161,,ERDF grant payment,WC2R 2LS,"54,085.64",Yes
"Housing, Communities & Local Government",DLUHC,13/12/2021,ERDF Work in Progress � Resource,Stronger Places,LINCOLN UNIVERSITY,,Large,,,7700010164,,ERDF grant payment,LN6 7TS,"69,664.61",Yes
"Housing, Communities & Local Government",DLUHC,13/12/2021,ERDF Work in Progress � Resource,Stronger Places,PORTSMOUTH HIGHER EDUCATION CORPORA,,Large,,,7700010169,,ERDF grant payment,PO1 2UP,"20,958.72",Yes
"Housing, Communities & Local Government",DLUHC,13/12/2021,ERDF Work in Progress � Resource,Stronger Places,UNIVERSITY OF BATH,,,,,7700010166,,ERDF grant payment,BA 7AY,"54,887.24",Yes
"Housing, Communities & Local Government",DLUHC,13/12/2021,ERDF Work in Progress � Resource,Stronger Places,UNIVERSITY OF CENTRAL LANCASHIRE,,Large,,,7700010162,,ERDF grant payment,PR7 7DL,"83,802.06",Yes
"Housing, Communities & Local Government",DLUHC,13/12/2021,ERDF Work in Progress � Resource,Stronger Places,UNIVERSITY OF WOLVERHAMPTON,,,,,7700010168,,ERDF grant payment,WV1 1LY,"61,458.69",Yes
"Housing, Communities & Local Government",DLUHC,13/12/2021,EXP � PURCHASE OF GOODS /SERVICES R & D,Local Government Strategy and Analysis,ECORYS UK LTD,,Medium,,,5106277935,Technical Services,Data Accelerator Fund,B1 2RA,"33,604.80",
"Housing, Communities & Local Government",DLUHC,13/12/2021,"Furniture, Fittings and carpets",CFO and Corporate,21st CENTURY OFFICE CONCEPTS LTD,,Small,,,5106277440,"Furniture, Fixtures and Fittings",CV-19 Home Working Requirements - 7th Ex,SG12 0SS,"1,470.24",
"Housing, Communities & Local Government",DLUHC,13/12/2021,IT - Service Contracts,CFO and Corporate,ARCUS CLOUD SERVICES LTD,,Medium,,,5106277923,IT Managed / Outsourced Services,ITMP AWS Hosting,NG24 2AG,"7,827.65",
"Housing, Communities & Local Government",DLUHC,13/12/2021,Mobile phone costs,CFO and Corporate,GAMMA TELECOM LTD,,Large,,,5106277940,Telecoms,Mobile Telephony 1 year extension,EC4M 7RD,"10,651.26",
"Housing, Communities & Local Government",DLUHC,13/12/2021,Mobile phone costs,CFO and Corporate,GAMMA TELECOM LTD,,Large,,,5106277940,Telecoms,Running costs Non-VAT,EC4M 7RD,0.09,
"Housing, Communities & Local Government",DLUHC,13/12/2021,Online Database Information Retrieval,CFO and Corporate,DUN & BRADSTREET LTD,,Large,,229515499,5106277931,ICT Services,Dun & Bradstreet Credit Reporter / Finance Analytics Gold  2021-22,SL7 1AJ,"2,760.00",
"Housing, Communities & Local Government",DLUHC,13/12/2021,Professional services,Housing & Planning,VALUATION OFFICE AGENCY,,Public Bodies,,215253886,5106277936,Financial,Community Infrastructure Levy,W1D 5BU,"1,342.30",
"Housing, Communities & Local Government",DLUHC,13/12/2021,Professional services,Housing & Planning,VALUATION OFFICE AGENCY,,Public Bodies,,215253886,5106277939,Financial,Community Infrastructure Levy,W1D 5BU,"1,794.60",
"Housing, Communities & Local Government",DLUHC,13/12/2021,Provision Utilisation Other,Safer and Greener Buildings,MOORHOUSE CONSULTING LTD,,Large,,737971072,5106277945,Consultancy,Grenfell Tower Project - Variation 1,EC4A 3AG,"9,828.00",
"Housing, Communities & Local Government",DLUHC,13/12/2021,Provision Utilisation Other,Safer and Greener Buildings,MOORHOUSE CONSULTING LTD,,Large,,737971072,5106277946,Consultancy,Grenfell Tower Project - Variation 1,EC4A 3AG,"11,232.00",
"Housing, Communities & Local Government",DLUHC,13/12/2021,Publicity,Local Government Strategy and Analysis,PRESS ASSOCIATION,,Large,,217191704,5106277726,Advertising,Press Association News Wire 21/22,DN14 7YH,"2,470.00",
"Housing, Communities & Local Government",DLUHC,13/12/2021,Repayments of Private Sect Grant (Cap),Stronger Places,REALLY USEFUL PRODUCTS LTD,,Medium,,,2300003313,,RGF Grant Recovery 2112c Grant Recovery October 20,WF6 1TN,"-43,450.00",
"Housing, Communities & Local Government",DLUHC,13/12/2021,Repayments of Private Sect Grant (Cap),Stronger Places,REALLY USEFUL PRODUCTS LTD,,Medium,,,2300003328,,RGF Grant Recovery 2112c Grant Recovery November 2,WF6 1TN,"-43,450.00",
"Housing, Communities & Local Government",DLUHC,13/12/2021,Steady State Service Provision,Housing & Planning,LOCALITY,,Medium,,347998312,5106277924,Technical Services,Discounted Market Homes Technical Support - November 2021,N1 6DR,"8,514.17",
"Housing, Communities & Local Government",DLUHC,13/12/2021,Training,CFO and Corporate,KPMG LLP (CSL),,Large,,,5106277839,Development and Training,Civil Service Training,E14 5GL,"9,008.00",
"Housing, Communities & Local Government",DLUHC,14/12/2021,Cap Grants to Private Sector Companies,Safer and Greener Buildings,FHP Living Ltd,,,,,3700128827,,Grant payable by the Exchequer,NG1 2GB,"14,435.00",Yes
"Housing, Communities & Local Government",DLUHC,14/12/2021,Current (non AEF) Grants to Local Authorities,Local Government Strategy and Analysis,GREATER MANCHESTER COMBINED AUT,,,,,3700129213,,Grant payable by the Exchequer,M27 8US,"10,926,200.00",Yes
"Housing, Communities & Local Government",DLUHC,14/12/2021,Current (non AEF) Grants to Local Authorities,Stronger Places,ARUN DC,,,,211217668,3700126496,,Grant payable by the Exchequer,BN17 5LF,"28,931.00",Yes
"Housing, Communities & Local Government",DLUHC,14/12/2021,Current (non AEF) Grants to Local Authorities,Stronger Places,BATH & NE SOMERSET DC (HSG),,,,214502499,3700126505,,Grant payable by the Exchequer,BA1 5AW,"13,019.00",Yes
"Housing, Communities & Local Government",DLUHC,14/12/2021,Current (non AEF) Grants to Local Authorities,Stronger Places,CANNOCK CHASE DC,,,,215064770,3700126498,,Grant payable by the Exchequer,WS11 1BG,"49,419.00",Yes
"Housing, Communities & Local Government",DLUHC,14/12/2021,Current (non AEF) Grants to Local Authorities,Stronger Places,CITY OF WAKEFIELD MDC,,,,,3700126492,,Grant payable by the Exchequer,WF1 2QW,"29,590.00",Yes
"Housing, Communities & Local Government",DLUHC,14/12/2021,Current (non AEF) Grants to Local Authorities,Stronger Places,NORTH KESTEVEN DC,,,,,3700126495,,Grant payable by the Exchequer,NG34 7EF,"8,348.00",Yes
"Housing, Communities & Local Government",DLUHC,14/12/2021,Current (non AEF) Grants to Local Authorities,Stronger Places,SEDGEMOOR DC,,,,211204011,3700126502,,Grant payable by the Exchequer,TA6 3AR,"26,850.00",Yes
"Housing, Communities & Local Government",DLUHC,14/12/2021,Current (non AEF) Grants to Local Authorities,Stronger Places,SOUTH HAMS DC,,,,236445342,3700126493,,Grant payable by the Exchequer,TQ9 5NE,"37,718.00",Yes
"Housing, Communities & Local Government",DLUHC,14/12/2021,Current (non AEF) Grants to Local Authorities,Stronger Places,SOUTH LAKELAND DC,,Large,,236445466,3700126503,,Grant payable by the Exchequer,LA9 4DQ,"28,351.00",Yes
"Housing, Communities & Local Government",DLUHC,14/12/2021,Current (non AEF) Grants to Local Authorities,Stronger Places,SOUTH STAFFORDSHIRE DC,,,,210305155,3700126501,,Grant payable by the Exchequer,WV8 1PX,"19,973.00",Yes
"Housing, Communities & Local Government",DLUHC,14/12/2021,Current (non AEF) Grants to Local Authorities,Stronger Places,STEVENAGE BC,,,,236440186,3700126497,,Grant payable by the Exchequer,SG1 1HN,"40,180.00",Yes
"Housing, Communities & Local Government",DLUHC,14/12/2021,Current (non AEF) Grants to Local Authorities,Stronger Places,STRATFORD ON AVON DC,,,,227473881,3700126494,,Grant payable by the Exchequer,CV37 6HX,"34,752.00",Yes
"Housing, Communities & Local Government",DLUHC,14/12/2021,Current (non AEF) Grants to Local Authorities,Stronger Places,TORBAY BC,,,,,3700126499,,Grant payable by the Exchequer,TQ1 3DR,"12,420.00",Yes
"Housing, Communities & Local Government",DLUHC,14/12/2021,Current (non AEF) Grants to Local Authorities,Stronger Places,WALSALL MBC,,,,212515585,3700126506,,Grant payable by the Exchequer,WS1 1TW,"116,778.00",Yes
"Housing, Communities & Local Government",DLUHC,14/12/2021,Current (non AEF) Grants to Local Authorities,Stronger Places,WEST NORTHAMPTONSHIRE COUNCIL,,,,,3700126504,,Grant payable by the Exchequer,NN1 1ED,"39,535.00",Yes
"Housing, Communities & Local Government",DLUHC,14/12/2021,Current (non AEF) Grants to Local Authorities,Stronger Places,WEST SUFFOLK DC,,,,,3700126500,,Grant payable by the Exchequer,IP33 3YU,"14,085.00",Yes
"Housing, Communities & Local Government",DLUHC,14/12/2021,ERDF Work in Progress � Capital,Stronger Places,CORNWALL COUNCIL,,Large,,,7700010174,,ERDF grant payment,TR1 3AY,"459,246.91",Yes
"Housing, Communities & Local Government",DLUHC,14/12/2021,ERDF Work in Progress � Capital,Stronger Places,University of Leicester,,,,,7700010171,,ERDF grant payment,LE1 7RH,"114,460.68",Yes
"Housing, Communities & Local Government",DLUHC,14/12/2021,ERDF Work in Progress � Capital,Stronger Places,UNIVERSITY OF WOLVERHAMPTON,,,,,7700010170,,ERDF grant payment,WV1 1LY,"19,280.59",Yes
"Housing, Communities & Local Government",DLUHC,14/12/2021,ERDF Work in Progress � Resource,Stronger Places,MANCHESTER METROPOLITAN UNIVERSITY,,,,,7700010172,,ERDF grant payment,M15 6BH,"15,758.14",Yes
"Housing, Communities & Local Government",DLUHC,14/12/2021,ERDF Work in Progress � Resource,Stronger Places,University of Leicester,,,,,7700010171,,ERDF grant payment,LE1 7RH,"50,933.58",Yes
"Housing, Communities & Local Government",DLUHC,14/12/2021,ERDF Work in Progress � Resource,Stronger Places,UNIVERSITY OF WOLVERHAMPTON,,,,,7700010170,,ERDF grant payment,WV1 1LY,"71,141.07",Yes
"Housing, Communities & Local Government",DLUHC,14/12/2021,EXP � PURCHASE OF GOODS /SERVICES R & D,Local Government Strategy and Analysis,CM Monitor (Britain Thinks) Limited,,Medium,,,5106277991,Research,Building safety communications research,PL13 1PN,"6,600.00",
"Housing, Communities & Local Government",DLUHC,14/12/2021,"Furniture, Fittings and carpets",CFO and Corporate,DCLG GOVERNMENT PROCUREMENT CARD,,,,,1000005071,"Furniture, Fixtures and Fittings",Wrist rest/mouse/keyboard JS - RA,TN37 7GA,303.73,
"Housing, Communities & Local Government",DLUHC,14/12/2021,"IT - PC, Network & Hardware",CFO and Corporate,X M A LTD,,Large,,298484148,5106277987,ICT Hardware,MoG changes additional IT kit,NG11 7EP,"3,848.47",
"Housing, Communities & Local Government",DLUHC,14/12/2021,IT - Service Contracts,Housing & Planning,ALEXANDER MANN SOLUTIONS LTD,,Large,,,5106277954,Contingent Labour,Agency Staff,EC2N 3AQ,"4,545.30",
"Housing, Communities & Local Government",DLUHC,14/12/2021,IT - Service Contracts,Stronger Places,FUTURE FOX LTD,,Micro,,,5106277971,IT Managed / Outsourced Services,Oxford Cambridge Spatial Framework Engagement,W4 2LR,"13,551.68",
"Housing, Communities & Local Government",DLUHC,14/12/2021,Legal Fees,Stronger Places,TLT LLP,,Large,,739281603,5106277967,Legal,Legal Advice,BS1 6TP,"1,297.45",
"Housing, Communities & Local Government",DLUHC,14/12/2021,Legal Fees,Stronger Places,TLT LLP,,Large,,739281603,5106277978,Legal,Legal Advice,BS1 6TP,"1,567.75",
"Housing, Communities & Local Government",DLUHC,14/12/2021,Management Consultancy,Safer and Greener Buildings,CABINET OFFICE,,Large,,232159186,5106278008,Consultancy,Cabinet Office Complex Transactions - FM,FY5 3TA,"13,167.00",
"Housing, Communities & Local Government",DLUHC,14/12/2021,Management Consultancy,Safer and Greener Buildings,CABINET OFFICE,,Large,,232159186,5106278008,Consultancy,Cabinet Office Complex Transactions - FM,FY5 3TA,"5,586.00",
"Housing, Communities & Local Government",DLUHC,14/12/2021,Management Consultancy,Safer and Greener Buildings,CABINET OFFICE,,Large,,232159186,5106278009,Consultancy,Extension 2 to CTT Contract - FMI Prog Work,FY5 3TA,"-18,753.00",
"Housing, Communities & Local Government",DLUHC,14/12/2021,Professional services,Safer and Greener Buildings,MOTT MACDONALD LTD,,Large,,423676980,5106277968,Technical Services,Provision of Client Side Support Service,BN1 4FY,"21,941.90",
"Housing, Communities & Local Government",DLUHC,14/12/2021,Software Licences,CFO and Corporate,PHOENIX SOFTWARE LTD,,Large,,,5106277992,Software,For extra licences,YO42 1NS,"5,171.46",
"Housing, Communities & Local Government",DLUHC,14/12/2021,Training,CFO and Corporate,CABINET OFFICE,,Large,,232159186,5106277983,Development and Training,Civil Service Training,FY5 3TA,"90,000.00",
"Housing, Communities & Local Government",DLUHC,14/12/2021,Training,CFO and Corporate,KNOWLEDGEPOOL GROUP LIMITED,,Medium,,737096441,5106277994,Development and Training,Civil Service Training,RG1 8LS,"1,218.42",
"Housing, Communities & Local Government",DLUHC,14/12/2021,Utilisation of Provi - Cap Grant to LA,Safer and Greener Buildings,Deconstruct Uk Ltd,,Large,,220938653,5106277950,Construction Service Providers,FSafety works,WC2N 6DU,"1,813,471.36",
"Housing, Communities & Local Government",DLUHC,14/12/2021,Web Services,Local Government Strategy and Analysis,PULSION TECHNOLOGY LTD,,Small,,,5106277976,IT Managed / Outsourced Services,RTB & HTB site hosting cost for Pulsion,G4 9XA,474.00,
"Housing, Communities & Local Government",DLUHC,15/12/2021,Agency Staff,Housing & Planning,ALEXANDER MANN SOLUTIONS LTD,,Large,,,5106278001,Contingent Labour,Agency Staff,EC2N 3AQ,"10,055.64",
"Housing, Communities & Local Government",DLUHC,15/12/2021,Agency Staff,Housing & Planning,ALEXANDER MANN SOLUTIONS LTD,,Large,,,5106278002,Contingent Labour,Agency Staff,EC2N 3AQ,"10,773.90",
"Housing, Communities & Local Government",DLUHC,15/12/2021,Cap Grants to Local Authorities (DEL),Safer and Greener Buildings,HOMES ENGLAND,,Public Bodies,,215576860,2100312068,,Private Sector Building Safety Fund CDEL,NE11 0NA,"10,252,634.00",Yes
"Housing, Communities & Local Government",DLUHC,15/12/2021,Cap Grants to Local Authorities (DEL),Safer and Greener Buildings,HOMES ENGLAND,,Public Bodies,,215576860,2100312069,,Private Sector Cladding Fund (PSCRF) CDEL,NE11 0NA,"6,679,284.00",Yes
"Housing, Communities & Local Government",DLUHC,15/12/2021,Courier Services,CFO and Corporate,POSTURITE LTD,,Medium,,216832621,5106278017,Office Solutions,Varidesk- Delivery,BN26 6SZ,29.88,
"Housing, Communities & Local Government",DLUHC,15/12/2021,Current (non AEF) Grants to Local Authorities,Local Government Strategy and Analysis,ADUR DC,,,,227472891,3700127625,,Grant payable by the Exchequer,BN11 1HA,"10,022.00",Yes
"Housing, Communities & Local Government",DLUHC,15/12/2021,Current (non AEF) Grants to Local Authorities,Local Government Strategy and Analysis,ADUR DC,,,,227472891,3700128021,,Grant payable by the Exchequer,BN11 1HA,561.00,Yes
"Housing, Communities & Local Government",DLUHC,15/12/2021,Current (non AEF) Grants to Local Authorities,Local Government Strategy and Analysis,ADUR DC,,,,227472891,3700128177,,Grant payable by the Exchequer,BN11 1HA,"3,131.00",Yes
"Housing, Communities & Local Government",DLUHC,15/12/2021,Current (non AEF) Grants to Local Authorities,Local Government Strategy and Analysis,ADUR DC,,,,227472891,3700128391,,Grant payable by the Exchequer,BN11 1HA,"58,623.00",Yes
"Housing, Communities & Local Government",DLUHC,15/12/2021,Current (non AEF) Grants to Local Authorities,Local Government Strategy and Analysis,ADUR DC,,,,227472891,3700128614,,Grant payable by the Exchequer,BN11 1HA,"508,089.00",Yes
"Housing, Communities & Local Government",DLUHC,15/12/2021,Current (non AEF) Grants to Local Authorities,Local Government Strategy and Analysis,ALLERDALE BOROUGH COUNCIL,,,,230824120,3700127009,,Grant payable by the Exchequer,CA14 3YJ,"1,362.00",Yes
"Housing, Communities & Local Government",DLUHC,15/12/2021,Current (non AEF) Grants to Local Authorities,Local Government Strategy and Analysis,ALLERDALE BOROUGH COUNCIL,,,,230824120,3700127140,,Grant payable by the Exchequer,CA14 3YJ,631.00,Yes
"Housing, Communities & Local Government",DLUHC,15/12/2021,Current (non AEF) Grants to Local Authorities,Local Government Strategy and Analysis,ALLERDALE BOROUGH COUNCIL,,,,230824120,3700127188,,Grant payable by the Exchequer,CA14 3YJ,"135,690.00",Yes
"Housing, Communities & Local Government",DLUHC,15/12/2021,Current (non AEF) Grants to Local Authorities,Local Government Strategy and Analysis,ALLERDALE BOROUGH COUNCIL,,,,230824120,3700127190,,Grant payable by the Exchequer,CA14 3YJ,"20,756.00",Yes
"Housing, Communities & Local Government",DLUHC,15/12/2021,Current (non AEF) Grants to Local Authorities,Local Government Strategy and Analysis,ALLERDALE BOROUGH COUNCIL,,,,230824120,3700127264,,Grant payable by the Exchequer,CA14 3YJ,808.00,Yes
"Housing, Communities & Local Government",DLUHC,15/12/2021,Current (non AEF) Grants to Local Authorities,Local Government Strategy and Analysis,ALLERDALE BOROUGH COUNCIL,,,,230824120,3700127319,,Grant payable by the Exchequer,CA14 3YJ,"5,981.00",Yes
"Housing, Communities & Local Government",DLUHC,15/12/2021,Current (non AEF) Grants to Local Authorities,Local Government Strategy and Analysis,ALLERDALE BOROUGH COUNCIL,,,,230824120,3700128800,,Grant payable by the Exchequer,CA14 3YJ,"335,396.00",Yes
"Housing, Communities & Local Government",DLUHC,15/12/2021,Current (non AEF) Grants to Local Authorities,Local Government Strategy and Analysis,AMBER VALLEY BC,,,,,3700126536,,Grant payable by the Exchequer,DE5 3BT,475.00,Yes
"Housing, Communities & Local Government",DLUHC,15/12/2021,Current (non AEF) Grants to Local Authorities,Local Government Strategy and Analysis,AMBER VALLEY BC,,,,,3700126864,,Grant payable by the Exchequer,DE5 3BT,"120,952.00",Yes
"Housing, Communities & Local Government",DLUHC,15/12/2021,Current (non AEF) Grants to Local Authorities,Local Government Strategy and Analysis,AMBER VALLEY BC,,,,,3700126926,,Grant payable by the Exchequer,DE5 3BT,"1,209.00",Yes
"Housing, Communities & Local Government",DLUHC,15/12/2021,Current (non AEF) Grants to Local Authorities,Local Government Strategy and Analysis,AMBER VALLEY BC,,,,,3700128289,,Grant payable by the Exchequer,DE5 3BT,"5,780.00",Yes
"Housing, Communities & Local Government",DLUHC,15/12/2021,Current (non AEF) Grants to Local Authorities,Local Government Strategy and Analysis,AMBER VALLEY BC,,,,,3700128330,,Grant payable by the Exchequer,DE5 3BT,"13,621.00",Yes
"Housing, Communities & Local Government",DLUHC,15/12/2021,Current (non AEF) Grants to Local Authorities,Local Government Strategy and Analysis,AMBER VALLEY BC,,,,,3700128735,,Grant payable by the Exchequer,DE5 3BT,"264,518.00",Yes
"Housing, Communities & Local Government",DLUHC,15/12/2021,Current (non AEF) Grants to Local Authorities,Local Government Strategy and Analysis,ARUN DC,,,,211217668,3700126602,,Grant payable by the Exchequer,BN17 5LF,409.00,Yes
"Housing, Communities & Local Government",DLUHC,15/12/2021,Current (non AEF) Grants to Local Authorities,Local Government Strategy and Analysis,ARUN DC,,,,211217668,3700126884,,Grant payable by the Exchequer,BN17 5LF,"1,117.00",Yes
"Housing, Communities & Local Government",DLUHC,15/12/2021,Current (non AEF) Grants to Local Authorities,Local Government Strategy and Analysis,ARUN DC,,,,211217668,3700127015,,Grant payable by the Exchequer,BN17 5LF,"26,527.00",Yes
"Housing, Communities & Local Government",DLUHC,15/12/2021,Current (non AEF) Grants to Local Authorities,Local Government Strategy and Analysis,ARUN DC,,,,211217668,3700127680,,Grant payable by the Exchequer,BN17 5LF,"7,232.00",Yes
"Housing, Communities & Local Government",DLUHC,15/12/2021,Current (non AEF) Grants to Local Authorities,Local Government Strategy and Analysis,ARUN DC,,,,211217668,3700127805,,Grant payable by the Exchequer,BN17 5LF,"142,154.00",Yes
"Housing, Communities & Local Government",DLUHC,15/12/2021,Current (non AEF) Grants to Local Authorities,Local Government Strategy and Analysis,ARUN DC,,,,211217668,3700128611,,Grant payable by the Exchequer,BN17 5LF,"450,209.00",Yes
"Housing, Communities & Local Government",DLUHC,15/12/2021,Current (non AEF) Grants to Local Authorities,Local Government Strategy and Analysis,ASHFIELD DC,,,,235415296,3700127476,,Grant payable by the Exchequer,NG17 8DA,443.00,Yes
"Housing, Communities & Local Government",DLUHC,15/12/2021,Current (non AEF) Grants to Local Authorities,Local Government Strategy and Analysis,ASHFIELD DC,,,,235415296,3700127532,,Grant payable by the Exchequer,NG17 8DA,"83,445.00",Yes
"Housing, Communities & Local Government",DLUHC,15/12/2021,Current (non AEF) Grants to Local Authorities,Local Government Strategy and Analysis,ASHFIELD DC,,,,235415296,3700127597,,Grant payable by the Exchequer,NG17 8DA,"23,578.00",Yes
"Housing, Communities & Local Government",DLUHC,15/12/2021,Current (non AEF) Grants to Local Authorities,Local Government Strategy and Analysis,ASHFIELD DC,,,,235415296,3700127974,,Grant payable by the Exchequer,NG17 8DA,389.00,Yes
"Housing, Communities & Local Government",DLUHC,15/12/2021,Current (non AEF) Grants to Local Authorities,Local Government Strategy and Analysis,ASHFIELD DC,,,,235415296,3700128071,,Grant payable by the Exchequer,NG17 8DA,"5,090.00",Yes
"Housing, Communities & Local Government",DLUHC,15/12/2021,Current (non AEF) Grants to Local Authorities,Local Government Strategy and Analysis,ASHFIELD DC,,,,235415296,3700128562,,Grant payable by the Exchequer,NG17 8DA,"294,711.00",Yes
"Housing, Communities & Local Government",DLUHC,15/12/2021,Current (non AEF) Grants to Local Authorities,Local Government Strategy and Analysis,ASHFORD BC,,,,229467071,3700126665,,Grant payable by the Exchequer,TN23 1PL,876.00,Yes
"Housing, Communities & Local Government",DLUHC,15/12/2021,Current (non AEF) Grants to Local Authorities,Local Government Strategy and Analysis,ASHFORD BC,,,,229467071,3700127474,,Grant payable by the Exchequer,TN23 1PL,555.00,Yes
"Housing, Communities & Local Government",DLUHC,15/12/2021,Current (non AEF) Grants to Local Authorities,Local Government Strategy and Analysis,ASHFORD BC,,,,229467071,3700128055,,Grant payable by the Exchequer,TN23 1PL,735.00,Yes
"Housing, Communities & Local Government",DLUHC,15/12/2021,Current (non AEF) Grants to Local Authorities,Local Government Strategy and Analysis,ASHFORD BC,,,,229467071,3700128105,,Grant payable by the Exchequer,TN23 1PL,"6,777.00",Yes
"Housing, Communities & Local Government",DLUHC,15/12/2021,Current (non AEF) Grants to Local Authorities,Local Government Strategy and Analysis,ASHFORD BC,,,,229467071,3700128121,,Grant payable by the Exchequer,TN23 1PL,"128,106.00",Yes
"Housing, Communities & Local Government",DLUHC,15/12/2021,Current (non AEF) Grants to Local Authorities,Local Government Strategy and Analysis,ASHFORD BC,,,,229467071,3700128232,,Grant payable by the Exchequer,TN23 1PL,"21,553.00",Yes
"Housing, Communities & Local Government",DLUHC,15/12/2021,Current (non AEF) Grants to Local Authorities,Local Government Strategy and Analysis,ASHFORD BC,,,,229467071,3700128706,,Grant payable by the Exchequer,TN23 1PL,"273,324.00",Yes
"Housing, Communities & Local Government",DLUHC,15/12/2021,Current (non AEF) Grants to Local Authorities,Local Government Strategy and Analysis,AVON FIRE AUTHORITY,,,,424872570,3700126928,,Grant payable by the Exchequer,BS20 8JJ,"1,311.00",Yes
"Housing, Communities & Local Government",DLUHC,15/12/2021,Current (non AEF) Grants to Local Authorities,Local Government Strategy and Analysis,AVON FIRE AUTHORITY,,,,424872570,3700128143,,Grant payable by the Exchequer,BS20 8JJ,"46,787.00",Yes
"Housing, Communities & Local Government",DLUHC,15/12/2021,Current (non AEF) Grants to Local Authorities,Local Government Strategy and Analysis,AVON FIRE AUTHORITY,,,,424872570,3700128281,,Grant payable by the Exchequer,BS20 8JJ,"23,196.00",Yes
"Housing, Communities & Local Government",DLUHC,15/12/2021,Current (non AEF) Grants to Local Authorities,Local Government Strategy and Analysis,BABERGH DC,,,,232618405,3700127121,,Grant payable by the Exchequer,IP7 6SJ,667.00,Yes
"Housing, Communities & Local Government",DLUHC,15/12/2021,Current (non AEF) Grants to Local Authorities,Local Government Strategy and Analysis,BABERGH DC,,,,232618405,3700127317,,Grant payable by the Exchequer,IP7 6SJ,"100,849.00",Yes
"Housing, Communities & Local Government",DLUHC,15/12/2021,Current (non AEF) Grants to Local Authorities,Local Government Strategy and Analysis,BABERGH DC,,,,232618405,3700128035,,Grant payable by the Exchequer,IP7 6SJ,"4,975.00",Yes
"Housing, Communities & Local Government",DLUHC,15/12/2021,Current (non AEF) Grants to Local Authorities,Local Government Strategy and Analysis,BABERGH DC,,,,232618405,3700128180,,Grant payable by the Exchequer,IP7 6SJ,"14,526.00",Yes
"Housing, Communities & Local Government",DLUHC,15/12/2021,Current (non AEF) Grants to Local Authorities,Local Government Strategy and Analysis,BABERGH DC,,,,232618405,3700128354,,Grant payable by the Exchequer,IP7 6SJ,"2,578.00",Yes
"Housing, Communities & Local Government",DLUHC,15/12/2021,Current (non AEF) Grants to Local Authorities,Local Government Strategy and Analysis,BABERGH DC,,,,232618405,3700128762,,Grant payable by the Exchequer,IP7 6SJ,"341,973.00",Yes
"Housing, Communities & Local Government",DLUHC,15/12/2021,Current (non AEF) Grants to Local Authorities,Local Government Strategy and Analysis,BARKING & DAGENHAM LB,,Public Bodies,,227419488,3700127909,,Grant payable by the Exchequer,RM10 7BY,370.00,Yes
"Housing, Communities & Local Government",DLUHC,15/12/2021,Current (non AEF) Grants to Local Authorities,Local Government Strategy and Analysis,BARKING & DAGENHAM LB,,Public Bodies,,227419488,3700128372,,Grant payable by the Exchequer,RM10 7BY,"252,169.00",Yes
"Housing, Communities & Local Government",DLUHC,15/12/2021,Current (non AEF) Grants to Local Authorities,Local Government Strategy and Analysis,BARKING & DAGENHAM LB,,Public Bodies,,227419488,3700128506,,Grant payable by the Exchequer,RM10 7BY,"113,507.00",Yes
"Housing, Communities & Local Government",DLUHC,15/12/2021,Current (non AEF) Grants to Local Authorities,Local Government Strategy and Analysis,BARKING & DAGENHAM LB,,Public Bodies,,227419488,3700128825,,Grant payable by the Exchequer,RM10 7BY,"504,718.00",Yes
"Housing, Communities & Local Government",DLUHC,15/12/2021,Current (non AEF) Grants to Local Authorities,Local Government Strategy and Analysis,BARKING & DAGENHAM LB (HSG),,,,217142293,3700128875,,Grant payable by the Exchequer,RM10 7BY,"865,981.00",Yes
"Housing, Communities & Local Government",DLUHC,15/12/2021,Current (non AEF) Grants to Local Authorities,Local Government Strategy and Analysis,BARKING & DAGENHAM LB (HSG),,,,217142293,3700128919,,Grant payable by the Exchequer,RM10 7BY,"651,435.00",Yes
"Housing, Communities & Local Government",DLUHC,15/12/2021,Current (non AEF) Grants to Local Authorities,Local Government Strategy and Analysis,BARNET LBC,,,,211049507,3700127017,,Grant payable by the Exchequer,N11 1NP,"2,907.00",Yes
"Housing, Communities & Local Government",DLUHC,15/12/2021,Current (non AEF) Grants to Local Authorities,Local Government Strategy and Analysis,BARNET LBC,,,,211049507,3700127706,,Grant payable by the Exchequer,N11 1NP,"12,005.00",Yes
"Housing, Communities & Local Government",DLUHC,15/12/2021,Current (non AEF) Grants to Local Authorities,Local Government Strategy and Analysis,BARNET LBC,,,,211049507,3700128241,,Grant payable by the Exchequer,N11 1NP,"177,619.00",Yes
"Housing, Communities & Local Government",DLUHC,15/12/2021,Current (non AEF) Grants to Local Authorities,Local Government Strategy and Analysis,BARNET LBC,,,,211049507,3700128457,,Grant payable by the Exchequer,N11 1NP,"234,228.00",Yes
"Housing, Communities & Local Government",DLUHC,15/12/2021,Current (non AEF) Grants to Local Authorities,Local Government Strategy and Analysis,BARNET LBC,,,,211049507,3700128618,,Grant payable by the Exchequer,N11 1NP,"4,239,707.00",Yes
"Housing, Communities & Local Government",DLUHC,15/12/2021,Current (non AEF) Grants to Local Authorities,Local Government Strategy and Analysis,BARNSLEY MBC,,,,211178595,3700129036,,Grant payable by the Exchequer,S70 2AQ,"844,167.00",Yes
"Housing, Communities & Local Government",DLUHC,15/12/2021,Current (non AEF) Grants to Local Authorities,Local Government Strategy and Analysis,BARNSLEY MBC,,,,211178595,3700129151,,Grant payable by the Exchequer,S70 2AQ,"1,087,882.00",Yes
"Housing, Communities & Local Government",DLUHC,15/12/2021,Current (non AEF) Grants to Local Authorities,Local Government Strategy and Analysis,BARNSLEY MBC,,Public Bodies,,211178595,3700126656,,Grant payable by the Exchequer,S70 2AQ,"10,206.00",Yes
"Housing, Communities & Local Government",DLUHC,15/12/2021,Current (non AEF) Grants to Local Authorities,Local Government Strategy and Analysis,BARNSLEY MBC,,Public Bodies,,211178595,3700126892,,Grant payable by the Exchequer,S70 2AQ,"1,100.00",Yes
"Housing, Communities & Local Government",DLUHC,15/12/2021,Current (non AEF) Grants to Local Authorities,Local Government Strategy and Analysis,BARNSLEY MBC,,Public Bodies,,211178595,3700127781,,Grant payable by the Exchequer,S70 2AQ,"242,707.00",Yes
"Housing, Communities & Local Government",DLUHC,15/12/2021,Current (non AEF) Grants to Local Authorities,Local Government Strategy and Analysis,BARNSLEY MBC,,Public Bodies,,211178595,3700127806,,Grant payable by the Exchequer,S70 2AQ,"244,396.00",Yes
"Housing, Communities & Local Government",DLUHC,15/12/2021,Current (non AEF) Grants to Local Authorities,Local Government Strategy and Analysis,BARNSLEY MBC,,Public Bodies,,211178595,3700128781,,Grant payable by the Exchequer,S70 2AQ,"182,849.00",Yes
"Housing, Communities & Local Government",DLUHC,15/12/2021,Current (non AEF) Grants to Local Authorities,Local Government Strategy and Analysis,BARROW BC,,,,295632913,3700127229,,Grant payable by the Exchequer,LA14 2LD,"16,109.00",Yes
"Housing, Communities & Local Government",DLUHC,15/12/2021,Current (non AEF) Grants to Local Authorities,Local Government Strategy and Analysis,BARROW BC,,,,295632913,3700127453,,Grant payable by the Exchequer,LA14 2LD,"2,779.00",Yes
"Housing, Communities & Local Government",DLUHC,15/12/2021,Current (non AEF) Grants to Local Authorities,Local Government Strategy and Analysis,BARROW BC,,,,295632913,3700127896,,Grant payable by the Exchequer,LA14 2LD,"54,777.00",Yes
"Housing, Communities & Local Government",DLUHC,15/12/2021,Current (non AEF) Grants to Local Authorities,Local Government Strategy and Analysis,BARROW BC,,,,295632913,3700128683,,Grant payable by the Exchequer,LA14 2LD,"83,192.00",Yes
"Housing, Communities & Local Government",DLUHC,15/12/2021,Current (non AEF) Grants to Local Authorities,Local Government Strategy and Analysis,BASILDON DC,,,,,3700126671,,Grant payable by the Exchequer,SS14 0DF,"22,004.00",Yes
"Housing, Communities & Local Government",DLUHC,15/12/2021,Current (non AEF) Grants to Local Authorities,Local Government Strategy and Analysis,BASILDON DC,,,,,3700126900,,Grant payable by the Exchequer,SS14 0DF,"146,695.00",Yes
"Housing, Communities & Local Government",DLUHC,15/12/2021,Current (non AEF) Grants to Local Authorities,Local Government Strategy and Analysis,BASILDON DC,,,,,3700126977,,Grant payable by the Exchequer,SS14 0DF,425.00,Yes
"Housing, Communities & Local Government",DLUHC,15/12/2021,Current (non AEF) Grants to Local Authorities,Local Government Strategy and Analysis,BASILDON DC,,,,,3700128242,,Grant payable by the Exchequer,SS14 0DF,"12,100.00",Yes
"Housing, Communities & Local Government",DLUHC,15/12/2021,Current (non AEF) Grants to Local Authorities,Local Government Strategy and Analysis,BASILDON DC,,,,,3700128737,,Grant payable by the Exchequer,SS14 0DF,"1,100,499.00",Yes
"Housing, Communities & Local Government",DLUHC,15/12/2021,Current (non AEF) Grants to Local Authorities,Local Government Strategy and Analysis,BASINGSTOKE & DEANE BC,,,,228328506,3700126658,,Grant payable by the Exchequer,RG21 2AJ,822.00,Yes
"Housing, Communities & Local Government",DLUHC,15/12/2021,Current (non AEF) Grants to Local Authorities,Local Government Strategy and Analysis,BASINGSTOKE & DEANE BC,,,,228328506,3700127173,,Grant payable by the Exchequer,RG21 2AJ,728.00,Yes
"Housing, Communities & Local Government",DLUHC,15/12/2021,Current (non AEF) Grants to Local Authorities,Local Government Strategy and Analysis,BASINGSTOKE & DEANE BC,,,,228328506,3700127250,,Grant payable by the Exchequer,RG21 2AJ,"9,224.00",Yes
"Housing, Communities & Local Government",DLUHC,15/12/2021,Current (non AEF) Grants to Local Authorities,Local Government Strategy and Analysis,BASINGSTOKE & DEANE BC,,,,228328506,3700127566,,Grant payable by the Exchequer,RG21 2AJ,"10,576.00",Yes
"Housing, Communities & Local Government",DLUHC,15/12/2021,Current (non AEF) Grants to Local Authorities,Local Government Strategy and Analysis,BASINGSTOKE & DEANE BC,,,,228328506,3700127872,,Grant payable by the Exchequer,RG21 2AJ,"2,826.00",Yes
"Housing, Communities & Local Government",DLUHC,15/12/2021,Current (non AEF) Grants to Local Authorities,Local Government Strategy and Analysis,BASINGSTOKE & DEANE BC,,,,228328506,3700128189,,Grant payable by the Exchequer,RG21 2AJ,"80,763.00",Yes
"Housing, Communities & Local Government",DLUHC,15/12/2021,Current (non AEF) Grants to Local Authorities,Local Government Strategy and Analysis,BASINGSTOKE & DEANE BC,,,,228328506,3700128554,,Grant payable by the Exchequer,RG21 2AJ,"1,149,156.00",Yes
"Housing, Communities & Local Government",DLUHC,15/12/2021,Current (non AEF) Grants to Local Authorities,Local Government Strategy and Analysis,BASSETLAW DC,,,,230225054,3700126686,,Grant payable by the Exchequer,S80 2AH,"1,000.00",Yes
"Housing, Communities & Local Government",DLUHC,15/12/2021,Current (non AEF) Grants to Local Authorities,Local Government Strategy and Analysis,BASSETLAW DC,,,,230225054,3700126695,,Grant payable by the Exchequer,S80 2AH,"1,129.00",Yes
"Housing, Communities & Local Government",DLUHC,15/12/2021,Current (non AEF) Grants to Local Authorities,Local Government Strategy and Analysis,BASSETLAW DC,,,,230225054,3700127603,,Grant payable by the Exchequer,S80 2AH,"114,930.00",Yes
"Housing, Communities & Local Government",DLUHC,15/12/2021,Current (non AEF) Grants to Local Authorities,Local Government Strategy and Analysis,BASSETLAW DC,,,,230225054,3700127942,,Grant payable by the Exchequer,S80 2AH,"5,934.00",Yes
"Housing, Communities & Local Government",DLUHC,15/12/2021,Current (non AEF) Grants to Local Authorities,Local Government Strategy and Analysis,BASSETLAW DC,,,,230225054,3700128296,,Grant payable by the Exchequer,S80 2AH,"24,524.00",Yes
"Housing, Communities & Local Government",DLUHC,15/12/2021,Current (non AEF) Grants to Local Authorities,Local Government Strategy and Analysis,BASSETLAW DC,,,,230225054,3700128542,,Grant payable by the Exchequer,S80 2AH,"120,278.00",Yes
"Housing, Communities & Local Government",DLUHC,15/12/2021,Current (non AEF) Grants to Local Authorities,Local Government Strategy and Analysis,BATH & NE SOMERSET DC (HSG),,,,214502499,3700129003,,Grant payable by the Exchequer,BA1 5AW,"396,556.00",Yes
"Housing, Communities & Local Government",DLUHC,15/12/2021,Current (non AEF) Grants to Local Authorities,Local Government Strategy and Analysis,BATH & NE SOMERSET DC (HSG),,,,214502499,3700129174,,Grant payable by the Exchequer,BA1 5AW,"355,092.00",Yes
"Housing, Communities & Local Government",DLUHC,15/12/2021,Current (non AEF) Grants to Local Authorities,Local Government Strategy and Analysis,BATH & NORTH EAST SOMERSET DC,,,,214502499,3700126998,,Grant payable by the Exchequer,BA1 5AW,"1,458.00",Yes
"Housing, Communities & Local Government",DLUHC,15/12/2021,Current (non AEF) Grants to Local Authorities,Local Government Strategy and Analysis,BATH & NORTH EAST SOMERSET DC,,,,214502499,3700127120,,Grant payable by the Exchequer,BA1 5AW,"438,133.00",Yes
"Housing, Communities & Local Government",DLUHC,15/12/2021,Current (non AEF) Grants to Local Authorities,Local Government Strategy and Analysis,BATH & NORTH EAST SOMERSET DC,,,,214502499,3700127135,,Grant payable by the Exchequer,BA1 5AW,"4,456.00",Yes
"Housing, Communities & Local Government",DLUHC,15/12/2021,Current (non AEF) Grants to Local Authorities,Local Government Strategy and Analysis,BATH & NORTH EAST SOMERSET DC,,,,214502499,3700127808,,Grant payable by the Exchequer,BA1 5AW,"2,321.00",Yes
"Housing, Communities & Local Government",DLUHC,15/12/2021,Current (non AEF) Grants to Local Authorities,Local Government Strategy and Analysis,BATH & NORTH EAST SOMERSET DC,,,,214502499,3700128244,,Grant payable by the Exchequer,BA1 5AW,"93,984.00",Yes
"Housing, Communities & Local Government",DLUHC,15/12/2021,Current (non AEF) Grants to Local Authorities,Local Government Strategy and Analysis,BATH & NORTH EAST SOMERSET DC,,,,214502499,3700128266,,Grant payable by the Exchequer,BA1 5AW,"28,134.00",Yes
"Housing, Communities & Local Government",DLUHC,15/12/2021,Current (non AEF) Grants to Local Authorities,Local Government Strategy and Analysis,BATH & NORTH EAST SOMERSET DC,,,,214502499,3700128733,,Grant payable by the Exchequer,BA1 5AW,"805,071.00",Yes
"Housing, Communities & Local Government",DLUHC,15/12/2021,Current (non AEF) Grants to Local Authorities,Local Government Strategy and Analysis,BEDFORD BOROUGH COUNCIL,,,,211166889,3700126527,,Grant payable by the Exchequer,MK40 1SJ,"180,127.00",Yes
"Housing, Communities & Local Government",DLUHC,15/12/2021,Current (non AEF) Grants to Local Authorities,Local Government Strategy and Analysis,BEDFORD BOROUGH COUNCIL,,,,211166889,3700126836,,Grant payable by the Exchequer,MK40 1SJ,"1,381.00",Yes
"Housing, Communities & Local Government",DLUHC,15/12/2021,Current (non AEF) Grants to Local Authorities,Local Government Strategy and Analysis,BEDFORD BOROUGH COUNCIL,,,,211166889,3700127002,,Grant payable by the Exchequer,MK40 1SJ,315.00,Yes
"Housing, Communities & Local Government",DLUHC,15/12/2021,Current (non AEF) Grants to Local Authorities,Local Government Strategy and Analysis,BEDFORD BOROUGH COUNCIL,,,,211166889,3700127473,,Grant payable by the Exchequer,MK40 1SJ,699.00,Yes
"Housing, Communities & Local Government",DLUHC,15/12/2021,Current (non AEF) Grants to Local Authorities,Local Government Strategy and Analysis,BEDFORD BOROUGH COUNCIL,,,,211166889,3700127871,,Grant payable by the Exchequer,MK40 1SJ,"10,573.00",Yes
"Housing, Communities & Local Government",DLUHC,15/12/2021,Current (non AEF) Grants to Local Authorities,Local Government Strategy and Analysis,BEDFORD BOROUGH COUNCIL,,,,211166889,3700128126,,Grant payable by the Exchequer,MK40 1SJ,"157,103.00",Yes
"Housing, Communities & Local Government",DLUHC,15/12/2021,Current (non AEF) Grants to Local Authorities,Local Government Strategy and Analysis,BEDFORD BOROUGH COUNCIL,,,,211166889,3700128576,,Grant payable by the Exchequer,MK40 1SJ,"315,002.00",Yes
"Housing, Communities & Local Government",DLUHC,15/12/2021,Current (non AEF) Grants to Local Authorities,Local Government Strategy and Analysis,BEDFORD UNITARY AUTHORITY,,,,225682160,3700129158,,Grant payable by the Exchequer,MK40 1SJ,"275,382.00",Yes
"Housing, Communities & Local Government",DLUHC,15/12/2021,Current (non AEF) Grants to Local Authorities,Local Government Strategy and Analysis,BEDFORD UNITARY AUTHORITY,,,,225682160,3700129199,,Grant payable by the Exchequer,MK40 1SJ,"284,528.00",Yes
"Housing, Communities & Local Government",DLUHC,15/12/2021,Current (non AEF) Grants to Local Authorities,Local Government Strategy and Analysis,BEDS & LUTON FIRE & RESCUE SERVICE,,,,387821283,3700126886,,Grant payable by the Exchequer,MK42 7NR,"27,118.00",Yes
"Housing, Communities & Local Government",DLUHC,15/12/2021,Current (non AEF) Grants to Local Authorities,Local Government Strategy and Analysis,BEDS & LUTON FIRE & RESCUE SERVICE,,,,387821283,3700127327,,Grant payable by the Exchequer,MK42 7NR,"13,136.00",Yes
"Housing, Communities & Local Government",DLUHC,15/12/2021,Current (non AEF) Grants to Local Authorities,Local Government Strategy and Analysis,BEDS & LUTON FIRE & RESCUE SERVICE,,,,387821283,3700128436,,Grant payable by the Exchequer,MK42 7NR,777.00,Yes
"Housing, Communities & Local Government",DLUHC,15/12/2021,Current (non AEF) Grants to Local Authorities,Local Government Strategy and Analysis,BEXLEY LB,,,,,3700126720,,Grant payable by the Exchequer,DA8 1TL,"174,843.00",Yes
"Housing, Communities & Local Government",DLUHC,15/12/2021,Current (non AEF) Grants to Local Authorities,Local Government Strategy and Analysis,BEXLEY LB,,,,,3700126927,,Grant payable by the Exchequer,DA8 1TL,"122,623.00",Yes
"Housing, Communities & Local Government",DLUHC,15/12/2021,Current (non AEF) Grants to Local Authorities,Local Government Strategy and Analysis,BEXLEY LB,,,,,3700127804,,Grant payable by the Exchequer,DA8 1TL,619.00,Yes
"Housing, Communities & Local Government",DLUHC,15/12/2021,Current (non AEF) Grants to Local Authorities,Local Government Strategy and Analysis,BEXLEY LB,,,,,3700127878,,Grant payable by the Exchequer,DA8 1TL,"5,736.00",Yes
"Housing, Communities & Local Government",DLUHC,15/12/2021,Current (non AEF) Grants to Local Authorities,Local Government Strategy and Analysis,BEXLEY LB,,,,,3700128823,,Grant payable by the Exchequer,DA8 1TL,"869,974.00",Yes
"Housing, Communities & Local Government",DLUHC,15/12/2021,Current (non AEF) Grants to Local Authorities,Local Government Strategy and Analysis,BEXLEY LB (HSG),,,,,3700129068,,Grant payable by the Exchequer,DA8 1TL,"480,077.00",Yes
"Housing, Communities & Local Government",DLUHC,15/12/2021,Current (non AEF) Grants to Local Authorities,Local Government Strategy and Analysis,BEXLEY LB (HSG),,,,,3700129085,,Grant payable by the Exchequer,DA8 1TL,"535,114.00",Yes
"Housing, Communities & Local Government",DLUHC,15/12/2021,Current (non AEF) Grants to Local Authorities,Local Government Strategy and Analysis,BIRMINGHAM CITY CNCL,,,,213780559,3700129069,,Grant payable by the Exchequer,B2 2AJ,"4,156,051.00",Yes
"Housing, Communities & Local Government",DLUHC,15/12/2021,Current (non AEF) Grants to Local Authorities,Local Government Strategy and Analysis,BIRMINGHAM CITY CNCL,,,,213780559,3700129104,,Grant payable by the Exchequer,B2 2AJ,"5,493,223.00",Yes
"Housing, Communities & Local Government",DLUHC,15/12/2021,Current (non AEF) Grants to Local Authorities,Local Government Strategy and Analysis,BIRMINGHAM CITY CNCL,,,,213780559,3700126858,,Grant payable by the Exchequer,B3 3AB,"1,607,262.00",Yes
"Housing, Communities & Local Government",DLUHC,15/12/2021,Current (non AEF) Grants to Local Authorities,Local Government Strategy and Analysis,BIRMINGHAM CITY CNCL,,,,213780559,3700126956,,Grant payable by the Exchequer,B3 3AB,"45,734.00",Yes
"Housing, Communities & Local Government",DLUHC,15/12/2021,Current (non AEF) Grants to Local Authorities,Local Government Strategy and Analysis,BIRMINGHAM CITY CNCL,,,,213780559,3700128201,,Grant payable by the Exchequer,B3 3AB,"141,495.00",Yes
"Housing, Communities & Local Government",DLUHC,15/12/2021,Current (non AEF) Grants to Local Authorities,Local Government Strategy and Analysis,BIRMINGHAM CITY CNCL,,,,213780559,3700128256,,Grant payable by the Exchequer,B3 3AB,"2,615,083.00",Yes
"Housing, Communities & Local Government",DLUHC,15/12/2021,Current (non AEF) Grants to Local Authorities,Local Government Strategy and Analysis,BIRMINGHAM CITY CNCL,,,,213780559,3700128607,,Grant payable by the Exchequer,B3 3AB,"7,310,198.00",Yes
"Housing, Communities & Local Government",DLUHC,15/12/2021,Current (non AEF) Grants to Local Authorities,Local Government Strategy and Analysis,BLABY DC,,,,,3700126742,,Grant payable by the Exchequer,LE9 5EP,"23,210.00",Yes
"Housing, Communities & Local Government",DLUHC,15/12/2021,Current (non AEF) Grants to Local Authorities,Local Government Strategy and Analysis,BLABY DC,,,,,3700127507,,Grant payable by the Exchequer,LE9 5EP,"4,308.00",Yes
"Housing, Communities & Local Government",DLUHC,15/12/2021,Current (non AEF) Grants to Local Authorities,Local Government Strategy and Analysis,BLABY DC,,,,,3700127584,,Grant payable by the Exchequer,LE9 5EP,350.00,Yes
"Housing, Communities & Local Government",DLUHC,15/12/2021,Current (non AEF) Grants to Local Authorities,Local Government Strategy and Analysis,BLABY DC,,,,,3700127831,,Grant payable by the Exchequer,LE9 5EP,"60,103.00",Yes
"Housing, Communities & Local Government",DLUHC,15/12/2021,Current (non AEF) Grants to Local Authorities,Local Government Strategy and Analysis,BLABY DC,,,,,3700128679,,Grant payable by the Exchequer,LE9 5EP,"184,199.00",Yes
"Housing, Communities & Local Government",DLUHC,15/12/2021,Current (non AEF) Grants to Local Authorities,Local Government Strategy and Analysis,BLACKBURN WITH DARWEN BC,,,,,3700129019,,Grant payable by the Exchequer,BB1 7DY,"675,272.00",Yes
"Housing, Communities & Local Government",DLUHC,15/12/2021,Current (non AEF) Grants to Local Authorities,Local Government Strategy and Analysis,BLACKBURN WITH DARWEN BC,,,,,3700129083,,Grant payable by the Exchequer,BB1 7DY,"545,917.00",Yes
"Housing, Communities & Local Government",DLUHC,15/12/2021,Current (non AEF) Grants to Local Authorities,Local Government Strategy and Analysis,BLACKBURN WITH DARWEN BC,,,,,3700126571,,Grant payable by the Exchequer,BB1 7DY,"194,604.00",Yes
"Housing, Communities & Local Government",DLUHC,15/12/2021,Current (non AEF) Grants to Local Authorities,Local Government Strategy and Analysis,BLACKBURN WITH DARWEN BC,,,,,3700127089,,Grant payable by the Exchequer,BB1 7DY,"2,733.00",Yes
"Housing, Communities & Local Government",DLUHC,15/12/2021,Current (non AEF) Grants to Local Authorities,Local Government Strategy and Analysis,BLACKBURN WITH DARWEN BC,,,,,3700127459,,Grant payable by the Exchequer,BB1 7DY,"236,977.00",Yes
"Housing, Communities & Local Government",DLUHC,15/12/2021,Current (non AEF) Grants to Local Authorities,Local Government Strategy and Analysis,BLACKBURN WITH DARWEN BC,,,,,3700128048,,Grant payable by the Exchequer,BB1 7DY,"1,289.00",Yes
"Housing, Communities & Local Government",DLUHC,15/12/2021,Current (non AEF) Grants to Local Authorities,Local Government Strategy and Analysis,BLACKBURN WITH DARWEN BC,,,,,3700128315,,Grant payable by the Exchequer,BB1 7DY,859.00,Yes
"Housing, Communities & Local Government",DLUHC,15/12/2021,Current (non AEF) Grants to Local Authorities,Local Government Strategy and Analysis,BLACKBURN WITH DARWEN BC,,,,,3700128577,,Grant payable by the Exchequer,BB1 7DY,"603,081.00",Yes
"Housing, Communities & Local Government",DLUHC,15/12/2021,Current (non AEF) Grants to Local Authorities,Local Government Strategy and Analysis,BLACKPOOL BC,,,,,3700128899,,Grant payable by the Exchequer,FY1 1NA,"879,593.00",Yes
"Housing, Communities & Local Government",DLUHC,15/12/2021,Current (non AEF) Grants to Local Authorities,Local Government Strategy and Analysis,BLACKPOOL BC,,,,,3700128997,,Grant payable by the Exchequer,FY1 1NA,"668,060.00",Yes
"Housing, Communities & Local Government",DLUHC,15/12/2021,Current (non AEF) Grants to Local Authorities,Local Government Strategy and Analysis,BLACKPOOL BC,,,,,3700127165,,Grant payable by the Exchequer,FY1 1NA,643.00,Yes
"Housing, Communities & Local Government",DLUHC,15/12/2021,Current (non AEF) Grants to Local Authorities,Local Government Strategy and Analysis,BLACKPOOL BC,,,,,3700127845,,Grant payable by the Exchequer,FY1 1NA,"9,100.00",Yes
"Housing, Communities & Local Government",DLUHC,15/12/2021,Current (non AEF) Grants to Local Authorities,Local Government Strategy and Analysis,BLACKPOOL BC,,,,,3700128470,,Grant payable by the Exchequer,FY1 1NA,"195,463.00",Yes
"Housing, Communities & Local Government",DLUHC,15/12/2021,Current (non AEF) Grants to Local Authorities,Local Government Strategy and Analysis,BLACKPOOL BC,,,,,3700128489,,Grant payable by the Exchequer,FY1 1NA,"260,049.00",Yes
"Housing, Communities & Local Government",DLUHC,15/12/2021,Current (non AEF) Grants to Local Authorities,Local Government Strategy and Analysis,BLACKPOOL BC,,,,,3700128597,,Grant payable by the Exchequer,FY1 1NA,"1,132,158.00",Yes
"Housing, Communities & Local Government",DLUHC,15/12/2021,Current (non AEF) Grants to Local Authorities,Local Government Strategy and Analysis,BOLSOVER DC,,Large,,235516523,3700127226,,Grant payable by the Exchequer,S43 4JY,341.00,Yes
"Housing, Communities & Local Government",DLUHC,15/12/2021,Current (non AEF) Grants to Local Authorities,Local Government Strategy and Analysis,BOLSOVER DC,,Large,,235516523,3700127384,,Grant payable by the Exchequer,S43 4JY,"24,458.00",Yes
"Housing, Communities & Local Government",DLUHC,15/12/2021,Current (non AEF) Grants to Local Authorities,Local Government Strategy and Analysis,BOLSOVER DC,,Large,,235516523,3700128079,,Grant payable by the Exchequer,S43 4JY,"54,156.00",Yes
"Housing, Communities & Local Government",DLUHC,15/12/2021,Current (non AEF) Grants to Local Authorities,Local Government Strategy and Analysis,BOLSOVER DC,,Large,,235516523,3700128091,,Grant payable by the Exchequer,S43 4JY,714.00,Yes
"Housing, Communities & Local Government",DLUHC,15/12/2021,Current (non AEF) Grants to Local Authorities,Local Government Strategy and Analysis,BOLSOVER DC,,Large,,235516523,3700128316,,Grant payable by the Exchequer,S43 4JY,"3,254.00",Yes
"Housing, Communities & Local Government",DLUHC,15/12/2021,Current (non AEF) Grants to Local Authorities,Local Government Strategy and Analysis,BOLSOVER DC,,Large,,235516523,3700128557,,Grant payable by the Exchequer,S43 4JY,"30,945.00",Yes
"Housing, Communities & Local Government",DLUHC,15/12/2021,Current (non AEF) Grants to Local Authorities,Local Government Strategy and Analysis,BOLTON MBC,,,,,3700129099,,Grant payable by the Exchequer,BL1 1RU,"1,203,101.00",Yes
"Housing, Communities & Local Government",DLUHC,15/12/2021,Current (non AEF) Grants to Local Authorities,Local Government Strategy and Analysis,BOLTON MBC,,,,,3700129120,,Grant payable by the Exchequer,BL1 1RU,"934,417.00",Yes
"Housing, Communities & Local Government",DLUHC,15/12/2021,Current (non AEF) Grants to Local Authorities,Local Government Strategy and Analysis,BOLTON MBC,,,,,3700126576,,Grant payable by the Exchequer,BL1 1RU,"750,431.00",Yes
"Housing, Communities & Local Government",DLUHC,15/12/2021,Current (non AEF) Grants to Local Authorities,Local Government Strategy and Analysis,BOLTON MBC,,,,,3700127452,,Grant payable by the Exchequer,BL1 1RU,"31,227.00",Yes
"Housing, Communities & Local Government",DLUHC,15/12/2021,Current (non AEF) Grants to Local Authorities,Local Government Strategy and Analysis,BOLTON MBC,,,,,3700127746,,Grant payable by the Exchequer,BL1 1RU,"279,033.00",Yes
"Housing, Communities & Local Government",DLUHC,15/12/2021,Current (non AEF) Grants to Local Authorities,Local Government Strategy and Analysis,BOLTON MBC,,,,,3700128123,,Grant payable by the Exchequer,BL1 1RU,"4,340.00",Yes
"Housing, Communities & Local Government",DLUHC,15/12/2021,Current (non AEF) Grants to Local Authorities,Local Government Strategy and Analysis,BOLTON MBC,,,,,3700128718,,Grant payable by the Exchequer,BL1 1RU,"1,359,776.00",Yes
"Housing, Communities & Local Government",DLUHC,15/12/2021,Current (non AEF) Grants to Local Authorities,Local Government Strategy and Analysis,BOSTON BC,,,,236417713,3700126547,,Grant payable by the Exchequer,PE21 8QR,"70,314.00",Yes
"Housing, Communities & Local Government",DLUHC,15/12/2021,Current (non AEF) Grants to Local Authorities,Local Government Strategy and Analysis,BOSTON BC,,,,236417713,3700126582,,Grant payable by the Exchequer,PE21 8QR,714.00,Yes
"Housing, Communities & Local Government",DLUHC,15/12/2021,Current (non AEF) Grants to Local Authorities,Local Government Strategy and Analysis,BOSTON BC,,,,236417713,3700127421,,Grant payable by the Exchequer,PE21 8QR,"14,200.00",Yes
"Housing, Communities & Local Government",DLUHC,15/12/2021,Current (non AEF) Grants to Local Authorities,Local Government Strategy and Analysis,BOSTON BC,,,,236417713,3700127865,,Grant payable by the Exchequer,PE21 8QR,378.00,Yes
"Housing, Communities & Local Government",DLUHC,15/12/2021,Current (non AEF) Grants to Local Authorities,Local Government Strategy and Analysis,BOSTON BC,,,,236417713,3700128379,,Grant payable by the Exchequer,PE21 8QR,"3,305.00",Yes
"Housing, Communities & Local Government",DLUHC,15/12/2021,Current (non AEF) Grants to Local Authorities,Local Government Strategy and Analysis,BOSTON BC,,,,236417713,3700128684,,Grant payable by the Exchequer,PE21 8QR,"213,574.00",Yes
"Housing, Communities & Local Government",DLUHC,15/12/2021,Current (non AEF) Grants to Local Authorities,Local Government Strategy and Analysis,"Bournemouth, Christchurch and Poole",,,,,3700126568,,Grant payable by the Exchequer,BH2 6DY,"28,206.00",Yes
"Housing, Communities & Local Government",DLUHC,15/12/2021,Current (non AEF) Grants to Local Authorities,Local Government Strategy and Analysis,"Bournemouth, Christchurch and Poole",,,,,3700126675,,Grant payable by the Exchequer,BH2 6DY,"205,446.00",Yes
"Housing, Communities & Local Government",DLUHC,15/12/2021,Current (non AEF) Grants to Local Authorities,Local Government Strategy and Analysis,"Bournemouth, Christchurch and Poole",,,,,3700126994,,Grant payable by the Exchequer,BH2 6DY,"518,895.00",Yes
"Housing, Communities & Local Government",DLUHC,15/12/2021,Current (non AEF) Grants to Local Authorities,Local Government Strategy and Analysis,"Bournemouth, Christchurch and Poole",,,,,3700127757,,Grant payable by the Exchequer,BH2 6DY,"2,050.00",Yes
"Housing, Communities & Local Government",DLUHC,15/12/2021,Current (non AEF) Grants to Local Authorities,Local Government Strategy and Analysis,"Bournemouth, Christchurch and Poole",,,,,3700128599,,Grant payable by the Exchequer,BH2 6DY,"2,683,553.00",Yes
"Housing, Communities & Local Government",DLUHC,15/12/2021,Current (non AEF) Grants to Local Authorities,Local Government Strategy and Analysis,"Bournemouth, Christchurch and Poole",,,,,3700129050,,Grant payable by the Exchequer,BH2 6DY,"1,086,926.00",Yes
"Housing, Communities & Local Government",DLUHC,15/12/2021,Current (non AEF) Grants to Local Authorities,Local Government Strategy and Analysis,"Bournemouth, Christchurch and Poole",,,,,3700129167,,Grant payable by the Exchequer,BH2 6DY,"908,338.00",Yes
"Housing, Communities & Local Government",DLUHC,15/12/2021,Current (non AEF) Grants to Local Authorities,Local Government Strategy and Analysis,BRACKNELL FOREST DC,,,,236184867,3700128854,,Grant payable by the Exchequer,RG12 1AQ,"165,835.00",Yes
"Housing, Communities & Local Government",DLUHC,15/12/2021,Current (non AEF) Grants to Local Authorities,Local Government Strategy and Analysis,BRACKNELL FOREST DC,,,,236184867,3700128972,,Grant payable by the Exchequer,RG12 1AQ,"123,332.00",Yes
"Housing, Communities & Local Government",DLUHC,15/12/2021,Current (non AEF) Grants to Local Authorities,Local Government Strategy and Analysis,BRACKNELL FOREST DC,,,,236184867,3700127082,,Grant payable by the Exchequer,RG12 1JD,"65,539.00",Yes
"Housing, Communities & Local Government",DLUHC,15/12/2021,Current (non AEF) Grants to Local Authorities,Local Government Strategy and Analysis,BRACKNELL FOREST DC,,,,236184867,3700127586,,Grant payable by the Exchequer,RG12 1JD,"2,956.00",Yes
"Housing, Communities & Local Government",DLUHC,15/12/2021,Current (non AEF) Grants to Local Authorities,Local Government Strategy and Analysis,BRACKNELL FOREST DC,,,,236184867,3700127758,,Grant payable by the Exchequer,RG12 1JD,"5,084.00",Yes
"Housing, Communities & Local Government",DLUHC,15/12/2021,Current (non AEF) Grants to Local Authorities,Local Government Strategy and Analysis,BRACKNELL FOREST DC,,,,236184867,3700128474,,Grant payable by the Exchequer,RG12 1JD,"104,760.00",Yes
"Housing, Communities & Local Government",DLUHC,15/12/2021,Current (non AEF) Grants to Local Authorities,Local Government Strategy and Analysis,BRACKNELL FOREST DC,,,,236184867,3700128819,,Grant payable by the Exchequer,RG12 1JD,"1,199,475.00",Yes
"Housing, Communities & Local Government",DLUHC,15/12/2021,Current (non AEF) Grants to Local Authorities,Local Government Strategy and Analysis,BRADFORD MBC,,,,,3700128974,,Grant payable by the Exchequer,BD1 1HX,"1,491,134.00",Yes
"Housing, Communities & Local Government",DLUHC,15/12/2021,Current (non AEF) Grants to Local Authorities,Local Government Strategy and Analysis,BRADFORD MBC,,,,,3700129031,,Grant payable by the Exchequer,BD1 1HX,"1,891,643.00",Yes
"Housing, Communities & Local Government",DLUHC,15/12/2021,Current (non AEF) Grants to Local Authorities,Local Government Strategy and Analysis,BRADFORD MBC,,,,,3700126964,,Grant payable by the Exchequer,BD1 1HX,"584,189.00",Yes
"Housing, Communities & Local Government",DLUHC,15/12/2021,Current (non AEF) Grants to Local Authorities,Local Government Strategy and Analysis,BRADFORD MBC,,,,,3700127647,,Grant payable by the Exchequer,BD1 1HX,"18,676.00",Yes
"Housing, Communities & Local Government",DLUHC,15/12/2021,Current (non AEF) Grants to Local Authorities,Local Government Strategy and Analysis,BRADFORD MBC,,,,,3700127683,,Grant payable by the Exchequer,BD1 1HX,"800,276.00",Yes
"Housing, Communities & Local Government",DLUHC,15/12/2021,Current (non AEF) Grants to Local Authorities,Local Government Strategy and Analysis,BRADFORD MBC,,,,,3700128041,,Grant payable by the Exchequer,BD1 1HX,"2,212.00",Yes
"Housing, Communities & Local Government",DLUHC,15/12/2021,Current (non AEF) Grants to Local Authorities,Local Government Strategy and Analysis,BRADFORD MBC,,,,,3700128317,,Grant payable by the Exchequer,BD1 1HX,"27,288.00",Yes
"Housing, Communities & Local Government",DLUHC,15/12/2021,Current (non AEF) Grants to Local Authorities,Local Government Strategy and Analysis,BRADFORD MBC,,,,,3700128647,,Grant payable by the Exchequer,BD1 1HX,"1,559,842.00",Yes
"Housing, Communities & Local Government",DLUHC,15/12/2021,Current (non AEF) Grants to Local Authorities,Local Government Strategy and Analysis,BRAINTREE DC,,,,226941730,3700126537,,Grant payable by the Exchequer,CM7 9HB,"9,831.00",Yes
"Housing, Communities & Local Government",DLUHC,15/12/2021,Current (non AEF) Grants to Local Authorities,Local Government Strategy and Analysis,BRAINTREE DC,,,,226941730,3700127300,,Grant payable by the Exchequer,CM7 9HB,337.00,Yes
"Housing, Communities & Local Government",DLUHC,15/12/2021,Current (non AEF) Grants to Local Authorities,Local Government Strategy and Analysis,BRAINTREE DC,,,,226941730,3700127434,,Grant payable by the Exchequer,CM7 9HB,"17,607.00",Yes
"Housing, Communities & Local Government",DLUHC,15/12/2021,Current (non AEF) Grants to Local Authorities,Local Government Strategy and Analysis,BRAINTREE DC,,,,226941730,3700128069,,Grant payable by the Exchequer,CM7 9HB,"141,676.00",Yes
"Housing, Communities & Local Government",DLUHC,15/12/2021,Current (non AEF) Grants to Local Authorities,Local Government Strategy and Analysis,BRAINTREE DC,,,,226941730,3700128420,,Grant payable by the Exchequer,CM7 9HB,272.00,Yes
"Housing, Communities & Local Government",DLUHC,15/12/2021,Current (non AEF) Grants to Local Authorities,Local Government Strategy and Analysis,BRAINTREE DC,,,,226941730,3700128540,,Grant payable by the Exchequer,CM7 9HB,"603,229.00",Yes
"Housing, Communities & Local Government",DLUHC,15/12/2021,Current (non AEF) Grants to Local Authorities,Local Government Strategy and Analysis,BRECKLAND DC,,,,232611384,3700126700,,Grant payable by the Exchequer,NR19 1EE,"2,470.00",Yes
"Housing, Communities & Local Government",DLUHC,15/12/2021,Current (non AEF) Grants to Local Authorities,Local Government Strategy and Analysis,BRECKLAND DC,,,,232611384,3700126749,,Grant payable by the Exchequer,NR19 1EE,"26,376.00",Yes
"Housing, Communities & Local Government",DLUHC,15/12/2021,Current (non AEF) Grants to Local Authorities,Local Government Strategy and Analysis,BRECKLAND DC,,,,232611384,3700126760,,Grant payable by the Exchequer,NR19 1EE,"6,813.00",Yes
"Housing, Communities & Local Government",DLUHC,15/12/2021,Current (non AEF) Grants to Local Authorities,Local Government Strategy and Analysis,BRECKLAND DC,,,,232611384,3700127520,,Grant payable by the Exchequer,NR19 1EE,923.00,Yes
"Housing, Communities & Local Government",DLUHC,15/12/2021,Current (non AEF) Grants to Local Authorities,Local Government Strategy and Analysis,BRECKLAND DC,,,,232611384,3700128479,,Grant payable by the Exchequer,NR19 1EE,"126,308.00",Yes
"Housing, Communities & Local Government",DLUHC,15/12/2021,Current (non AEF) Grants to Local Authorities,Local Government Strategy and Analysis,BRECKLAND DC,,,,232611384,3700128749,,Grant payable by the Exchequer,NR19 1EE,"170,745.00",Yes
"Housing, Communities & Local Government",DLUHC,15/12/2021,Current (non AEF) Grants to Local Authorities,Local Government Strategy and Analysis,BRENT LB,,,,,3700128250,,Grant payable by the Exchequer,HA9 9EZ,"2,194.00",Yes
"Housing, Communities & Local Government",DLUHC,15/12/2021,Current (non AEF) Grants to Local Authorities,Local Government Strategy and Analysis,BRENT LB,,,,,3700128314,,Grant payable by the Exchequer,HA9 9EZ,"11,893.00",Yes
"Housing, Communities & Local Government",DLUHC,15/12/2021,Current (non AEF) Grants to Local Authorities,Local Government Strategy and Analysis,BRENT LB,,,,,3700128416,,Grant payable by the Exchequer,HA9 9EZ,"402,463.00",Yes
"Housing, Communities & Local Government",DLUHC,15/12/2021,Current (non AEF) Grants to Local Authorities,Local Government Strategy and Analysis,BRENT LB,,,,,3700128519,,Grant payable by the Exchequer,HA9 9EZ,"193,921.00",Yes
"Housing, Communities & Local Government",DLUHC,15/12/2021,Current (non AEF) Grants to Local Authorities,Local Government Strategy and Analysis,BRENT LB,,,,,3700128674,,Grant payable by the Exchequer,HA9 9EZ,"2,574,423.00",Yes
"Housing, Communities & Local Government",DLUHC,15/12/2021,Current (non AEF) Grants to Local Authorities,Local Government Strategy and Analysis,BRENT LB (HSG),,,,,3700129024,,Grant payable by the Exchequer,HA9 0FJ,"837,958.00",Yes
"Housing, Communities & Local Government",DLUHC,15/12/2021,Current (non AEF) Grants to Local Authorities,Local Government Strategy and Analysis,BRENT LB (HSG),,,,,3700129202,,Grant payable by the Exchequer,HA9 0FJ,"1,079,317.00",Yes
"Housing, Communities & Local Government",DLUHC,15/12/2021,Current (non AEF) Grants to Local Authorities,Local Government Strategy and Analysis,BRENTWOOD BC,,,,227473188,3700126713,,Grant payable by the Exchequer,CM15 8AY,"74,626.00",Yes
"Housing, Communities & Local Government",DLUHC,15/12/2021,Current (non AEF) Grants to Local Authorities,Local Government Strategy and Analysis,BRENTWOOD BC,,,,227473188,3700126814,,Grant payable by the Exchequer,CM15 8AY,"6,147.00",Yes
"Housing, Communities & Local Government",DLUHC,15/12/2021,Current (non AEF) Grants to Local Authorities,Local Government Strategy and Analysis,BRENTWOOD BC,,,,227473188,3700128446,,Grant payable by the Exchequer,CM15 8AY,"2,746.00",Yes
"Housing, Communities & Local Government",DLUHC,15/12/2021,Current (non AEF) Grants to Local Authorities,Local Government Strategy and Analysis,BRENTWOOD BC,,,,227473188,3700128700,,Grant payable by the Exchequer,CM15 8AY,"524,520.00",Yes
"Housing, Communities & Local Government",DLUHC,15/12/2021,Current (non AEF) Grants to Local Authorities,Local Government Strategy and Analysis,BRIGHTON & HOVE CITY COUNCIL,,Large,,228455218,3700129006,,Grant payable by the Exchequer,BN1 3JE,"765,053.00",Yes
"Housing, Communities & Local Government",DLUHC,15/12/2021,Current (non AEF) Grants to Local Authorities,Local Government Strategy and Analysis,BRIGHTON & HOVE CITY COUNCIL,,Large,,228455218,3700129062,,Grant payable by the Exchequer,BN1 3JE,"646,577.00",Yes
"Housing, Communities & Local Government",DLUHC,15/12/2021,Current (non AEF) Grants to Local Authorities,Local Government Strategy and Analysis,BRIGHTON & HOVE CITY COUNCIL,,Large,,228455218,3700126798,,Grant payable by the Exchequer,BN1 3JE,"8,830.00",Yes
"Housing, Communities & Local Government",DLUHC,15/12/2021,Current (non AEF) Grants to Local Authorities,Local Government Strategy and Analysis,BRIGHTON & HOVE CITY COUNCIL,,Large,,228455218,3700126876,,Grant payable by the Exchequer,BN1 3JE,"26,385.00",Yes
"Housing, Communities & Local Government",DLUHC,15/12/2021,Current (non AEF) Grants to Local Authorities,Local Government Strategy and Analysis,BRIGHTON & HOVE CITY COUNCIL,,Large,,228455218,3700127709,,Grant payable by the Exchequer,BN1 3JE,"1,890.00",Yes
"Housing, Communities & Local Government",DLUHC,15/12/2021,Current (non AEF) Grants to Local Authorities,Local Government Strategy and Analysis,BRIGHTON & HOVE CITY COUNCIL,,Large,,228455218,3700127955,,Grant payable by the Exchequer,BN1 3JE,"347,651.00",Yes
"Housing, Communities & Local Government",DLUHC,15/12/2021,Current (non AEF) Grants to Local Authorities,Local Government Strategy and Analysis,BRIGHTON & HOVE CITY COUNCIL,,Large,,228455218,3700128073,,Grant payable by the Exchequer,BN1 3JE,"257,798.00",Yes
"Housing, Communities & Local Government",DLUHC,15/12/2021,Current (non AEF) Grants to Local Authorities,Local Government Strategy and Analysis,BRIGHTON & HOVE CITY COUNCIL,,Large,,228455218,3700128772,,Grant payable by the Exchequer,BN1 3JE,"3,063,799.00",Yes
"Housing, Communities & Local Government",DLUHC,15/12/2021,Current (non AEF) Grants to Local Authorities,Local Government Strategy and Analysis,BRISTOL CITY CNCL,,,,211103882,3700127223,,Grant payable by the Exchequer,BS99 7BL,"4,921.00",Yes
"Housing, Communities & Local Government",DLUHC,15/12/2021,Current (non AEF) Grants to Local Authorities,Local Government Strategy and Analysis,BRISTOL CITY CNCL,,,,211103882,3700127338,,Grant payable by the Exchequer,BS99 7BL,"917,722.00",Yes
"Housing, Communities & Local Government",DLUHC,15/12/2021,Current (non AEF) Grants to Local Authorities,Local Government Strategy and Analysis,BRISTOL CITY CNCL,,,,211103882,3700127630,,Grant payable by the Exchequer,BS99 7BL,"71,503.00",Yes
"Housing, Communities & Local Government",DLUHC,15/12/2021,Current (non AEF) Grants to Local Authorities,Local Government Strategy and Analysis,BRISTOL CITY CNCL,,,,211103882,3700127836,,Grant payable by the Exchequer,BS99 7BL,"449,814.00",Yes
"Housing, Communities & Local Government",DLUHC,15/12/2021,Current (non AEF) Grants to Local Authorities,Local Government Strategy and Analysis,BRISTOL CITY CNCL,,,,211103882,3700128206,,Grant payable by the Exchequer,BS99 7BL,"1,509.00",Yes
"Housing, Communities & Local Government",DLUHC,15/12/2021,Current (non AEF) Grants to Local Authorities,Local Government Strategy and Analysis,BRISTOL CITY CNCL,,,,211103882,3700128771,,Grant payable by the Exchequer,BS99 7BL,"2,927,564.00",Yes
"Housing, Communities & Local Government",DLUHC,15/12/2021,Current (non AEF) Grants to Local Authorities,Local Government Strategy and Analysis,BRISTOL CITY COUNCIL (HSG),,,,211103882,3700129108,,Grant payable by the Exchequer,BS3 9FS,"1,376,231.00",Yes
"Housing, Communities & Local Government",DLUHC,15/12/2021,Current (non AEF) Grants to Local Authorities,Local Government Strategy and Analysis,BRISTOL CITY COUNCIL (HSG),,,,211103882,3700129126,,Grant payable by the Exchequer,BS3 9FS,"1,153,290.00",Yes
"Housing, Communities & Local Government",DLUHC,15/12/2021,Current (non AEF) Grants to Local Authorities,Local Government Strategy and Analysis,BROADLAND DC,,,,219737785,3700126580,,Grant payable by the Exchequer,NR7 0DU,477.00,Yes
"Housing, Communities & Local Government",DLUHC,15/12/2021,Current (non AEF) Grants to Local Authorities,Local Government Strategy and Analysis,BROADLAND DC,,,,219737785,3700126788,,Grant payable by the Exchequer,NR7 0DU,"104,414.00",Yes
"Housing, Communities & Local Government",DLUHC,15/12/2021,Current (non AEF) Grants to Local Authorities,Local Government Strategy and Analysis,BROADLAND DC,,,,219737785,3700127027,,Grant payable by the Exchequer,NR7 0DU,"15,239.00",Yes
"Housing, Communities & Local Government",DLUHC,15/12/2021,Current (non AEF) Grants to Local Authorities,Local Government Strategy and Analysis,BROADLAND DC,,,,219737785,3700128367,,Grant payable by the Exchequer,NR7 0DU,"5,480.00",Yes
"Housing, Communities & Local Government",DLUHC,15/12/2021,Current (non AEF) Grants to Local Authorities,Local Government Strategy and Analysis,BROADLAND DC,,,,219737785,3700128531,,Grant payable by the Exchequer,NR7 0DU,"287,220.00",Yes
"Housing, Communities & Local Government",DLUHC,15/12/2021,Current (non AEF) Grants to Local Authorities,Local Government Strategy and Analysis,BROMLEY LB,,,,211331954,3700128911,,Grant payable by the Exchequer,BR1 3UH,"549,400.00",Yes
"Housing, Communities & Local Government",DLUHC,15/12/2021,Current (non AEF) Grants to Local Authorities,Local Government Strategy and Analysis,BROMLEY LB,,,,211331954,3700129051,,Grant payable by the Exchequer,BR1 3UH,"625,245.00",Yes
"Housing, Communities & Local Government",DLUHC,15/12/2021,Current (non AEF) Grants to Local Authorities,Local Government Strategy and Analysis,BROMLEY LB,,,,211331954,3700127557,,Grant payable by the Exchequer,BR1 3UH,"168,219.00",Yes
"Housing, Communities & Local Government",DLUHC,15/12/2021,Current (non AEF) Grants to Local Authorities,Local Government Strategy and Analysis,BROMLEY LB,,,,211331954,3700128243,,Grant payable by the Exchequer,BR1 3UH,"7,879.00",Yes
"Housing, Communities & Local Government",DLUHC,15/12/2021,Current (non AEF) Grants to Local Authorities,Local Government Strategy and Analysis,BROMLEY LB,,,,211331954,3700128448,,Grant payable by the Exchequer,BR1 3UH,"1,986.00",Yes
"Housing, Communities & Local Government",DLUHC,15/12/2021,Current (non AEF) Grants to Local Authorities,Local Government Strategy and Analysis,BROMLEY LB,,,,211331954,3700128521,,Grant payable by the Exchequer,BR1 3UH,"161,246.00",Yes
"Housing, Communities & Local Government",DLUHC,15/12/2021,Current (non AEF) Grants to Local Authorities,Local Government Strategy and Analysis,BROMLEY LB,,,,211331954,3700128799,,Grant payable by the Exchequer,BR1 3UH,"889,823.00",Yes
"Housing, Communities & Local Government",DLUHC,15/12/2021,Current (non AEF) Grants to Local Authorities,Local Government Strategy and Analysis,BROMSGROVE DC,,,,236654745,3700126723,,Grant payable by the Exchequer,B60 1AA,"106,255.00",Yes
"Housing, Communities & Local Government",DLUHC,15/12/2021,Current (non AEF) Grants to Local Authorities,Local Government Strategy and Analysis,BROMSGROVE DC,,,,236654745,3700127119,,Grant payable by the Exchequer,B60 1AA,869.00,Yes
"Housing, Communities & Local Government",DLUHC,15/12/2021,Current (non AEF) Grants to Local Authorities,Local Government Strategy and Analysis,BROMSGROVE DC,,,,236654745,3700127331,,Grant payable by the Exchequer,B60 1AA,"8,784.00",Yes
"Housing, Communities & Local Government",DLUHC,15/12/2021,Current (non AEF) Grants to Local Authorities,Local Government Strategy and Analysis,BROMSGROVE DC,,,,236654745,3700128748,,Grant payable by the Exchequer,B60 1AA,"160,852.00",Yes
"Housing, Communities & Local Government",DLUHC,15/12/2021,Current (non AEF) Grants to Local Authorities,Local Government Strategy and Analysis,BROXBOURNE BOROUGH COUNCIL,,,,239931918,3700127204,,Grant payable by the Exchequer,EN8 9XQ,"5,262.00",Yes
"Housing, Communities & Local Government",DLUHC,15/12/2021,Current (non AEF) Grants to Local Authorities,Local Government Strategy and Analysis,BROXBOURNE BOROUGH COUNCIL,,,,239931918,3700127266,,Grant payable by the Exchequer,EN8 9XQ,"79,055.00",Yes
"Housing, Communities & Local Government",DLUHC,15/12/2021,Current (non AEF) Grants to Local Authorities,Local Government Strategy and Analysis,BROXBOURNE BOROUGH COUNCIL,,,,239931918,3700127636,,Grant payable by the Exchequer,EN8 9XQ,626.00,Yes
"Housing, Communities & Local Government",DLUHC,15/12/2021,Current (non AEF) Grants to Local Authorities,Local Government Strategy and Analysis,BROXBOURNE BOROUGH COUNCIL,,,,239931918,3700127789,,Grant payable by the Exchequer,EN8 9XQ,"7,957.00",Yes
"Housing, Communities & Local Government",DLUHC,15/12/2021,Current (non AEF) Grants to Local Authorities,Local Government Strategy and Analysis,BROXBOURNE BOROUGH COUNCIL,,,,239931918,3700128530,,Grant payable by the Exchequer,EN8 9XQ,"410,476.00",Yes
"Housing, Communities & Local Government",DLUHC,15/12/2021,Current (non AEF) Grants to Local Authorities,Local Government Strategy and Analysis,BROXTOWE BC,,,,239877640,3700126540,,Grant payable by the Exchequer,NG9 1AB,278.00,Yes
"Housing, Communities & Local Government",DLUHC,15/12/2021,Current (non AEF) Grants to Local Authorities,Local Government Strategy and Analysis,BROXTOWE BC,,,,239877640,3700126856,,Grant payable by the Exchequer,NG9 1AB,"3,869.00",Yes
"Housing, Communities & Local Government",DLUHC,15/12/2021,Current (non AEF) Grants to Local Authorities,Local Government Strategy and Analysis,BROXTOWE BC,,,,239877640,3700127230,,Grant payable by the Exchequer,NG9 1AB,"16,305.00",Yes
"Housing, Communities & Local Government",DLUHC,15/12/2021,Current (non AEF) Grants to Local Authorities,Local Government Strategy and Analysis,BROXTOWE BC,,,,239877640,3700128075,,Grant payable by the Exchequer,NG9 1AB,"72,652.00",Yes
"Housing, Communities & Local Government",DLUHC,15/12/2021,Current (non AEF) Grants to Local Authorities,Local Government Strategy and Analysis,BROXTOWE BC,,,,239877640,3700128767,,Grant payable by the Exchequer,NG9 1AB,"557,323.00",Yes
"Housing, Communities & Local Government",DLUHC,15/12/2021,Current (non AEF) Grants to Local Authorities,Local Government Strategy and Analysis,Buckinghamshire Council,,,,,3700126546,,Grant payable by the Exchequer,HP19 8FF,"212,653.00",Yes
"Housing, Communities & Local Government",DLUHC,15/12/2021,Current (non AEF) Grants to Local Authorities,Local Government Strategy and Analysis,Buckinghamshire Council,,,,,3700126619,,Grant payable by the Exchequer,HP19 8FF,"3,472.00",Yes
"Housing, Communities & Local Government",DLUHC,15/12/2021,Current (non AEF) Grants to Local Authorities,Local Government Strategy and Analysis,Buckinghamshire Council,,,,,3700127133,,Grant payable by the Exchequer,HP19 8FF,"3,144.00",Yes
"Housing, Communities & Local Government",DLUHC,15/12/2021,Current (non AEF) Grants to Local Authorities,Local Government Strategy and Analysis,Buckinghamshire Council,,,,,3700127158,,Grant payable by the Exchequer,HP19 8FF,"486,806.00",Yes
"Housing, Communities & Local Government",DLUHC,15/12/2021,Current (non AEF) Grants to Local Authorities,Local Government Strategy and Analysis,Buckinghamshire Council,,,,,3700127496,,Grant payable by the Exchequer,HP19 8FF,"39,139.00",Yes
"Housing, Communities & Local Government",DLUHC,15/12/2021,Current (non AEF) Grants to Local Authorities,Local Government Strategy and Analysis,Buckinghamshire Council,,,,,3700128122,,Grant payable by the Exchequer,HP19 8FF,"2,521.00",Yes
"Housing, Communities & Local Government",DLUHC,15/12/2021,Current (non AEF) Grants to Local Authorities,Local Government Strategy and Analysis,Buckinghamshire Council,,,,,3700128691,,Grant payable by the Exchequer,HP19 8FF,"3,463,957.00",Yes
"Housing, Communities & Local Government",DLUHC,15/12/2021,Current (non AEF) Grants to Local Authorities,Local Government Strategy and Analysis,BUCKINGHAMSHIRE COUNCIL,,,,,3700129135,,Grant payable by the Exchequer,HP19 8FF,"407,707.00",Yes
"Housing, Communities & Local Government",DLUHC,15/12/2021,Current (non AEF) Grants to Local Authorities,Local Government Strategy and Analysis,BUCKINGHAMSHIRE COUNCIL,,,,,3700129137,,Grant payable by the Exchequer,HP19 8FF,"765,990.00",Yes
"Housing, Communities & Local Government",DLUHC,15/12/2021,Current (non AEF) Grants to Local Authorities,Local Government Strategy and Analysis,BUCKS & MILTON KEYNES FIRE AUTH,,Public Bodies,,423679463,3700127710,,Grant payable by the Exchequer,HP20 1BD,"1,174.00",Yes
"Housing, Communities & Local Government",DLUHC,15/12/2021,Current (non AEF) Grants to Local Authorities,Local Government Strategy and Analysis,BUCKS & MILTON KEYNES FIRE AUTH,,Public Bodies,,423679463,3700127999,,Grant payable by the Exchequer,HP20 1BD,"21,781.00",Yes
"Housing, Communities & Local Government",DLUHC,15/12/2021,Current (non AEF) Grants to Local Authorities,Local Government Strategy and Analysis,BUCKS & MILTON KEYNES FIRE AUTH,,Public Bodies,,423679463,3700128460,,Grant payable by the Exchequer,HP20 1BD,"14,895.00",Yes
"Housing, Communities & Local Government",DLUHC,15/12/2021,Current (non AEF) Grants to Local Authorities,Local Government Strategy and Analysis,BURNLEY BC,,,,229413281,3700126859,,Grant payable by the Exchequer,BB11 1JA,"4,024.00",Yes
"Housing, Communities & Local Government",DLUHC,15/12/2021,Current (non AEF) Grants to Local Authorities,Local Government Strategy and Analysis,BURNLEY BC,,,,229413281,3700127163,,Grant payable by the Exchequer,BB11 1JA,"23,133.00",Yes
"Housing, Communities & Local Government",DLUHC,15/12/2021,Current (non AEF) Grants to Local Authorities,Local Government Strategy and Analysis,BURNLEY BC,,,,229413281,3700127245,,Grant payable by the Exchequer,BB11 1JA,490.00,Yes
"Housing, Communities & Local Government",DLUHC,15/12/2021,Current (non AEF) Grants to Local Authorities,Local Government Strategy and Analysis,BURNLEY BC,,,,229413281,3700127456,,Grant payable by the Exchequer,BB11 1JA,603.00,Yes
"Housing, Communities & Local Government",DLUHC,15/12/2021,Current (non AEF) Grants to Local Authorities,Local Government Strategy and Analysis,BURNLEY BC,,,,229413281,3700127527,,Grant payable by the Exchequer,BB11 1JA,"95,780.00",Yes
"Housing, Communities & Local Government",DLUHC,15/12/2021,Current (non AEF) Grants to Local Authorities,Local Government Strategy and Analysis,BURNLEY BC,,,,229413281,3700128721,,Grant payable by the Exchequer,BB11 1JA,"377,118.00",Yes
"Housing, Communities & Local Government",DLUHC,15/12/2021,Current (non AEF) Grants to Local Authorities,Local Government Strategy and Analysis,BURY MBC,,,,,3700128970,,Grant payable by the Exchequer,BL9 0SW,"616,988.00",Yes
"Housing, Communities & Local Government",DLUHC,15/12/2021,Current (non AEF) Grants to Local Authorities,Local Government Strategy and Analysis,BURY MBC,,,,,3700129073,,Grant payable by the Exchequer,BL9 0SW,"474,644.00",Yes
"Housing, Communities & Local Government",DLUHC,15/12/2021,Current (non AEF) Grants to Local Authorities,Local Government Strategy and Analysis,BURY MBC,,,,236491114,3700127450,,Grant payable by the Exchequer,BL9 0SP,"24,315.00",Yes
"Housing, Communities & Local Government",DLUHC,15/12/2021,Current (non AEF) Grants to Local Authorities,Local Government Strategy and Analysis,BURY MBC,,,,236491114,3700127799,,Grant payable by the Exchequer,BL9 0SP,"1,321.00",Yes
"Housing, Communities & Local Government",DLUHC,15/12/2021,Current (non AEF) Grants to Local Authorities,Local Government Strategy and Analysis,BURY MBC,,,,236491114,3700128184,,Grant payable by the Exchequer,BL9 0SP,328.00,Yes
"Housing, Communities & Local Government",DLUHC,15/12/2021,Current (non AEF) Grants to Local Authorities,Local Government Strategy and Analysis,BURY MBC,,,,236491114,3700128198,,Grant payable by the Exchequer,BL9 0SP,"152,056.00",Yes
"Housing, Communities & Local Government",DLUHC,15/12/2021,Current (non AEF) Grants to Local Authorities,Local Government Strategy and Analysis,BURY MBC,,,,236491114,3700128451,,Grant payable by the Exchequer,BL9 0SP,"528,042.00",Yes
"Housing, Communities & Local Government",DLUHC,15/12/2021,Current (non AEF) Grants to Local Authorities,Local Government Strategy and Analysis,CALDERDALE MBC,,,,,3700129150,,Grant payable by the Exchequer,HX1 1YP,"544,342.00",Yes
"Housing, Communities & Local Government",DLUHC,15/12/2021,Current (non AEF) Grants to Local Authorities,Local Government Strategy and Analysis,CALDERDALE MBC,,,,,3700129185,,Grant payable by the Exchequer,HX1 1YP,"682,335.00",Yes
"Housing, Communities & Local Government",DLUHC,15/12/2021,Current (non AEF) Grants to Local Authorities,Local Government Strategy and Analysis,CALDERDALE MBC,,Public Bodies,,,3700127412,,Grant payable by the Exchequer,HX1 1YP,"2,063.00",Yes
"Housing, Communities & Local Government",DLUHC,15/12/2021,Current (non AEF) Grants to Local Authorities,Local Government Strategy and Analysis,CALDERDALE MBC,,Public Bodies,,,3700127503,,Grant payable by the Exchequer,HX1 1YP,"338,848.00",Yes
"Housing, Communities & Local Government",DLUHC,15/12/2021,Current (non AEF) Grants to Local Authorities,Local Government Strategy and Analysis,CALDERDALE MBC,,Public Bodies,,,3700127576,,Grant payable by the Exchequer,HX1 1YP,"173,947.00",Yes
"Housing, Communities & Local Government",DLUHC,15/12/2021,Current (non AEF) Grants to Local Authorities,Local Government Strategy and Analysis,CALDERDALE MBC,,Public Bodies,,,3700128333,,Grant payable by the Exchequer,HX1 1YP,332.00,Yes
"Housing, Communities & Local Government",DLUHC,15/12/2021,Current (non AEF) Grants to Local Authorities,Local Government Strategy and Analysis,CALDERDALE MBC,,Public Bodies,,,3700128454,,Grant payable by the Exchequer,HX1 1YP,"12,550.00",Yes
"Housing, Communities & Local Government",DLUHC,15/12/2021,Current (non AEF) Grants to Local Authorities,Local Government Strategy and Analysis,CALDERDALE MBC,,Public Bodies,,,3700128810,,Grant payable by the Exchequer,HX1 1YP,"733,862.00",Yes
"Housing, Communities & Local Government",DLUHC,15/12/2021,Current (non AEF) Grants to Local Authorities,Local Government Strategy and Analysis,CAMBRIDGE CITY COUNCIL,,,,210357534,3700127685,,Grant payable by the Exchequer,CB1 0JH,"74,517.00",Yes
"Housing, Communities & Local Government",DLUHC,15/12/2021,Current (non AEF) Grants to Local Authorities,Local Government Strategy and Analysis,CAMBRIDGE CITY COUNCIL,,,,210357534,3700127944,,Grant payable by the Exchequer,CB1 0JH,386.00,Yes
"Housing, Communities & Local Government",DLUHC,15/12/2021,Current (non AEF) Grants to Local Authorities,Local Government Strategy and Analysis,CAMBRIDGE CITY COUNCIL,,,,210357534,3700128138,,Grant payable by the Exchequer,CB1 0JH,"25,395.00",Yes
"Housing, Communities & Local Government",DLUHC,15/12/2021,Current (non AEF) Grants to Local Authorities,Local Government Strategy and Analysis,CAMBRIDGE CITY COUNCIL,,,,210357534,3700128508,,Grant payable by the Exchequer,CB1 0JH,"10,739.00",Yes
"Housing, Communities & Local Government",DLUHC,15/12/2021,Current (non AEF) Grants to Local Authorities,Local Government Strategy and Analysis,CAMBRIDGE CITY COUNCIL,,,,210357534,3700128812,,Grant payable by the Exchequer,CB1 0JH,"723,706.00",Yes
"Housing, Communities & Local Government",DLUHC,15/12/2021,Current (non AEF) Grants to Local Authorities,Local Government Strategy and Analysis,CAMBRIDGESHIRE COUNTY CNCL,,,,219047347,3700128959,,Grant payable by the Exchequer,CB3 0AP,"1,115,248.00",Yes
"Housing, Communities & Local Government",DLUHC,15/12/2021,Current (non AEF) Grants to Local Authorities,Local Government Strategy and Analysis,CAMBRIDGESHIRE COUNTY CNCL,,,,219047347,3700129058,,Grant payable by the Exchequer,CB3 0AP,"1,227,057.00",Yes
"Housing, Communities & Local Government",DLUHC,15/12/2021,Current (non AEF) Grants to Local Authorities,Local Government Strategy and Analysis,CAMBRIDGESHIRE COUNTY CNCL,,,,219047347,3700126796,,Grant payable by the Exchequer,CB3 0AP,"115,201.00",Yes
"Housing, Communities & Local Government",DLUHC,15/12/2021,Current (non AEF) Grants to Local Authorities,Local Government Strategy and Analysis,CAMBRIDGESHIRE COUNTY CNCL,,,,219047347,3700126816,,Grant payable by the Exchequer,CB3 0AP,"9,570.00",Yes
"Housing, Communities & Local Government",DLUHC,15/12/2021,Current (non AEF) Grants to Local Authorities,Local Government Strategy and Analysis,CAMBRIDGESHIRE COUNTY CNCL,,,,219047347,3700127714,,Grant payable by the Exchequer,CB3 0AP,445.00,Yes
"Housing, Communities & Local Government",DLUHC,15/12/2021,Current (non AEF) Grants to Local Authorities,Local Government Strategy and Analysis,CAMBRIDGESHIRE COUNTY CNCL,,,,219047347,3700127754,,Grant payable by the Exchequer,CB3 0AP,"1,018.00",Yes
"Housing, Communities & Local Government",DLUHC,15/12/2021,Current (non AEF) Grants to Local Authorities,Local Government Strategy and Analysis,CAMBRIDGESHIRE COUNTY CNCL,,,,219047347,3700127934,,Grant payable by the Exchequer,CB3 0AP,"294,397.00",Yes
"Housing, Communities & Local Government",DLUHC,15/12/2021,Current (non AEF) Grants to Local Authorities,Local Government Strategy and Analysis,CAMBRIDGESHIRE COUNTY CNCL,,,,219047347,3700128331,,Grant payable by the Exchequer,CB3 0AP,"1,004.00",Yes
"Housing, Communities & Local Government",DLUHC,15/12/2021,Current (non AEF) Grants to Local Authorities,Local Government Strategy and Analysis,CAMBS & PETERBOROUGH FIRE AUTHORITY,,,,235999737,3700127039,,Grant payable by the Exchequer,PE29 2NA,"1,372.00",Yes
"Housing, Communities & Local Government",DLUHC,15/12/2021,Current (non AEF) Grants to Local Authorities,Local Government Strategy and Analysis,CAMBS & PETERBOROUGH FIRE AUTHORITY,,,,235999737,3700127852,,Grant payable by the Exchequer,PE29 2NA,"28,097.00",Yes
"Housing, Communities & Local Government",DLUHC,15/12/2021,Current (non AEF) Grants to Local Authorities,Local Government Strategy and Analysis,CAMBS & PETERBOROUGH FIRE AUTHORITY,,,,235999737,3700127912,,Grant payable by the Exchequer,PE29 2NA,"17,014.00",Yes
"Housing, Communities & Local Government",DLUHC,15/12/2021,Current (non AEF) Grants to Local Authorities,Local Government Strategy and Analysis,CAMDEN LB,,,,211651836,3700128907,,Grant payable by the Exchequer,N1C 4AG,"822,590.00",Yes
"Housing, Communities & Local Government",DLUHC,15/12/2021,Current (non AEF) Grants to Local Authorities,Local Government Strategy and Analysis,CAMDEN LB,,,,211651836,3700129133,,Grant payable by the Exchequer,N1C 4AG,"1,041,252.00",Yes
"Housing, Communities & Local Government",DLUHC,15/12/2021,Current (non AEF) Grants to Local Authorities,Local Government Strategy and Analysis,CAMDEN LONDON BOROUGH,,,,,3700127145,,Grant payable by the Exchequer,N1C 4AG,"413,227.00",Yes
"Housing, Communities & Local Government",DLUHC,15/12/2021,Current (non AEF) Grants to Local Authorities,Local Government Strategy and Analysis,CAMDEN LONDON BOROUGH,,,,,3700127417,,Grant payable by the Exchequer,N1C 4AG,"30,729.00",Yes
"Housing, Communities & Local Government",DLUHC,15/12/2021,Current (non AEF) Grants to Local Authorities,Local Government Strategy and Analysis,CAMDEN LONDON BOROUGH,,,,,3700127635,,Grant payable by the Exchequer,N1C 4AG,"126,555.00",Yes
"Housing, Communities & Local Government",DLUHC,15/12/2021,Current (non AEF) Grants to Local Authorities,Local Government Strategy and Analysis,CAMDEN LONDON BOROUGH,,,,,3700128484,,Grant payable by the Exchequer,N1C 4AG,"3,321.00",Yes
"Housing, Communities & Local Government",DLUHC,15/12/2021,Current (non AEF) Grants to Local Authorities,Local Government Strategy and Analysis,CAMDEN LONDON BOROUGH,,,,,3700128708,,Grant payable by the Exchequer,N1C 4AG,"3,440,096.00",Yes
"Housing, Communities & Local Government",DLUHC,15/12/2021,Current (non AEF) Grants to Local Authorities,Local Government Strategy and Analysis,CANNOCK CHASE DC,,,,215064770,3700127763,,Grant payable by the Exchequer,WS11 1BG,"20,718.00",Yes
"Housing, Communities & Local Government",DLUHC,15/12/2021,Current (non AEF) Grants to Local Authorities,Local Government Strategy and Analysis,CANNOCK CHASE DC,,,,215064770,3700127902,,Grant payable by the Exchequer,WS11 1BG,"112,802.00",Yes
"Housing, Communities & Local Government",DLUHC,15/12/2021,Current (non AEF) Grants to Local Authorities,Local Government Strategy and Analysis,CANNOCK CHASE DC,,,,215064770,3700128387,,Grant payable by the Exchequer,WS11 1BG,"5,719.00",Yes
"Housing, Communities & Local Government",DLUHC,15/12/2021,Current (non AEF) Grants to Local Authorities,Local Government Strategy and Analysis,CANTERBURY CITY CNCL,,,,,3700127521,,Grant payable by the Exchequer,CT1 1YW,"2,452.00",Yes
"Housing, Communities & Local Government",DLUHC,15/12/2021,Current (non AEF) Grants to Local Authorities,Local Government Strategy and Analysis,CANTERBURY CITY CNCL,,,,,3700127969,,Grant payable by the Exchequer,CT1 1YW,"12,213.00",Yes
"Housing, Communities & Local Government",DLUHC,15/12/2021,Current (non AEF) Grants to Local Authorities,Local Government Strategy and Analysis,CANTERBURY CITY CNCL,,,,,3700128141,,Grant payable by the Exchequer,CT1 1YW,"150,764.00",Yes
"Housing, Communities & Local Government",DLUHC,15/12/2021,Current (non AEF) Grants to Local Authorities,Local Government Strategy and Analysis,CANTERBURY CITY CNCL,,,,,3700128208,,Grant payable by the Exchequer,CT1 1YW,"8,529.00",Yes
"Housing, Communities & Local Government",DLUHC,15/12/2021,Current (non AEF) Grants to Local Authorities,Local Government Strategy and Analysis,CANTERBURY CITY CNCL,,,,,3700128422,,Grant payable by the Exchequer,CT1 1YW,424.00,Yes
"Housing, Communities & Local Government",DLUHC,15/12/2021,Current (non AEF) Grants to Local Authorities,Local Government Strategy and Analysis,CANTERBURY CITY CNCL,,,,,3700128696,,Grant payable by the Exchequer,CT1 1YW,"693,483.00",Yes
"Housing, Communities & Local Government",DLUHC,15/12/2021,Current (non AEF) Grants to Local Authorities,Local Government Strategy and Analysis,CARLISLE CITY CNCL,,,,227471059,3700126678,,Grant payable by the Exchequer,CA3 8QG,789.00,Yes
"Housing, Communities & Local Government",DLUHC,15/12/2021,Current (non AEF) Grants to Local Authorities,Local Government Strategy and Analysis,CARLISLE CITY CNCL,,,,227471059,3700126729,,Grant payable by the Exchequer,CA3 8QG,"24,023.00",Yes
"Housing, Communities & Local Government",DLUHC,15/12/2021,Current (non AEF) Grants to Local Authorities,Local Government Strategy and Analysis,CARLISLE CITY CNCL,,,,227471059,3700127900,,Grant payable by the Exchequer,CA3 8QG,"114,590.00",Yes
"Housing, Communities & Local Government",DLUHC,15/12/2021,Current (non AEF) Grants to Local Authorities,Local Government Strategy and Analysis,CARLISLE CITY CNCL,,,,227471059,3700128211,,Grant payable by the Exchequer,CA3 8QG,"7,459.00",Yes
"Housing, Communities & Local Government",DLUHC,15/12/2021,Current (non AEF) Grants to Local Authorities,Local Government Strategy and Analysis,CARLISLE CITY CNCL,,,,227471059,3700128297,,Grant payable by the Exchequer,CA3 8QG,351.00,Yes
"Housing, Communities & Local Government",DLUHC,15/12/2021,Current (non AEF) Grants to Local Authorities,Local Government Strategy and Analysis,CARLISLE CITY CNCL,,,,227471059,3700128310,,Grant payable by the Exchequer,CA3 8QG,"1,084.00",Yes
"Housing, Communities & Local Government",DLUHC,15/12/2021,Current (non AEF) Grants to Local Authorities,Local Government Strategy and Analysis,CARLISLE CITY CNCL,,,,227471059,3700128650,,Grant payable by the Exchequer,CA3 8QG,"129,891.00",Yes
"Housing, Communities & Local Government",DLUHC,15/12/2021,Current (non AEF) Grants to Local Authorities,Local Government Strategy and Analysis,CASTLE POINT BC,,Public Bodies,,228217931,3700127279,,Grant payable by the Exchequer,SS7 1TF,"85,249.00",Yes
"Housing, Communities & Local Government",DLUHC,15/12/2021,Current (non AEF) Grants to Local Authorities,Local Government Strategy and Analysis,CASTLE POINT BC,,Public Bodies,,228217931,3700127341,,Grant payable by the Exchequer,SS7 1TF,"8,561.00",Yes
"Housing, Communities & Local Government",DLUHC,15/12/2021,Current (non AEF) Grants to Local Authorities,Local Government Strategy and Analysis,CASTLE POINT BC,,Public Bodies,,228217931,3700127530,,Grant payable by the Exchequer,SS7 1TF,"2,797.00",Yes
"Housing, Communities & Local Government",DLUHC,15/12/2021,Current (non AEF) Grants to Local Authorities,Local Government Strategy and Analysis,CASTLE POINT BC,,Public Bodies,,228217931,3700127734,,Grant payable by the Exchequer,SS7 1TF,398.00,Yes
"Housing, Communities & Local Government",DLUHC,15/12/2021,Current (non AEF) Grants to Local Authorities,Local Government Strategy and Analysis,CASTLE POINT BC,,Public Bodies,,228217931,3700128668,,Grant payable by the Exchequer,SS7 1TF,"148,795.00",Yes
"Housing, Communities & Local Government",DLUHC,15/12/2021,Current (non AEF) Grants to Local Authorities,Local Government Strategy and Analysis,CENTRAL BEDFORDSHIRE COUNCIL,,,,232624882,3700126999,,Grant payable by the Exchequer,SG17 5TQ,402.00,Yes
"Housing, Communities & Local Government",DLUHC,15/12/2021,Current (non AEF) Grants to Local Authorities,Local Government Strategy and Analysis,CENTRAL BEDFORDSHIRE COUNCIL,,,,232624882,3700127670,,Grant payable by the Exchequer,SG17 5TQ,"16,443.00",Yes
"Housing, Communities & Local Government",DLUHC,15/12/2021,Current (non AEF) Grants to Local Authorities,Local Government Strategy and Analysis,CENTRAL BEDFORDSHIRE COUNCIL,,,,232624882,3700127760,,Grant payable by the Exchequer,SG17 5TQ,"213,345.00",Yes
"Housing, Communities & Local Government",DLUHC,15/12/2021,Current (non AEF) Grants to Local Authorities,Local Government Strategy and Analysis,CENTRAL BEDFORDSHIRE COUNCIL,,,,232624882,3700127768,,Grant payable by the Exchequer,SG17 5TQ,905.00,Yes
"Housing, Communities & Local Government",DLUHC,15/12/2021,Current (non AEF) Grants to Local Authorities,Local Government Strategy and Analysis,CENTRAL BEDFORDSHIRE COUNCIL,,,,232624882,3700128324,,Grant payable by the Exchequer,SG17 5TQ,"270,759.00",Yes
"Housing, Communities & Local Government",DLUHC,15/12/2021,Current (non AEF) Grants to Local Authorities,Local Government Strategy and Analysis,CENTRAL BEDFORDSHIRE COUNCIL,,,,232624882,3700128628,,Grant payable by the Exchequer,SG17 5TQ,"611,748.00",Yes
"Housing, Communities & Local Government",DLUHC,15/12/2021,Current (non AEF) Grants to Local Authorities,Local Government Strategy and Analysis,CENTRAL BEDFORDSHIRE COUNCIL,,,,232624882,3700129028,,Grant payable by the Exchequer,SG17 5TQ,"396,888.00",Yes
"Housing, Communities & Local Government",DLUHC,15/12/2021,Current (non AEF) Grants to Local Authorities,Local Government Strategy and Analysis,CENTRAL BEDFORDSHIRE COUNCIL,,,,232624882,3700129098,,Grant payable by the Exchequer,SG17 5TQ,"225,033.00",Yes
"Housing, Communities & Local Government",DLUHC,15/12/2021,Current (non AEF) Grants to Local Authorities,Local Government Strategy and Analysis,CHARNWOOD BC,,,,,3700126577,,Grant payable by the Exchequer,LE11 2TU,"8,729.00",Yes
"Housing, Communities & Local Government",DLUHC,15/12/2021,Current (non AEF) Grants to Local Authorities,Local Government Strategy and Analysis,CHARNWOOD BC,,,,,3700126993,,Grant payable by the Exchequer,LE11 2TU,"156,952.00",Yes
"Housing, Communities & Local Government",DLUHC,15/12/2021,Current (non AEF) Grants to Local Authorities,Local Government Strategy and Analysis,CHARNWOOD BC,,,,,3700127183,,Grant payable by the Exchequer,LE11 2TU,"1,328.00",Yes
"Housing, Communities & Local Government",DLUHC,15/12/2021,Current (non AEF) Grants to Local Authorities,Local Government Strategy and Analysis,CHARNWOOD BC,,,,,3700128327,,Grant payable by the Exchequer,LE11 2TU,"16,759.00",Yes
"Housing, Communities & Local Government",DLUHC,15/12/2021,Current (non AEF) Grants to Local Authorities,Local Government Strategy and Analysis,CHARNWOOD BC,,,,,3700128783,,Grant payable by the Exchequer,LE11 2TU,"135,105.00",Yes
"Housing, Communities & Local Government",DLUHC,15/12/2021,Current (non AEF) Grants to Local Authorities,Local Government Strategy and Analysis,CHELMSFORD BC,,,,,3700127090,,Grant payable by the Exchequer,CM1 1JE,"15,534.00",Yes
"Housing, Communities & Local Government",DLUHC,15/12/2021,Current (non AEF) Grants to Local Authorities,Local Government Strategy and Analysis,CHELMSFORD BC,,,,,3700127790,,Grant payable by the Exchequer,CM1 1JE,"148,182.00",Yes
"Housing, Communities & Local Government",DLUHC,15/12/2021,Current (non AEF) Grants to Local Authorities,Local Government Strategy and Analysis,CHELMSFORD BC,,,,,3700127829,,Grant payable by the Exchequer,CM1 1JE,"10,492.00",Yes
"Housing, Communities & Local Government",DLUHC,15/12/2021,Current (non AEF) Grants to Local Authorities,Local Government Strategy and Analysis,CHELMSFORD BC,,,,,3700128417,,Grant payable by the Exchequer,CM1 1JE,755.00,Yes
"Housing, Communities & Local Government",DLUHC,15/12/2021,Current (non AEF) Grants to Local Authorities,Local Government Strategy and Analysis,CHELMSFORD BC,,,,,3700128558,,Grant payable by the Exchequer,CM1 1JE,"308,698.00",Yes
"Housing, Communities & Local Government",DLUHC,15/12/2021,Current (non AEF) Grants to Local Authorities,Local Government Strategy and Analysis,CHELTENHAM BC,,,,,3700126903,,Grant payable by the Exchequer,GL50 1PW,277.00,Yes
"Housing, Communities & Local Government",DLUHC,15/12/2021,Current (non AEF) Grants to Local Authorities,Local Government Strategy and Analysis,CHELTENHAM BC,,,,,3700127991,,Grant payable by the Exchequer,GL50 1PW,"7,815.00",Yes
"Housing, Communities & Local Government",DLUHC,15/12/2021,Current (non AEF) Grants to Local Authorities,Local Government Strategy and Analysis,CHELTENHAM BC,,,,,3700128129,,Grant payable by the Exchequer,GL50 1PW,"98,303.00",Yes
"Housing, Communities & Local Government",DLUHC,15/12/2021,Current (non AEF) Grants to Local Authorities,Local Government Strategy and Analysis,CHELTENHAM BC,,,,,3700128149,,Grant payable by the Exchequer,GL50 1PW,"11,724.00",Yes
"Housing, Communities & Local Government",DLUHC,15/12/2021,Current (non AEF) Grants to Local Authorities,Local Government Strategy and Analysis,CHELTENHAM BC,,,,,3700128550,,Grant payable by the Exchequer,GL50 1PW,"195,663.00",Yes
"Housing, Communities & Local Government",DLUHC,15/12/2021,Current (non AEF) Grants to Local Authorities,Local Government Strategy and Analysis,CHERWELL DC,,,,,3700127010,,Grant payable by the Exchequer,OX15 4AA,"11,314.00",Yes
"Housing, Communities & Local Government",DLUHC,15/12/2021,Current (non AEF) Grants to Local Authorities,Local Government Strategy and Analysis,CHERWELL DC,,,,,3700127461,,Grant payable by the Exchequer,OX15 4AA,"39,375.00",Yes
"Housing, Communities & Local Government",DLUHC,15/12/2021,Current (non AEF) Grants to Local Authorities,Local Government Strategy and Analysis,CHERWELL DC,,,,,3700127687,,Grant payable by the Exchequer,OX15 4AA,"1,586.00",Yes
"Housing, Communities & Local Government",DLUHC,15/12/2021,Current (non AEF) Grants to Local Authorities,Local Government Strategy and Analysis,CHERWELL DC,,,,,3700127970,,Grant payable by the Exchequer,OX15 4AA,"120,151.00",Yes
"Housing, Communities & Local Government",DLUHC,15/12/2021,Current (non AEF) Grants to Local Authorities,Local Government Strategy and Analysis,CHERWELL DC,,,,,3700128163,,Grant payable by the Exchequer,OX15 4AA,"1,985.00",Yes
"Housing, Communities & Local Government",DLUHC,15/12/2021,Current (non AEF) Grants to Local Authorities,Local Government Strategy and Analysis,CHERWELL DC,,,,,3700128778,,Grant payable by the Exchequer,OX15 4AA,"730,327.00",Yes
"Housing, Communities & Local Government",DLUHC,15/12/2021,Current (non AEF) Grants to Local Authorities,Local Government Strategy and Analysis,CHESHIRE EAST BOROUGH COUNCIL,,,,293699450,3700126555,,Grant payable by the Exchequer,CW11 1HZ,"29,074.00",Yes
"Housing, Communities & Local Government",DLUHC,15/12/2021,Current (non AEF) Grants to Local Authorities,Local Government Strategy and Analysis,CHESHIRE EAST BOROUGH COUNCIL,,,,293699450,3700126612,,Grant payable by the Exchequer,CW11 1HZ,"477,744.00",Yes
"Housing, Communities & Local Government",DLUHC,15/12/2021,Current (non AEF) Grants to Local Authorities,Local Government Strategy and Analysis,CHESHIRE EAST BOROUGH COUNCIL,,,,293699450,3700126910,,Grant payable by the Exchequer,CW11 1HZ,"3,518.00",Yes
"Housing, Communities & Local Government",DLUHC,15/12/2021,Current (non AEF) Grants to Local Authorities,Local Government Strategy and Analysis,CHESHIRE EAST BOROUGH COUNCIL,,,,293699450,3700127233,,Grant payable by the Exchequer,CW11 1HZ,"2,463.00",Yes
"Housing, Communities & Local Government",DLUHC,15/12/2021,Current (non AEF) Grants to Local Authorities,Local Government Strategy and Analysis,CHESHIRE EAST BOROUGH COUNCIL,,,,293699450,3700127735,,Grant payable by the Exchequer,CW11 1HZ,"203,725.00",Yes
"Housing, Communities & Local Government",DLUHC,15/12/2021,Current (non AEF) Grants to Local Authorities,Local Government Strategy and Analysis,CHESHIRE EAST BOROUGH COUNCIL,,,,293699450,3700128064,,Grant payable by the Exchequer,CW11 1HZ,613.00,Yes
